Workbook

Sheet Main
B10: 2019-07-05
B12: Sheet No. | C12: Template Name | D12: Summary
B13: 1 | C13: Future Intra | D13: For Intraday trading in F&O segment
B14: 2 | C14: Cash Intra | D14: For Intraday trading in cash market segment
B15: 3 | C15: Mid-cap Intra | D15: For Intraday trading in Mid-cap stocks
B16: 4 | C16: Bulk Deals | D16: Reveals Bulk Deals carried on NSE & BSE
B17: 5 | C17: Call Tracker
K27: `

Sheet Future Intra
M5: Back to Main Page
A6: FOR INTRA DAY TRADING | L6: =Main!B10 -> 2019-07-05
A9: Sr.no | B9: Sector | C9: Scrip | D9: CLOSE RATE | E9: Pivot Point | F9: Supports | I9: Resistances
B10: Sector | D10: Point | E10: Point | F10: S1 | G10: S2 | H10: S3 | I10: R1 | J10: R2 | K10: R3 | L10: HIGH | M10: LOW | N10: OI | O10: % Change in OI
A11: 1 | B11: Index | C11: BANKNIFTY | D11: 31548.20 | E11: 31579.33 | F11: 31468.92 | G11: 31389.63 | H11: 31279.22 | I11: 31658.62 | J11: 31769.03 | K11: 31848.32 | L11: 31689.75 | M11: 31500.05 | N11: 1895520 | O11: 6.86%
A12: 2 | B12: Index | C12: NIFTY | D12: 11979.65 | E12: 11973.77 | F12: 11948.53 | G12: 11917.42 | H12: 11892.18 | I12: 12004.88 | J12: 12030.12 | K12: 12061.23 | L12: 11999 | M12: 11942.65 | N12: 19379250 | O12: 0.37%
A13: 3 | B13: Index | C13: NIFTYIT | D13: 15935.00 | E13: 15943.00 | F13: 15898.00 | G13: 15861.00 | H13: 15816.00 | I13: 15980.00 | J13: 16025.00 | K13: 16062.00 | L13: 15988 | M13: 15906 | N13: 17450 | O13: 2.05%
A14: 4 | B14: Cement | C14: ACC | D14: 1582.20 | E14: 1580.00 | F14: 1570.55 | G14: 1558.90 | H14: 1549.45 | I14: 1591.65 | J14: 1601.10 | K14: 1612.75 | L14: 1589.45 | M14: 1568.35 | N14: 2139200 | O14: -0.21%
A15: 5 | B15: Others | C15: ADANIENT | D15: 156.20 | E15: 157.27 | F15: 152.73 | G15: 149.27 | H15: 144.73 | I15: 160.73 | J15: 165.27 | K15: 168.73 | L15: 161.8 | M15: 153.8 | N15: 29320000 | O15: 4.49%
A16: 6 | B16: Others | C16: ADANIPORTS | D16: 417.00 | E16: 416.98 | F16: 415.22 | G16: 413.43 | H16: 411.67 | I16: 418.77 | J16: 420.53 | K16: 422.32 | L16: 418.75 | M16: 415.2 | N16: 15385000 | O16: -0.77%
A17: 7 | B17: Power | C17: ADANIPOWER | D17: 65.70 | E17: 65.97 | F17: 64.83 | G17: 63.97 | H17: 62.83 | I17: 66.83 | J17: 67.97 | K17: 68.83 | L17: 67.1 | M17: 65.1 | N17: 136760000 | O17: -1.82%
A18: 8 | B18: Automobile | C18: AMARAJABAT | D18: 647.05 | E18: 642.95 | F18: 635.10 | G18: 623.15 | H18: 615.30 | I18: 654.90 | J18: 662.75 | K18: 674.70 | L18: 650.8 | M18: 631 | N18: 1237600 | O18: 9.00%
A19: 9 | B19: Cement | C19: AMBUJACEM | D19: 217.50 | E19: 217.25 | F19: 215.80 | G19: 214.10 | H19: 212.65 | I19: 218.95 | J19: 220.40 | K19: 222.10 | L19: 218.7 | M19: 215.55 | N19: 15782500 | O19: 0.03%
A20: 10 | B20: Others | C20: APOLLOHOSP | D20: 1334.35 | E20: 1339.68 | F20: 1323.37 | G20: 1312.38 | H20: 1296.07 | I20: 1350.67 | J20: 1366.98 | K20: 1377.97 | L20: 1356 | M20: 1328.7 | N20: 1448500 | O20: 5.88%
A21: 11 | B21: Automobile | C21: APOLLOTYRE | D21: 197.10 | E21: 197.58 | F21: 196.22 | G21: 195.33 | H21: 193.97 | I21: 198.47 | J21: 199.83 | K21: 200.72 | L21: 198.95 | M21: 196.7 | N21: 9240000 | O21: 0.33%
A22: 12 | B22: Textile | C22: ARVIND | D22: 69.10 | E22: 69.07 | F22: 67.63 | G22: 66.17 | H22: 64.73 | I22: 70.53 | J22: 71.97 | K22: 73.43 | L22: 70.5 | M22: 67.6 | N22: 7014000 | O22: -3.94%
A23: 13 | B23: Automobile | C23: ASHOKLEY | D23: 87.40 | E23: 87.12 | F23: 86.38 | G23: 85.37 | H23: 84.63 | I23: 88.13 | J23: 88.87 | K23: 89.88 | L23: 87.85 | M23: 86.1 | N23: 70686000 | O23: -1.12%
A24: 14 | B24: FMCG | C24: ASIANPAINT | D24: 1364.80 | E24: 1364.85 | F24: 1357.70 | G24: 1350.60 | H24: 1343.45 | I24: 1371.95 | J24: 1379.10 | K24: 1386.20 | L24: 1372 | M24: 1357.75 | N24: 6691200 | O24: -0.61%
A25: 15 | B25: Pharma | C25: AUROPHARMA | D25: 607.35 | E25: 604.43 | F25: 598.07 | G25: 588.78 | H25: 582.42 | I25: 613.72 | J25: 620.08 | K25: 629.37 | L25: 610.8 | M25: 595.15 | N25: 15664000 | O25: -1.56%
A26: 16 | B26: Banking | C26: AXISBANK | D26: 811.75 | E26: 811.95 | F26: 808.00 | G26: 804.25 | H26: 800.30 | I26: 815.70 | J26: 819.65 | K26: 823.40 | L26: 815.9 | M26: 808.2 | N26: 41152800 | O26: 0.85%
A27: 17 | B27: Automobile | C27: BAJAJ-AUTO | D27: 2850.80 | E27: 2849.90 | F27: 2836.00 | G27: 2821.20 | H27: 2807.30 | I27: 2864.70 | J27: 2878.60 | K27: 2893.40 | L27: 2863.8 | M27: 2835.1 | N27: 2302000 | O27: 2.03%
A28: 18 | B28: Finance | C28: BAJAJFINSV | D28: 8577.55 | E28: 8550.98 | F28: 8506.92 | G28: 8436.28 | H28: 8392.22 | I28: 8621.62 | J28: 8665.68 | K28: 8736.32 | L28: 8595.05 | M28: 8480.35 | N28: 740875 | O28: -0.64%
A29: 19 | B29: Finance | C29: BAJFINANCE | D29: 3736.95 | E29: 3735.13 | F29: 3713.07 | G29: 3689.18 | H29: 3667.12 | I29: 3759.02 | J29: 3781.08 | K29: 3804.97 | L29: 3757.2 | M29: 3711.25 | N29: 5696000 | O29: -0.71%
A30: 20 | B30: Automobile | C30: BALKRISIND | D30: 756.55 | E30: 755.08 | F30: 750.52 | G30: 744.48 | H30: 739.92 | I30: 761.12 | J30: 765.68 | K30: 771.72 | L30: 759.65 | M30: 749.05 | N30: 2336800 | O30: -2.70%
A31: 21 | B31: Banking | C31: BANKBARODA | D31: 129.55 | E31: 129.00 | F31: 126.75 | G31: 123.95 | H31: 121.70 | I31: 131.80 | J31: 134.05 | K31: 136.85 | L31: 131.25 | M31: 126.2 | N31: 56124000 | O31: -9.52%
A32: 22 | B32: Banking | C32: BANKINDIA | D32: 94.90 | E32: 94.97 | F32: 93.73 | G32: 92.57 | H32: 91.33 | I32: 96.13 | J32: 97.37 | K32: 98.53 | L32: 96.2 | M32: 93.8 | N32: 28722000 | O32: 6.57%
A33: 23 | B33: FMCG | C33: BATAINDIA | D33: 1456.40 | E33: 1457.80 | F33: 1450.60 | G33: 1444.80 | H33: 1437.60 | I33: 1463.60 | J33: 1470.80 | K33: 1476.60 | L33: 1465 | M33: 1452 | N33: 1596650 | O33: 0.21%
A34: 24 | B34: Capital_Goods | C34: BEL | D34: 114.00 | E34: 113.80 | F34: 112.85 | G34: 111.70 | H34: 110.75 | I34: 114.95 | J34: 115.90 | K34: 117.05 | L34: 114.75 | M34: 112.65 | N34: 23904000 | O34: -1.82%
A35: 25 | B35: FMCG | C35: BERGEPAINT | D35: 320.00 | E35: 319.75 | F35: 317.70 | G35: 315.40 | H35: 313.35 | I35: 322.05 | J35: 324.10 | K35: 326.40 | L35: 321.8 | M35: 317.45 | N35: 2475000 | O35: -1.32%
A36: 26 | B36: Automobile | C36: BHARATFORG | D36: 477.25 | E36: 474.80 | F36: 466.60 | G36: 455.95 | H36: 447.75 | I36: 485.45 | J36: 493.65 | K36: 504.30 | L36: 483 | M36: 464.15 | N36: 7042800 | O36: -1.16%
A37: 27 | B37: Telecom | C37: BHARTIARTL | D37: 363.55 | E37: 361.43 | F37: 356.22 | G37: 348.88 | H37: 343.67 | I37: 368.77 | J37: 373.98 | K37: 381.32 | L37: 366.65 | M37: 354.1 | N37: 34080612 | O37: 0.17%
A38: 28 | B38: Capital_Goods | C38: BHEL | D38: 73.50 | E38: 73.40 | F38: 72.85 | G38: 72.20 | H38: 71.65 | I38: 74.05 | J38: 74.60 | K38: 75.25 | L38: 73.95 | M38: 72.75 | N38: 40425000 | O38: -1.71%
A39: 29 | B39: Pharma | C39: BIOCON | D39: 249.70 | E39: 249.55 | F39: 247.65 | G39: 245.60 | H39: 243.70 | I39: 251.60 | J39: 253.50 | K39: 255.55 | L39: 251.45 | M39: 247.5 | N39: 13275000 | O39: -0.31%
A40: 30 | B40: Automobile | C40: BOSCHLTD | D40: 16968.30 | E40: 16926.42 | F40: 16762.83 | G40: 16557.37 | H40: 16393.78 | I40: 17131.88 | J40: 17295.47 | K40: 17500.93 | L40: 17090 | M40: 16720.95 | N40: 155040 | O40: -0.39%
A41: 31 | B41: Oil_Gas | C41: BPCL | D41: 382.35 | E41: 383.05 | F41: 380.15 | G41: 377.95 | H41: 375.05 | I41: 385.25 | J41: 388.15 | K41: 390.35 | L41: 385.95 | M41: 380.85 | N41: 10771200 | O41: 1.61%
A42: 32 | B42: FMCG | C42: BRITANNIA | D42: 2847.15 | E42: 2832.63 | F42: 2810.32 | G42: 2773.48 | H42: 2751.17 | I42: 2869.47 | J42: 2891.78 | K42: 2928.62 | L42: 2854.95 | M42: 2795.8 | N42: 2250800 | O42: -2.92%
A43: 33 | B43: Technology | C43: CADILAHC | D43: 234.35 | E43: 234.43 | F43: 233.02 | G43: 231.68 | H43: 230.27 | I43: 235.77 | J43: 237.18 | K43: 238.52 | L43: 235.85 | M43: 233.1 | N43: 16686400 | O43: 0.12%
A44: 34 | B44: Pharma | C44: CANBK | D44: 288.55 | E44: 289.63 | F44: 284.42 | G44: 280.28 | H44: 275.07 | I44: 293.77 | J44: 298.98 | K44: 303.12 | L44: 294.85 | M44: 285.5 | N44: 12056000 | O44: 2.50%
A45: 35 | B45: Banking | C45: CASTROLIND | D45: 132.60 | E45: 132.62 | F45: 131.43 | G45: 130.27 | H45: 129.08 | I45: 133.78 | J45: 134.97 | K45: 136.13 | L45: 133.8 | M45: 131.45 | N45: 9037200 | O45: -0.41%
A46: 36 | B46: Oil_Gas | C46: CENTURYTEX | D46: 968.05 | E46: 974.70 | F46: 955.60 | G46: 943.15 | H46: 924.05 | I46: 987.15 | J46: 1006.25 | K46: 1018.70 | L46: 993.8 | M46: 962.25 | N46: 4188000 | O46: 3.28%
A47: 37 | B47: Textile | C47: CESC | D47: 785.00 | E47: 787.23 | F47: 780.77 | G47: 776.53 | H47: 770.07 | I47: 791.47 | J47: 797.93 | K47: 802.17 | L47: 793.7 | M47: 783 | N47: 1064800 | O47: -1.33%
A48: 38 | B48: Power | C48: CHOLAFIN | D48: 288.60 | E48: 288.50 | F48: 285.10 | G48: 281.60 | H48: 278.20 | I48: 292.00 | J48: 295.40 | K48: 298.90 | L48: 291.9 | M48: 285 | N48: 3057500 | O48: -2.55%
A49: 39 | B49: Finance | C49: CIPLA | D49: 554.40 | E49: 555.48 | F49: 551.62 | G49: 548.83 | H49: 544.97 | I49: 558.27 | J49: 562.13 | K49: 564.92 | L49: 559.35 | M49: 552.7 | N49: 11005000 | O49: 0.19%
A50: 40 | B50: Pharma | C50: COALINDIA | D50: 251.60 | E50: 251.42 | F50: 249.83 | G50: 248.07 | H50: 246.48 | I50: 253.18 | J50: 254.77 | K50: 256.53 | L50: 253 | M50: 249.65 | N50: 25678400 | O50: 0.36%
A51: 41 | B51: Others | C51: COLPAL | D51: 1156.55 | E51: 1157.93 | F51: 1148.37 | G51: 1140.18 | H51: 1130.62 | I51: 1166.12 | J51: 1175.68 | K51: 1183.87 | L51: 1167.5 | M51: 1149.75 | N51: 2144800 | O51: -4.07%
A52: 42 | B52: FMCG | C52: CONCOR | D52: 576.70 | E52: 577.33 | F52: 572.47 | G52: 568.23 | H52: 563.37 | I52: 581.57 | J52: 586.43 | K52: 590.67 | L52: 582.2 | M52: 573.1 | N52: 2172570 | O52: -1.07%
A53: 43 | B53: Others | C53: CUMMINSIND | D53: 758.10 | E53: 755.13 | F53: 748.52 | G53: 738.93 | H53: 732.32 | I53: 764.72 | J53: 771.33 | K53: 780.92 | L53: 761.75 | M53: 745.55 | N53: 1664600 | O53: 1.75%
A54: 44 | B54: Capital_Goods | C54: DABUR | D54: 405.30 | E54: 405.75 | F54: 402.05 | G54: 398.80 | H54: 395.10 | I54: 409.00 | J54: 412.70 | K54: 415.95 | L54: 409.45 | M54: 402.5 | N54: 11367500 | O54: 1.75%
A55: 45 | B55: FMCG | C55: DHFL | D55: 70.60 | E55: 71.80 | F55: 67.75 | G55: 64.90 | H55: 60.85 | I55: 74.65 | J55: 78.70 | K55: 81.55 | L55: 75.85 | M55: 68.95 | N55: 21580000 | O55: -3.44%
A56: 46 | B56: Finance | C56: DISHTV | D56: 31.70 | E56: 32.22 | F56: 30.58 | G56: 29.47 | H56: 27.83 | I56: 33.33 | J56: 34.97 | K56: 36.08 | L56: 33.85 | M56: 31.1 | N56: 84742000 | O56: -2.61%
A57: 47 | B57: Media | C57: DIVISLAB | D57: 1624.15 | E57: 1628.88 | F57: 1611.77 | G57: 1599.38 | H57: 1582.27 | I57: 1641.27 | J57: 1658.38 | K57: 1670.77 | L57: 1646 | M57: 1616.5 | N57: 2758800 | O57: -0.95%
A58: 48 | B58: Pharma | C58: DLF | D58: 193.30 | E58: 193.72 | F58: 191.28 | G58: 189.27 | H58: 186.83 | I58: 195.73 | J58: 198.17 | K58: 200.18 | L58: 196.15 | M58: 191.7 | N58: 44248400 | O58: -6.81%
A59: 49 | B59: Realty | C59: DRREDDY | D59: 2595.30 | E59: 2598.05 | F59: 2581.15 | G59: 2567.00 | H59: 2550.10 | I59: 2612.20 | J59: 2629.10 | K59: 2643.25 | L59: 2614.95 | M59: 2583.9 | N59: 3789250 | O59: -1.32%
A60: 50 | B60: Pharma | C60: EICHERMOT | D60: 19726.10 | E60: 19786.07 | F60: 19543.33 | G60: 19360.57 | H60: 19117.83 | I60: 19968.83 | J60: 20211.57 | K60: 20394.33 | L60: 20028.8 | M60: 19603.3 | N60: 345675 | O60: 0.85%
A61: 51 | B61: Automobile | C61: ENGINERSIN | D61: 120.75 | E61: 121.45 | F61: 119.35 | G61: 117.95 | H61: 115.85 | I61: 122.85 | J61: 124.95 | K61: 126.35 | L61: 123.55 | M61: 120.05 | N61: 8045400 | O61: 4.86%
A62: 52 | B62: Infrastructure | C62: EQUITAS | D62: 122.15 | E62: 121.87 | F62: 121.03 | G62: 119.92 | H62: 119.08 | I62: 122.98 | J62: 123.82 | K62: 124.93 | L62: 122.7 | M62: 120.75 | N62: 12012000 | O62: -0.17%
A63: 53 | B63: Finance | C63: ESCORTS | D63: 570.75 | E63: 572.78 | F63: 564.12 | G63: 557.48 | H63: 548.82 | I63: 579.42 | J63: 588.08 | K63: 594.72 | L63: 581.45 | M63: 566.15 | N63: 6406400 | O63: 3.43%
A64: 54 | B64: Automobile | C64: EXIDEIND | D64: 207.05 | E64: 206.52 | F64: 204.38 | G64: 201.72 | H64: 199.58 | I64: 209.18 | J64: 211.32 | K64: 213.98 | L64: 208.65 | M64: 203.85 | N64: 7740000 | O64: 2.94%
A65: 55 | B65: Automobile | C65: FEDERALBNK | D65: 108.10 | E65: 108.43 | F65: 107.42 | G65: 106.73 | H65: 105.72 | I65: 109.12 | J65: 110.13 | K65: 110.82 | L65: 109.45 | M65: 107.75 | N65: 45024000 | O65: 1.13%
A66: 56 | B66: Banking | C66: GAIL | D66: 309.45 | E66: 308.73 | F66: 306.92 | G66: 304.38 | H66: 302.57 | I66: 311.27 | J66: 313.08 | K66: 315.62 | L66: 310.55 | M66: 306.2 | N66: 24595074 | O66: -4.92%
A67: 57 | B67: Oil_Gas | C67: GLENMARK | D67: 442.95 | E67: 444.55 | F67: 440.65 | G67: 438.35 | H67: 434.45 | I67: 446.85 | J67: 450.75 | K67: 453.05 | L67: 448.45 | M67: 442.25 | N67: 8637000 | O67: 0.97%
A68: 58 | B68: Pharma | C68: GMRINFRA | D68: 15.20 | E68: 15.22 | F68: 15.08 | G68: 14.97 | H68: 14.83 | I68: 15.33 | J68: 15.47 | K68: 15.58 | L68: 15.35 | M68: 15.1 | N68: 173025000 | O68: 0.39%
A69: 59 | B69: Infrastructure | C69: GODREJCP | D69: 676.25 | E69: 675.28 | F69: 668.22 | G69: 660.18 | H69: 653.12 | I69: 683.32 | J69: 690.38 | K69: 698.42 | L69: 682.35 | M69: 667.25 | N69: 5223200 | O69: -2.55%
A70: 60 | B70: FMCG | C70: GRASIM | D70: 945.75 | E70: 942.43 | F70: 933.87 | G70: 921.98 | H70: 913.42 | I70: 954.32 | J70: 962.88 | K70: 974.77 | L70: 951 | M70: 930.55 | N70: 12459750 | O70: -0.22%
A71: 61 | B71: Cement | C71: HAVELLS | D71: 784.00 | E71: 785.25 | F71: 779.50 | G71: 775.00 | H71: 769.25 | I71: 789.75 | J71: 795.50 | K71: 800.00 | L71: 791 | M71: 780.75 | N71: 6133000 | O71: -1.35%
A72: 62 | B72: Others | C72: HCLTECH | D72: 1047.05 | E72: 1048.02 | F72: 1039.13 | G72: 1031.22 | H72: 1022.33 | I72: 1055.93 | J72: 1064.82 | K72: 1072.73 | L72: 1056.9 | M72: 1040.1 | N72: 10859800 | O72: 3.72%
A73: 63 | B73: Technology | C73: HDFC | D73: 2272.65 | E73: 2269.50 | F73: 2263.15 | G73: 2253.65 | H73: 2247.30 | I73: 2279.00 | J73: 2285.35 | K73: 2294.85 | L73: 2275.85 | M73: 2260 | N73: 26809500 | O73: -0.04%
A74: 64 | B74: Finance | C74: HDFCBANK | D74: 2498.35 | E74: 2497.80 | F74: 2486.60 | G74: 2474.85 | H74: 2463.65 | I74: 2509.55 | J74: 2520.75 | K74: 2532.50 | L74: 2509 | M74: 2486.05 | N74: 17122000 | O74: 2.25%
A75: 65 | B75: Banking | C75: HEROMOTOCO | D75: 2589.70 | E75: 2587.28 | F75: 2572.22 | G75: 2554.73 | H75: 2539.67 | I75: 2604.77 | J75: 2619.83 | K75: 2637.32 | L75: 2602.35 | M75: 2569.8 | N75: 2842400 | O75: 0.53%
A76: 66 | B76: Automobile | C76: HEXAWARE | D76: 374.75 | E76: 375.80 | F76: 371.70 | G76: 368.65 | H76: 364.55 | I76: 378.85 | J76: 382.95 | K76: 386.00 | L76: 379.9 | M76: 372.75 | N76: 2359500 | O76: -4.14%
A77: 67 | B77: Technology | C77: HINDALCO | D77: 207.45 | E77: 208.10 | F77: 206.20 | G77: 204.95 | H77: 203.05 | I77: 209.35 | J77: 211.25 | K77: 212.50 | L77: 210 | M77: 206.85 | N77: 36393000 | O77: -0.55%
A78: 68 | B78: Metals | C78: HINDPETRO | D78: 290.35 | E78: 289.57 | F78: 287.78 | G78: 285.22 | H78: 283.43 | I78: 292.13 | J78: 293.92 | K78: 296.48 | L78: 291.35 | M78: 287 | N78: 15781500 | O78: 0.60%
A79: 69 | B79: Oil_Gas | C79: HINDUNILVR | D79: 1803.10 | E79: 1799.70 | F79: 1793.50 | G79: 1783.90 | H79: 1777.70 | I79: 1809.30 | J79: 1815.50 | K79: 1825.10 | L79: 1805.9 | M79: 1790.1 | N79: 11275500 | O79: -0.38%
A80: 70 | B80: FMCG | C80: HINDZINC | D80: 240.50 | E80: 240.23 | F80: 238.67 | G80: 236.83 | H80: 235.27 | I80: 242.07 | J80: 243.63 | K80: 245.47 | L80: 241.8 | M80: 238.4 | N80: 6905600 | O80: -1.46%
A81: 71 | B81: Metals | C81: IBULHSGFIN | D81: 706.40 | E81: 711.02 | F81: 690.23 | G81: 674.07 | H81: 653.28 | I81: 727.18 | J81: 747.97 | K81: 764.13 | L81: 731.8 | M81: 694.85 | N81: 18304000 | O81: -1.73%
A82: 72 | B82: Finance | C82: ICICIBANK | D82: 436.55 | E82: 437.95 | F82: 433.60 | G82: 430.65 | H82: 426.30 | I82: 440.90 | J82: 445.25 | K82: 448.20 | L82: 442.3 | M82: 435 | N82: 90917750 | O82: -0.41%
A83: 73 | B83: Banking | C83: ICICIPRULI | D83: 394.05 | E83: 392.72 | F83: 389.18 | G83: 384.32 | H83: 380.78 | I83: 397.58 | J83: 401.12 | K83: 405.98 | L83: 396.25 | M83: 387.85 | N83: 4042500 | O83: -2.32%
A84: 74 | B84: Finance | C84: IDBI | D84: 37.60 | E84: 37.50 | F84: 37.15 | G84: 36.70 | H84: 36.35 | I84: 37.95 | J84: 38.30 | K84: 38.75 | L84: 37.85 | M84: 37.05 | N84: 26568000 | O84: 0.87%
A85: 75 | B85: Banking | C85: IDEA | D85: 12.45 | E85: 12.52 | F85: 11.83 | G85: 11.22 | H85: 10.53 | I85: 13.13 | J85: 13.82 | K85: 14.43 | L85: 13.2 | M85: 11.9 | N85: 384636000 | O85: 1.25%
A86: 76 | B86: Telecom | C86: IDFCFIRSTB | D86: 45.05 | E86: 45.15 | F86: 44.60 | G86: 44.15 | H86: 43.60 | I86: 45.60 | J86: 46.15 | K86: 46.60 | L86: 45.7 | M86: 44.7 | N86: 111708000 | O86: 0.14%
A87: 77 | B87: Banking | C87: IGL | D87: 304.45 | E87: 305.28 | F87: 302.82 | G87: 301.18 | H87: 298.72 | I87: 306.92 | J87: 309.38 | K87: 311.02 | L87: 307.75 | M87: 303.65 | N87: 5929000 | O87: 4.31%
A88: 78 | B88: Oil_Gas | C88: INDIGO | D88: 1643.65 | E88: 1626.37 | F88: 1599.78 | G88: 1555.92 | H88: 1529.33 | I88: 1670.23 | J88: 1696.82 | K88: 1740.68 | L88: 1652.95 | M88: 1582.5 | N88: 2499600 | O88: 1.54%
A89: 79 | B89: Others | C89: INDUSINDBK | D89: 1488.70 | E89: 1489.37 | F89: 1466.78 | G89: 1444.87 | H89: 1422.28 | I89: 1511.28 | J89: 1533.87 | K89: 1555.78 | L89: 1511.95 | M89: 1467.45 | N89: 11722800 | O89: 0.96%
A90: 80 | B90: Banking | C90: INFRATEL | D90: 264.90 | E90: 265.15 | F90: 263.20 | G90: 261.50 | H90: 259.55 | I90: 266.85 | J90: 268.80 | K90: 270.50 | L90: 267.1 | M90: 263.45 | N90: 7354000 | O90: 0.14%
A91: 81 | B91: Telecom | C91: INFY | D91: 736.50 | E91: 736.72 | F91: 732.83 | G91: 729.17 | H91: 725.28 | I91: 740.38 | J91: 744.27 | K91: 747.93 | L91: 740.6 | M91: 733.05 | N91: 55515600 | O91: 0.93%
A92: 82 | B92: Technology | C92: IOC | D92: 156.75 | E92: 156.60 | F92: 155.95 | G92: 155.15 | H92: 154.50 | I92: 157.40 | J92: 158.05 | K92: 158.85 | L92: 157.25 | M92: 155.8 | N92: 35262500 | O92: -0.50%
A93: 83 | B93: Oil_Gas | C93: ITC | D93: 278.45 | E93: 277.90 | F93: 276.80 | G93: 275.15 | H93: 274.05 | I93: 279.55 | J93: 280.65 | K93: 282.30 | L93: 279 | M93: 276.25 | N93: 93487200 | O93: -1.08%
A94: 84 | B94: FMCG | C94: JINDALSTEL | D94: 142.80 | E94: 144.02 | F94: 140.68 | G94: 138.57 | H94: 135.23 | I94: 146.13 | J94: 149.47 | K94: 151.58 | L94: 147.35 | M94: 141.9 | N94: 34732800 | O94: 1.73%
A95: 85 | B95: Metals | C95: JSWSTEEL | D95: 272.30 | E95: 273.10 | F95: 270.50 | G95: 268.70 | H95: 266.10 | I95: 274.90 | J95: 277.50 | K95: 279.30 | L95: 275.7 | M95: 271.3 | N95: 51906000 | O95: 0.03%
A96: 86 | B96: Metals | C96: JUBLFOOD | D96: 1250.20 | E96: 1251.73 | F96: 1242.67 | G96: 1235.13 | H96: 1226.07 | I96: 1259.27 | J96: 1268.33 | K96: 1275.87 | L96: 1260.8 | M96: 1244.2 | N96: 3086000 | O96: 3.91%
A97: 87 | B97: Others | C97: JUSTDIAL | D97: 763.85 | E97: 767.02 | F97: 754.93 | G97: 746.02 | H97: 733.93 | I97: 775.93 | J97: 788.02 | K97: 796.93 | L97: 779.1 | M97: 758.1 | N97: 2426200 | O97: -13.48%
A98: 88 | B98: Others | C98: KAJARIACER | D98: 587.15 | E98: 584.98 | F98: 580.27 | G98: 573.38 | H98: 568.67 | I98: 591.87 | J98: 596.58 | K98: 603.47 | L98: 589.7 | M98: 578.1 | N98: 2134600 | O98: 3.14%
A99: 89 | B99: Others | C99: KOTAKBANK | D99: 1503.50 | E99: 1500.32 | F99: 1487.28 | G99: 1471.07 | H99: 1458.03 | I99: 1516.53 | J99: 1529.57 | K99: 1545.78 | L99: 1513.35 | M99: 1484.1 | N99: 8955600 | O99: -0.96%
A100: 90 | B100: Banking | C100: BSOFT | D100: 92.35 | E100: 91.38 | F100: 90.07 | G100: 87.78 | H100: 86.47 | I100: 93.67 | J100: 94.98 | K100: 97.27 | L100: 92.7 | M100: 89.1 | N100: 2616300 | O100: -0.39%
A101: 91 | B101: Finance | C101: L&TFH | D101: 119.65 | E101: 119.92 | F101: 118.43 | G101: 117.22 | H101: 115.73 | I101: 121.13 | J101: 122.62 | K101: 123.83 | L101: 121.4 | M101: 118.7 | N101: 31585500 | O101: 0.01%
A102: 92 | B102: Finance | C102: LICHSGFIN | D102: 571.70 | E102: 571.87 | F102: 568.43 | G102: 565.17 | H102: 561.73 | I102: 575.13 | J102: 578.57 | K102: 581.83 | L102: 575.3 | M102: 568.6 | N102: 7481100 | O102: -1.88%
A103: 93 | B103: Capital_Goods | C103: LT | D103: 1563.20 | E103: 1566.57 | F103: 1553.23 | G103: 1543.27 | H103: 1529.93 | I103: 1576.53 | J103: 1589.87 | K103: 1599.83 | L103: 1579.9 | M103: 1556.6 | N103: 13290000 | O103: 2.64%
A104: 94 | B104: Pharma | C104: LUPIN | D104: 758.40 | E104: 757.30 | F104: 752.15 | G104: 745.90 | H104: 740.75 | I104: 763.55 | J104: 768.70 | K104: 774.95 | L104: 762.45 | M104: 751.05 | N104: 8649900 | O104: -2.11%
A105: 95 | B105: Automobile | C105: M&M | D105: 666.95 | E105: 665.58 | F105: 661.67 | G105: 656.38 | H105: 652.47 | I105: 670.87 | J105: 674.78 | K105: 680.07 | L105: 669.5 | M105: 660.3 | N105: 20278000 | O105: -0.81%
A106: 96 | B106: Finance | C106: M&MFIN | D106: 390.65 | E106: 391.65 | F106: 387.55 | G106: 384.45 | H106: 380.35 | I106: 394.75 | J106: 398.85 | K106: 401.95 | L106: 395.75 | M106: 388.55 | N106: 11603750 | O106: 1.55%
A107: 97 | B107: Finance | C107: MANAPPURAM | D107: 137.15 | E107: 137.65 | F107: 136.15 | G107: 135.15 | H107: 133.65 | I107: 138.65 | J107: 140.15 | K107: 141.15 | L107: 139.15 | M107: 136.65 | N107: 14496000 | O107: 0.33%
A108: 98 | B108: FMCG | C108: MARICO | D108: 376.40 | E108: 375.73 | F108: 373.97 | G108: 371.53 | H108: 369.77 | I108: 378.17 | J108: 379.93 | K108: 382.37 | L108: 377.5 | M108: 373.3 | N108: 7781800 | O108: 1.94%
A109: 99 | B109: Automobile | C109: MARUTI | D109: 6577.40 | E109: 6582.48 | F109: 6535.02 | G109: 6492.63 | H109: 6445.17 | I109: 6624.87 | J109: 6672.33 | K109: 6714.72 | L109: 6629.95 | M109: 6540.1 | N109: 3114450 | O109: 1.49%
A110: 100 | B110: FMCG | C110: MCDOWELL-N | D110: 578.75 | E110: 580.25 | F110: 575.50 | G110: 572.25 | H110: 567.50 | I110: 583.50 | J110: 588.25 | K110: 591.50 | L110: 585 | M110: 577 | N110: 9323750 | O110: -2.20%
A111: 101 | B111: Others | C111: MCX | D111: 866.45 | E111: 868.48 | F111: 860.97 | G111: 855.48 | H111: 847.97 | I111: 873.97 | J111: 881.48 | K111: 886.97 | L111: 876 | M111: 863 | N111: 1633800 | O111: -0.68%
A112: 102 | B112: Finance | C112: MFSL | D112: 417.45 | E112: 418.57 | F112: 413.88 | G112: 410.32 | H112: 405.63 | I112: 422.13 | J112: 426.82 | K112: 430.38 | L112: 423.25 | M112: 415 | N112: 2006400 | O112: 2.26%
A113: 103 | B113: Oil_Gas | C113: MGL | D113: 833.20 | E113: 831.90 | F113: 822.80 | G113: 812.40 | H113: 803.30 | I113: 842.30 | J113: 851.40 | K113: 861.80 | L113: 841 | M113: 821.5 | N113: 993000 | O113: -0.06%
A114: 104 | B114: Technology | C114: MINDTREE | D114: 876.70 | E114: 876.00 | F114: 866.75 | G114: 856.80 | H114: 847.55 | I114: 885.95 | J114: 895.20 | K114: 905.15 | L114: 885.25 | M114: 866.05 | N114: 1543800 | O114: -1.19%
A115: 105 | B115: Automobile | C115: MOTHERSUMI | D115: 127.35 | E115: 126.90 | F115: 125.80 | G115: 124.25 | H115: 123.15 | I115: 128.45 | J115: 129.55 | K115: 131.10 | L115: 128 | M115: 125.35 | N115: 25624500 | O115: -2.90%
A116: 106 | B116: Automobile | C116: MRF | D116: 56624.95 | E116: 56750.87 | F116: 56360.33 | G116: 56095.72 | H116: 55705.18 | I116: 57015.48 | J116: 57406.02 | K116: 57670.63 | L116: 57141.4 | M116: 56486.25 | N116: 31520 | O116: 4.30%
A117: 107 | B117: Finance | C117: MUTHOOTFIN | D117: 628.90 | E117: 632.80 | F117: 622.70 | G117: 616.50 | H117: 606.40 | I117: 639.00 | J117: 649.10 | K117: 655.30 | L117: 642.9 | M117: 626.6 | N117: 3255000 | O117: 0.93%
A118: 108 | B118: Metals | C118: NATIONALUM | D118: 50.90 | E118: 51.13 | F118: 50.42 | G118: 49.93 | H118: 49.22 | I118: 51.62 | J118: 52.33 | K118: 52.82 | L118: 51.85 | M118: 50.65 | N118: 40410000 | O118: 0.52%
A119: 109 | B119: Infrastructure | C119: NBCC | D119: 61.50 | E119: 61.62 | F119: 60.73 | G119: 59.97 | H119: 59.08 | I119: 62.38 | J119: 63.27 | K119: 64.03 | L119: 62.5 | M119: 60.85 | N119: 29962500 | O119: 1.26%
A120: 110 | B120: Infrastructure | C120: NCC | D120: 97.75 | E120: 97.78 | F120: 96.37 | G120: 94.98 | H120: 93.57 | I120: 99.17 | J120: 100.58 | K120: 101.97 | L120: 99.2 | M120: 96.4 | N120: 32328000 | O120: 0.10%
A121: 111 | B121: FMCG | C121: NESTLEIND | D121: 11956.60 | E121: 11969.40 | F121: 11903.85 | G121: 11851.10 | H121: 11785.55 | I121: 12022.15 | J121: 12087.70 | K121: 12140.45 | L121: 12034.95 | M121: 11916.65 | N121: 349350 | O121: -1.05%
A122: 112 | B122: Technology | C122: NIITTECH | D122: 1328.50 | E122: 1329.10 | F122: 1318.40 | G122: 1308.30 | H122: 1297.60 | I122: 1339.20 | J122: 1349.90 | K122: 1360.00 | L122: 1339.8 | M122: 1319 | N122: 1124250 | O122: 2.18%
A123: 113 | B123: Metals | C123: NMDC | D123: 117.25 | E123: 117.63 | F123: 116.37 | G123: 115.48 | H123: 114.22 | I123: 118.52 | J123: 119.78 | K123: 120.67 | L123: 118.9 | M123: 116.75 | N123: 27042000 | O123: -2.26%
A124: 114 | B124: Power | C124: NTPC | D124: 143.75 | E124: 143.53 | F124: 142.82 | G124: 141.88 | H124: 141.17 | I124: 144.47 | J124: 145.18 | K124: 146.12 | L124: 144.25 | M124: 142.6 | N124: 66508800 | O124: 2.33%
A125: 115 | B125: Technology | C125: OFSS | D125: 3249.15 | E125: 3256.55 | F125: 3229.30 | G125: 3209.45 | H125: 3182.20 | I125: 3276.40 | J125: 3303.65 | K125: 3323.50 | L125: 3283.8 | M125: 3236.7 | N125: 261600 | O125: 0.17%
A126: 116 | B126: Oil_Gas | C126: OIL | D126: 178.25 | E126: 178.53 | F126: 177.27 | G126: 176.28 | H126: 175.02 | I126: 179.52 | J126: 180.78 | K126: 181.77 | L126: 179.8 | M126: 177.55 | N126: 5914260 | O126: 2.72%
A127: 117 | B127: Oil_Gas | C127: ONGC | D127: 167.80 | E127: 167.85 | F127: 166.45 | G127: 165.10 | H127: 163.70 | I127: 169.20 | J127: 170.60 | K127: 171.95 | L127: 169.25 | M127: 166.5 | N127: 50407500 | O127: -3.97%
A128: 118 | B128: Textile | C128: PAGEIND | D128: 20696.70 | E128: 20692.55 | F128: 20535.15 | G128: 20373.60 | H128: 20216.20 | I128: 20854.10 | J128: 21011.50 | K128: 21173.05 | L128: 20849.95 | M128: 20531 | N128: 161725 | O128: -0.84%
A129: 119 | B129: Pharma | C129: PEL | D129: 1932.50 | E129: 1974.53 | F129: 1865.02 | G129: 1797.53 | H129: 1688.02 | I129: 2042.02 | J129: 2151.53 | K129: 2219.02 | L129: 2084.05 | M129: 1907.05 | N129: 3302974 | O129: 10.34%
A130: 120 | B130: Oil_Gas | C130: PETRONET | D130: 253.25 | E130: 252.18 | F130: 250.57 | G130: 247.88 | H130: 246.27 | I130: 254.87 | J130: 256.48 | K130: 259.17 | L130: 253.8 | M130: 249.5 | N130: 11799000 | O130: 2.58%
A131: 121 | B131: Finance | C131: PFC | D131: 133.60 | E131: 133.75 | F131: 132.10 | G131: 130.60 | H131: 128.95 | I131: 135.25 | J131: 136.90 | K131: 138.40 | L131: 135.4 | M131: 132.25 | N131: 33015000 | O131: -0.80%
A132: 122 | B132: FMCG | C132: PIDILITIND | D132: 1234.80 | E132: 1238.25 | F132: 1227.65 | G132: 1220.50 | H132: 1209.90 | I132: 1245.40 | J132: 1256.00 | K132: 1263.15 | L132: 1248.85 | M132: 1231.1 | N132: 2975000 | O132: 3.75%
A133: 123 | B133: Banking | C133: PNB | D133: 82.35 | E133: 82.67 | F133: 81.53 | G133: 80.72 | H133: 79.58 | I133: 83.48 | J133: 84.62 | K133: 85.43 | L133: 83.8 | M133: 81.85 | N133: 107240000 | O133: 0.79%
A134: 124 | B134: Power | C134: POWERGRID | D134: 211.50 | E134: 210.80 | F134: 209.60 | G134: 207.70 | H134: 206.50 | I134: 212.70 | J134: 213.90 | K134: 215.80 | L134: 212 | M134: 208.9 | N134: 32656000 | O134: -0.18%
A135: 125 | B135: Media | C135: PVR | D135: 1692.85 | E135: 1695.93 | F135: 1682.92 | G135: 1672.98 | H135: 1659.97 | I135: 1705.87 | J135: 1718.88 | K135: 1728.82 | L135: 1708.95 | M135: 1686 | N135: 550800 | O135: -3.23%
A136: 126 | B136: Cement | C136: RAMCOCEM | D136: 792.75 | E136: 795.40 | F136: 785.85 | G136: 778.95 | H136: 769.40 | I136: 802.30 | J136: 811.85 | K136: 818.75 | L136: 804.95 | M136: 788.5 | N136: 1138400 | O136: 2.15%
A137: 127 | B137: Textile | C137: RAYMOND | D137: 765.20 | E137: 767.47 | F137: 756.93 | G137: 748.67 | H137: 738.13 | I137: 775.73 | J137: 786.27 | K137: 794.53 | L137: 778 | M137: 759.2 | N137: 2857600 | O137: 0.68%
A138: 128 | B138: Banking | C138: RBLBANK | D138: 653.05 | E138: 654.65 | F138: 647.80 | G138: 642.55 | H138: 635.70 | I138: 659.90 | J138: 666.75 | K138: 672.00 | L138: 661.5 | M138: 649.4 | N138: 5434800 | O138: 2.54%
A139: 129 | B139: Power | C139: RECLTD | D139: 167.85 | E139: 168.02 | F139: 166.13 | G139: 164.42 | H139: 162.53 | I139: 169.73 | J139: 171.62 | K139: 173.33 | L139: 169.9 | M139: 166.3 | N139: 31152000 | O139: -1.98%
A140: 130 | B140: Finance | C140: RELCAPITAL | D140: 54.45 | E140: 54.27 | F140: 51.88 | G140: 49.32 | H140: 46.93 | I140: 56.83 | J140: 59.22 | K140: 61.78 | L140: 56.65 | M140: 51.7 | N140: 16479000 | O140: -5.50%
A141: 131 | B141: Oil_Gas | C141: RELIANCE | D141: 1288.05 | E141: 1289.53 | F141: 1283.77 | G141: 1279.48 | H141: 1273.72 | I141: 1293.82 | J141: 1299.58 | K141: 1303.87 | L141: 1295.3 | M141: 1285.25 | N141: 44489000 | O141: -0.91%
A142: 132 | B142: Power | C142: RELINFRA | D142: 52.40 | E142: 52.67 | F142: 50.43 | G142: 48.47 | H142: 46.23 | I142: 54.63 | J142: 56.87 | K142: 58.83 | L142: 54.9 | M142: 50.7 | N142: 13856000 | O142: 2.15%
A143: 133 | B143: Metals | C143: SAIL | D143: 52.10 | E143: 51.95 | F143: 51.50 | G143: 50.90 | H143: 50.45 | I143: 52.55 | J143: 53.00 | K143: 53.60 | L143: 52.4 | M143: 51.35 | N143: 99300000 | O143: 0.61%
A144: 134 | B144: Banking | C144: SBIN | D144: 368.35 | E144: 369.12 | F144: 366.33 | G144: 364.32 | H144: 361.53 | I144: 371.13 | J144: 373.92 | K144: 375.93 | L144: 371.9 | M144: 367.1 | N144: 70140000 | O144: -2.04%
A145: 135 | B145: Cement | C145: SHREECEM | D145: 21726.90 | E145: 21726.80 | F145: 21573.70 | G145: 21420.50 | H145: 21267.40 | I145: 21880.00 | J145: 22033.10 | K145: 22186.30 | L145: 21879.9 | M145: 21573.6 | N145: 121850 | O145: 1.54%
A146: 136 | B146: Capital_Goods | C146: SIEMENS | D146: 1362.15 | E146: 1354.03 | F146: 1340.97 | G146: 1319.78 | H146: 1306.72 | I146: 1375.22 | J146: 1388.28 | K146: 1409.47 | L146: 1367.1 | M146: 1332.85 | N146: 1247400 | O146: -5.93%
A147: 137 | B147: Textile | C147: SRF | D147: 3066.60 | E147: 3068.07 | F147: 3048.58 | G147: 3030.57 | H147: 3011.08 | I147: 3086.08 | J147: 3105.57 | K147: 3123.58 | L147: 3087.55 | M147: 3050.05 | N147: 942250 | O147: 0.27%
A148: 138 | B148: Finance | C148: SRTRANSFIN | D148: 1069.35 | E148: 1077.22 | F148: 1057.33 | G148: 1045.32 | H148: 1025.43 | I148: 1089.23 | J148: 1109.12 | K148: 1121.13 | L148: 1097.1 | M148: 1065.2 | N148: 4998600 | O148: 2.54%
A149: 139 | B149: Pharma | C149: STAR | D149: 393.95 | E149: 395.08 | F149: 389.87 | G149: 385.78 | H149: 380.57 | I149: 399.17 | J149: 404.38 | K149: 408.47 | L149: 400.3 | M149: 391 | N149: 2784000 | O149: 5.17%
A150: 140 | B150: Pharma | C150: SUNPHARMA | D150: 394.50 | E150: 395.80 | F150: 391.90 | G150: 389.30 | H150: 385.40 | I150: 398.40 | J150: 402.30 | K150: 404.90 | L150: 399.7 | M150: 393.2 | N150: 53909900 | O150: 0.04%
A151: 141 | B151: Media | C151: SUNTV | D151: 513.45 | E151: 515.65 | F151: 510.00 | G151: 506.55 | H151: 500.90 | I151: 519.10 | J151: 524.75 | K151: 528.20 | L151: 521.3 | M151: 512.2 | N151: 5746000 | O151: 2.19%
A152: 142 | B152: Fertilisers | C152: TATACHEM | D152: 621.20 | E152: 621.42 | F152: 617.68 | G152: 614.17 | H152: 610.43 | I152: 624.93 | J152: 628.67 | K152: 632.18 | L152: 625.15 | M152: 617.9 | N152: 2757600 | O152: -0.26%
A153: 143 | B153: Technology | C153: TATAELXSI | D153: 903.80 | E153: 904.42 | F153: 894.48 | G153: 885.17 | H153: 875.23 | I153: 913.73 | J153: 923.67 | K153: 932.98 | L153: 914.35 | M153: 895.1 | N153: 1659000 | O153: -1.18%
A154: 144 | B154: FMCG | C154: TATAGLOBAL | D154: 271.05 | E154: 271.48 | F154: 268.77 | G154: 266.48 | H154: 263.77 | I154: 273.77 | J154: 276.48 | K154: 278.77 | L154: 274.2 | M154: 269.2 | N154: 8070300 | O154: -1.35%
A155: 145 | B155: Automobile | C155: TATAMOTORS | D155: 165.90 | E155: 165.78 | F155: 162.82 | G155: 159.73 | H155: 156.77 | I155: 168.87 | J155: 171.83 | K155: 174.92 | L155: 168.75 | M155: 162.7 | N155: 68271000 | O155: -2.68%
A156: 146 | B156: Automobile | C156: TATAMTRDVR | D156: 81.10 | E156: 81.38 | F156: 79.77 | G156: 78.43 | H156: 76.82 | I156: 82.72 | J156: 84.33 | K156: 85.67 | L156: 83 | M156: 80.05 | N156: 30474000 | O156: 3.44%
A157: 147 | B157: Power | C157: TATAPOWER | D157: 72.45 | E157: 72.87 | F157: 71.48 | G157: 70.52 | H157: 69.13 | I157: 73.83 | J157: 75.22 | K157: 76.18 | L157: 74.25 | M157: 71.9 | N157: 54018000 | O157: -3.94%
A158: 148 | B158: Metals | C158: TATASTEEL | D158: 496.80 | E158: 498.73 | F158: 493.62 | G158: 490.43 | H158: 485.32 | I158: 501.92 | J158: 507.03 | K158: 510.22 | L158: 503.85 | M158: 495.55 | N158: 31436369 | O158: -0.48%
A159: 149 | B159: Technology | C159: TCS | D159: 2247.05 | E159: 2247.72 | F159: 2237.03 | G159: 2227.02 | H159: 2216.33 | I159: 2257.73 | J159: 2268.42 | K159: 2278.43 | L159: 2258.4 | M159: 2237.7 | N159: 13962500 | O159: -0.41%
A160: 150 | B160: Technology | C160: TECHM | D160: 690.70 | E160: 691.33 | F160: 686.02 | G160: 681.33 | H160: 676.02 | I160: 696.02 | J160: 701.33 | K160: 706.02 | L160: 696.65 | M160: 686.65 | N160: 15871200 | O160: 1.32%
A161: 151 | B161: FMCG | C161: TITAN | D161: 1297.25 | E161: 1305.85 | F161: 1283.60 | G161: 1269.95 | H161: 1247.70 | I161: 1319.50 | J161: 1341.75 | K161: 1355.40 | L161: 1328.1 | M161: 1292.2 | N161: 8643750 | O161: 1.19%
A162: 152 | B162: Pharma | C162: TORNTPHARM | D162: 1540.75 | E162: 1541.92 | F162: 1531.73 | G162: 1522.72 | H162: 1512.53 | I162: 1550.93 | J162: 1561.12 | K162: 1570.13 | L162: 1552.1 | M162: 1532.9 | N162: 606000 | O162: 3.50%
A163: 153 | B163: Power | C163: TORNTPOWER | D163: 304.95 | E163: 307.52 | F163: 301.03 | G163: 297.12 | H163: 290.63 | I163: 311.43 | J163: 317.92 | K163: 321.83 | L163: 314 | M163: 303.6 | N163: 3939000 | O163: -6.21%
A164: 154 | B164: Automobile | C164: TVSMOTOR | D164: 431.05 | E164: 433.03 | F164: 427.77 | G164: 424.48 | H164: 419.22 | I164: 436.32 | J164: 441.58 | K164: 444.87 | L164: 438.3 | M164: 429.75 | N164: 6690200 | O164: -0.13%
A165: 155 | B165: FMCG | C165: UBL | D165: 1376.25 | E165: 1382.25 | F165: 1364.15 | G165: 1352.05 | H165: 1333.95 | I165: 1394.35 | J165: 1412.45 | K165: 1424.55 | L165: 1400.35 | M165: 1370.15 | N165: 1229200 | O165: 0.86%
A166: 156 | B166: Finance | C166: UJJIVAN | D166: 294.45 | E166: 296.52 | F166: 291.08 | G166: 287.72 | H166: 282.28 | I166: 299.88 | J166: 305.32 | K166: 308.68 | L166: 301.95 | M166: 293.15 | N166: 5736000 | O166: 0.62%
A167: 157 | B167: Cement | C167: ULTRACEMCO | D167: 4650.65 | E167: 4632.03 | F167: 4592.97 | G167: 4535.28 | H167: 4496.22 | I167: 4689.72 | J167: 4728.78 | K167: 4786.47 | L167: 4671.1 | M167: 4574.35 | N167: 2429800 | O167: -1.26%
A168: 158 | B168: Banking | C168: UNIONBANK | D168: 85.20 | E168: 85.50 | F168: 84.10 | G168: 83.00 | H168: 81.60 | I168: 86.60 | J168: 88.00 | K168: 89.10 | L168: 86.9 | M168: 84.4 | N168: 33012000 | O168: 2.97%
A169: 159 | B169: Fertilisers | C169: UPL | D169: 699.00 | E169: 686.93 | F169: 667.02 | G169: 635.03 | H169: 615.12 | I169: 718.92 | J169: 738.83 | K169: 770.82 | L169: 706.85 | M169: 654.95 | N169: 14810400 | O169: 4.73%
A170: 160 | B170: Metals | C170: VEDL | D170: 171.60 | E170: 172.48 | F170: 170.07 | G170: 168.53 | H170: 166.12 | I170: 174.02 | J170: 176.43 | K170: 177.97 | L170: 174.9 | M170: 170.95 | N170: 56262000 | O170: 1.97%
A171: 161 | B171: Capital_Goods | C171: VOLTAS | D171: 634.30 | E171: 635.93 | F171: 631.07 | G171: 627.83 | H171: 622.97 | I171: 639.17 | J171: 644.03 | K171: 647.27 | L171: 640.8 | M171: 632.7 | N171: 4203000 | O171: 3.09%
A172: 162 | B172: Technology | C172: WIPRO | D172: 284.20 | E172: 284.27 | F172: 283.08 | G172: 281.97 | H172: 280.78 | I172: 285.38 | J172: 286.57 | K172: 287.68 | L172: 285.45 | M172: 283.15 | N172: 29043200 | O172: -2.21%
A173: 163 | B173: Banking | C173: YESBANK | D173: 96.90 | E173: 98.43 | F173: 94.12 | G173: 91.33 | H173: 87.02 | I173: 101.22 | J173: 105.53 | K173: 108.32 | L173: 102.75 | M173: 95.65 | N173: 125243800 | O173: 3.57%
A174: 164 | B174: Media | C174: ZEEL | D174: 355.20 | E174: 358.43 | F174: 351.07 | G174: 346.93 | H174: 339.57 | I174: 362.57 | J174: 369.93 | K174: 374.07 | L174: 365.8 | M174: 354.3 | N174: 21915400 | O174: -0.94%
A221: Pivot Point: This is trigger point for intra day buy/sell based on the price range of the previous day
A222: As per the tool,the trader should take BUY position just above Pivot and keep the stop loss of pivot point and the first target would be Resistance 1(R1)
A223: If R1 is crossed then R2 becomes the next target with stop loss of at R1
A224: Similarly if price goes below pivot point then the trader should sell and keep a stop loss of pivot point and the first target would be S1
A225: If S1 is crossed then S2 becomes the next target with stop loss of at S1
A227: Disclaimer:
A228: This document has been prepared by the Retail Research Desk of Asit C Mehta
A229: Investment Intermediates Ltd. and is meant for use of the recipient only
A230: and is not for circulation. This document is not to be reported or
A231: copied or made available to others. It should not be considered to be
A232: taken as an offer to sell or a solicitation to buy any security. The
A233: information contained herein is from sources believed reliable. We do
A234: not represent that it is accurate or complete and it should not be
A235: relied upon as such. We may from time to time have positions in and buy
A236: and sell securities referred to herein

Sheet Cash Intra
M5: Back to Main Page
A6: FOR INTRA DAY TRADING | K6: =Main!B10 -> 2019-07-05
A8: Sr.no | B8: Scrip | C8: CLOSE RATE | D8: Pivot Point | E8: Supports | H8: Resistances
C9: Point | E9: S1 | F9: S2 | G9: S3 | H9: R1 | I9: R2 | J9: R3 | K9: HIGH | L9: LOW | M9: Total Trade Quanity in Lakhs
A10: 1 | B10: Nifty 50 | C10: 11946.75 | D10: 11946.55 | E10: 11923.85 | F10: 11900.95 | G10: 11878.25 | H10: 11969.45 | I10: 11992.15 | J10: 12015.05 | K10: 11969.25 | L10: 11923.65
A11: 2 | B11: Nifty Bank | C11: 31471.85 | D11: 31502.75 | E11: 31397.15 | F11: 31322.45 | G11: 31216.85 | H11: 31577.45 | I11: 31683.05 | J11: 31757.75 | K11: 31608.35 | L11: 31428.05
A12: 3 | B12: Nifty CPSE | C12: 2370.1 | D12: 2370.83 | E12: 2361.87 | F12: 2353.63 | G12: 2344.67 | H12: 2379.07 | I12: 2388.03 | J12: 2396.27 | K12: 2379.8 | L12: 2362.6
A13: 4 | B13: Nifty Infra | C13: 3437.55 | D13: 3437.42 | E13: 3427.23 | F13: 3416.92 | G13: 3406.73 | H13: 3447.73 | I13: 3457.92 | J13: 3468.23 | K13: 3447.6 | L13: 3427.1
A14: 5 | B14: Nifty IT | C14: 15942.4 | D14: 15943.97 | E14: 15895.33 | F14: 15848.27 | G14: 15799.63 | H14: 15991.03 | I14: 16039.67 | J14: 16086.73 | K14: 15992.6 | L14: 15896.9
A15: 6 | B15: Nifty PSE | C15: 3663.1 | D15: 3661.75 | E15: 3652.75 | F15: 3642.40 | G15: 3633.40 | H15: 3672.10 | I15: 3681.10 | J15: 3691.45 | K15: 3670.75 | L15: 3651.4
A16: 7 | B16: Nifty Midcap 50 | C16: 4928.95 | D16: 4936.63 | E16: 4914.87 | F16: 4900.78 | G16: 4879.02 | H16: 4950.72 | I16: 4972.48 | J16: 4986.57 | K16: 4958.4 | L16: 4922.55
A17: 8 | B17: ABB | C17: 1652 | D17: 1640.67 | E17: 1616.33 | F17: 1580.67 | G17: 1556.33 | H17: 1676.33 | I17: 1700.67 | J17: 1736.33 | K17: 1665 | L17: 1605 | M17: 1.84959
A18: 9 | B18: ACC | C18: 1576.75 | D18: 1576.93 | E18: 1563.87 | F18: 1550.98 | G18: 1537.92 | H18: 1589.82 | I18: 1602.88 | J18: 1615.77 | K18: 1590 | L18: 1564.05 | M18: 8.39957
A19: 10 | B19: AUBANK | C19: 694.55 | D19: 696.77 | E19: 690.58 | F19: 686.62 | G19: 680.43 | H19: 700.73 | I19: 706.92 | J19: 710.88 | K19: 702.95 | L19: 692.8 | M19: 0.3879
A20: 11 | B20: ADANIPORTS | C20: 414.9 | D20: 415.17 | E20: 413.08 | F20: 411.27 | G20: 409.18 | H20: 416.98 | I20: 419.07 | J20: 420.88 | K20: 417.25 | L20: 413.35 | M20: 11.01623
A21: 12 | B21: ADANIPOWER | C21: 65.35 | D21: 65.65 | E21: 64.40 | F21: 63.45 | G21: 62.20 | H21: 66.60 | I21: 67.85 | J21: 68.80 | K21: 66.9 | L21: 64.7 | M21: 229.77698
A22: 13 | B22: ABCAPITAL | C22: 94.05 | D22: 93.65 | E22: 92.80 | F22: 91.55 | G22: 90.70 | H22: 94.90 | I22: 95.75 | J22: 97.00 | K22: 94.5 | L22: 92.4 | M22: 10.17863
A23: 14 | B23: ABFRL | C23: 211.2 | D23: 212.52 | E23: 208.28 | F23: 205.37 | G23: 201.13 | H23: 215.43 | I23: 219.67 | J23: 222.58 | K23: 216.75 | L23: 209.6 | M23: 1.63745
A24: 15 | B24: AJANTPHARM | C24: 946.3 | D24: 947.77 | E24: 920.53 | F24: 894.77 | G24: 867.53 | H24: 973.53 | I24: 1000.77 | J24: 1026.53 | K24: 975 | L24: 922 | M24: 1.40061
A25: 16 | B25: ALKEM | C25: 1726.4 | D25: 1721.33 | E25: 1708.72 | F25: 1691.03 | G25: 1678.42 | H25: 1739.02 | I25: 1751.63 | J25: 1769.32 | K25: 1733.95 | L25: 1703.65 | M25: 0.06533
A26: 17 | B26: AMARAJABAT | C26: 648.2 | D26: 644.90 | E26: 637.30 | F26: 626.40 | G26: 618.80 | H26: 655.80 | I26: 663.40 | J26: 674.30 | K26: 652.5 | L26: 634 | M26: 7.30879
A27: 18 | B27: AMBUJACEM | C27: 216.1 | D27: 216.03 | E27: 214.57 | F27: 213.03 | G27: 211.57 | H27: 217.57 | I27: 219.03 | J27: 220.57 | K27: 217.5 | L27: 214.5 | M27: 20.31484
A28: 19 | B28: APOLLOHOSP | C28: 1325.45 | D28: 1332.43 | E28: 1315.22 | F28: 1304.98 | G28: 1287.77 | H28: 1342.67 | I28: 1359.88 | J28: 1370.12 | K28: 1349.65 | L28: 1322.2 | M28: 3.69704
A29: 20 | B29: APOLLOTYRE | C29: 199.4 | D29: 200.00 | E29: 198.40 | F29: 197.40 | G29: 195.80 | H29: 201.00 | I29: 202.60 | J29: 203.60 | K29: 201.6 | L29: 199 | M29: 11.12054
A30: 21 | B30: ASHOKLEY | C30: 89.95 | D30: 89.80 | E30: 89.05 | F30: 88.15 | G30: 87.40 | H30: 90.70 | I30: 91.45 | J30: 92.35 | K30: 90.55 | L30: 88.9 | M30: 125.28964
A31: 22 | B31: ASIANPAINT | C31: 1359.7 | D31: 1359.07 | E31: 1351.78 | F31: 1343.87 | G31: 1336.58 | H31: 1366.98 | I31: 1374.27 | J31: 1382.18 | K31: 1366.35 | L31: 1351.15 | M31: 9.02077
A32: 23 | B32: AUROPHARMA | C32: 605.1 | D32: 602.12 | E32: 595.98 | F32: 586.87 | G32: 580.73 | H32: 611.23 | I32: 617.37 | J32: 626.48 | K32: 608.25 | L32: 593 | M32: 38.52443
A33: 24 | B33: DMART | C33: 1433 | D33: 1445.33 | E33: 1415.67 | F33: 1398.33 | G33: 1368.67 | H33: 1462.67 | I33: 1492.33 | J33: 1509.67 | K33: 1475 | L33: 1428 | M33: 2.64148
A34: 25 | B34: AXISBANK | C34: 808.85 | D34: 808.78 | E34: 804.37 | F34: 799.88 | G34: 795.47 | H34: 813.27 | I34: 817.68 | J34: 822.17 | K34: 813.2 | L34: 804.3 | M34: 55.53273
A35: 26 | B35: BAJAJ-AUTO | C35: 2894.8 | D35: 2893.60 | E35: 2878.20 | F35: 2861.60 | G35: 2846.20 | H35: 2910.20 | I35: 2925.60 | J35: 2942.20 | K35: 2909 | L35: 2877 | M35: 2.49409
A36: 27 | B36: BAJFINANCE | C36: 3732.5 | D36: 3729.18 | E36: 3708.47 | F36: 3684.43 | G36: 3663.72 | H36: 3753.22 | I36: 3773.93 | J36: 3797.97 | K36: 3749.9 | L36: 3705.15 | M36: 7.43616
A37: 28 | B37: BAJAJFINSV | C37: 8537.55 | D37: 8504.55 | E37: 8453.00 | F37: 8368.45 | G37: 8316.90 | H37: 8589.10 | I37: 8640.65 | J37: 8725.20 | K37: 8556.1 | L37: 8420 | M37: 1.44946
A38: 29 | B38: BAJAJHLDNG | C38: 3711.6 | D38: 3718.83 | E38: 3687.77 | F38: 3663.93 | G38: 3632.87 | H38: 3742.67 | I38: 3773.73 | J38: 3797.57 | K38: 3749.9 | L38: 3695 | M38: 0.27677
A39: 30 | B39: BALKRISIND | C39: 751.55 | D39: 751.27 | E39: 745.68 | F39: 739.82 | G39: 734.23 | H39: 757.13 | I39: 762.72 | J39: 768.58 | K39: 756.85 | L39: 745.4 | M39: 3.98564
A40: 31 | B40: BANDHANBNK | C40: 559.3 | D40: 561.37 | E40: 554.63 | F40: 549.97 | G40: 543.23 | H40: 566.03 | I40: 572.77 | J40: 577.43 | K40: 568.1 | L40: 556.7 | M40: 8.86461
A41: 32 | B41: BANKBARODA | C41: 129.4 | D41: 128.80 | E41: 126.60 | F41: 123.80 | G41: 121.60 | H41: 131.60 | I41: 133.80 | J41: 136.60 | K41: 131 | L41: 126 | M41: 445.86582
A42: 33 | B42: BANKINDIA | C42: 94.5 | D42: 94.55 | E42: 93.30 | F42: 92.10 | G42: 90.85 | H42: 95.75 | I42: 97.00 | J42: 98.20 | K42: 95.8 | L42: 93.35 | M42: 153.69281
A43: 34 | B43: BATAINDIA | C43: 1457.25 | D43: 1459.47 | E43: 1450.93 | F43: 1444.62 | G43: 1436.08 | H43: 1465.78 | I43: 1474.32 | J43: 1480.63 | K43: 1468 | L43: 1453.15 | M43: 2.24249
A44: 35 | B44: BERGEPAINT | C44: 320.45 | D44: 320.37 | E44: 318.58 | F44: 316.72 | G44: 314.93 | H44: 322.23 | I44: 324.02 | J44: 325.88 | K44: 322.15 | L44: 318.5 | M44: 2.90451
A45: 36 | B45: BEL | C45: 113.6 | D45: 113.47 | E45: 112.48 | F45: 111.37 | G45: 110.38 | H45: 114.58 | I45: 115.57 | J45: 116.68 | K45: 114.45 | L45: 112.35 | M45: 40.62454
A46: 37 | B46: BHARATFORG | C46: 475.95 | D46: 473.32 | E46: 464.83 | F46: 453.72 | G46: 445.23 | H46: 484.43 | I46: 492.92 | J46: 504.03 | K46: 481.8 | L46: 462.2 | M46: 19.88905
A47: 38 | B47: BHEL | C47: 73.1 | D47: 73.07 | E47: 72.48 | F47: 71.87 | G47: 71.28 | H47: 73.68 | I47: 74.27 | J47: 74.88 | K47: 73.65 | L47: 72.45 | M47: 50.04601
A48: 39 | B48: BPCL | C48: 380 | D48: 380.82 | E48: 377.63 | F48: 375.27 | G48: 372.08 | H48: 383.18 | I48: 386.37 | J48: 388.73 | K48: 384 | L48: 378.45 | M48: 20.84424
A49: 40 | B49: BHARTIARTL | C49: 362.75 | D49: 360.25 | E49: 355.50 | F49: 348.25 | G49: 343.50 | H49: 367.50 | I49: 372.25 | J49: 379.50 | K49: 365 | L49: 353 | M49: 84.07402
A50: 41 | B50: INFRATEL | C50: 263.1 | D50: 263.78 | E50: 261.07 | F50: 259.03 | G50: 256.32 | H50: 265.82 | I50: 268.53 | J50: 270.57 | K50: 266.5 | L50: 261.75 | M50: 16.45218
A51: 42 | B51: BIOCON | C51: 248.95 | D51: 248.90 | E51: 246.85 | F51: 244.75 | G51: 242.70 | H51: 251.00 | I51: 253.05 | J51: 255.15 | K51: 250.95 | L51: 246.8 | M51: 16.46732
A52: 43 | B52: BBTC | C52: 972.2 | D52: 964.40 | E52: 945.80 | F52: 919.40 | G52: 900.80 | H52: 990.80 | I52: 1009.40 | J52: 1035.80 | K52: 983 | L52: 938 | M52: 2.00905
A53: 44 | B53: BOSCHLTD | C53: 16882.3 | D53: 16830.93 | E53: 16672.87 | F53: 16463.43 | G53: 16305.37 | H53: 17040.37 | I53: 17198.43 | J53: 17407.87 | K53: 16989 | L53: 16621.5 | M53: 0.09836
A54: 45 | B54: BRITANNIA | C54: 2841.35 | D54: 2826.78 | E54: 2803.57 | F54: 2765.78 | G54: 2742.57 | H54: 2864.57 | I54: 2887.78 | J54: 2925.57 | K54: 2850 | L54: 2789 | M54: 3.46395
A55: 46 | B55: CADILAHC | C55: 236.75 | D55: 236.87 | E55: 235.13 | F55: 233.52 | G55: 231.78 | H55: 238.48 | I55: 240.22 | J55: 241.83 | K55: 238.6 | L55: 235.25 | M55: 4.50557
A56: 47 | B56: CANBK | C56: 287.15 | D56: 288.35 | E56: 283.25 | F56: 279.35 | G56: 274.25 | H56: 292.25 | I56: 297.35 | J56: 301.25 | K56: 293.45 | L56: 284.45 | M56: 73.93529
A57: 48 | B57: CASTROLIND | C57: 132 | D57: 131.83 | E57: 130.67 | F57: 129.33 | G57: 128.17 | H57: 133.17 | I57: 134.33 | J57: 135.67 | K57: 133 | L57: 130.5 | M57: 16.5982
A58: 49 | B58: CHOLAFIN | C58: 291.7 | D58: 291.50 | E58: 288.55 | F58: 285.40 | G58: 282.45 | H58: 294.65 | I58: 297.60 | J58: 300.75 | K58: 294.45 | L58: 288.35 | M58: 8.3485
A59: 50 | B59: CIPLA | C59: 551.55 | D59: 552.60 | E59: 549.55 | F59: 547.55 | G59: 544.50 | H59: 554.60 | I59: 557.65 | J59: 559.65 | K59: 555.65 | L59: 550.6 | M59: 6.39531
A60: 51 | B60: COALINDIA | C60: 251.1 | D60: 251.13 | E60: 249.42 | F60: 247.73 | G60: 246.02 | H60: 252.82 | I60: 254.53 | J60: 256.22 | K60: 252.85 | L60: 249.45 | M60: 25.55817
A61: 52 | B61: COLPAL | C61: 1151.5 | D61: 1154.27 | E61: 1144.03 | F61: 1136.57 | G61: 1126.33 | H61: 1161.73 | I61: 1171.97 | J61: 1179.43 | K61: 1164.5 | L61: 1146.8 | M61: 2.89112
A62: 53 | B62: CONCOR | C62: 573 | D62: 574.13 | E62: 568.32 | F62: 563.63 | G62: 557.82 | H62: 578.82 | I62: 584.63 | J62: 589.32 | K62: 579.95 | L62: 569.45 | M62: 3.48097
A63: 54 | B63: COROMANDEL | C63: 423.15 | D63: 422.52 | E63: 419.03 | F63: 414.92 | G63: 411.43 | H63: 426.63 | I63: 430.12 | J63: 434.23 | K63: 426 | L63: 418.4 | M63: 0.56383
A64: 55 | B64: CROMPTON | C64: 233.55 | D64: 234.55 | E64: 231.10 | F64: 228.65 | G64: 225.20 | H64: 237.00 | I64: 240.45 | J64: 242.90 | K64: 238 | L64: 232.1 | M64: 1.61758
A65: 56 | B65: CUMMINSIND | C65: 760.3 | D65: 757.93 | E65: 749.87 | F65: 739.43 | G65: 731.37 | H65: 768.37 | I65: 776.43 | J65: 786.87 | K65: 766 | L65: 747.5 | M65: 5.04244
A66: 57 | B66: DLF | C66: 194.6 | D66: 194.67 | E66: 192.43 | F66: 190.27 | G66: 188.03 | H66: 196.83 | I66: 199.07 | J66: 201.23 | K66: 196.9 | L66: 192.5 | M66: 98.37342
A67: 58 | B67: DABUR | C67: 402.95 | D67: 403.80 | E67: 399.95 | F67: 396.95 | G67: 393.10 | H67: 406.80 | I67: 410.65 | J67: 413.65 | K67: 407.65 | L67: 400.8 | M67: 19.81032
A68: 59 | B68: DHFL | C68: 83.2 | D68: 83.78 | E68: 80.97 | F68: 78.73 | G68: 75.92 | H68: 86.02 | I68: 88.83 | J68: 91.07 | K68: 86.6 | L68: 81.55 | M68: 329.55058
A69: 60 | B69: DBL | C69: 484.75 | D69: 485.73 | E69: 477.27 | F69: 469.78 | G69: 461.32 | H69: 493.22 | I69: 501.68 | J69: 509.17 | K69: 494.2 | L69: 478.25 | M69: 3.54591
A70: 61 | B70: DISHTV | C70: 31.55 | D70: 32.08 | E70: 30.47 | F70: 29.38 | G70: 27.77 | H70: 33.17 | I70: 34.78 | J70: 35.87 | K70: 33.7 | L70: 31 | M70: 533.58614
A71: 62 | B71: DIVISLAB | C71: 1619.8 | D71: 1623.57 | E71: 1608.18 | F71: 1596.57 | G71: 1581.18 | H71: 1635.18 | I71: 1650.57 | J71: 1662.18 | K71: 1638.95 | L71: 1611.95 | M71: 2.14179
A72: 63 | B72: DRREDDY | C72: 2602.4 | D72: 2605.15 | E72: 2590.30 | F72: 2578.20 | G72: 2563.35 | H72: 2617.25 | I72: 2632.10 | J72: 2644.20 | K72: 2620 | L72: 2593.05 | M72: 3.681
A73: 64 | B73: EDELWEISS | C73: 172.05 | D73: 172.17 | E73: 169.23 | F73: 166.42 | G73: 163.48 | H73: 174.98 | I73: 177.92 | J73: 180.73 | K73: 175.1 | L73: 169.35 | M73: 10.13058
A74: 65 | B74: EICHERMOT | C74: 19825.4 | D74: 19852.13 | E74: 19609.27 | F74: 19393.13 | G74: 19150.27 | H74: 20068.27 | I74: 20311.13 | J74: 20527.27 | K74: 20095 | L74: 19636 | M74: 1.05134
A75: 66 | B75: ENDURANCE | C75: 1118.65 | D75: 1111.20 | E75: 1097.45 | F75: 1076.25 | G75: 1062.50 | H75: 1132.40 | I75: 1146.15 | J75: 1167.35 | K75: 1124.95 | L75: 1090 | M75: 1.09425
A76: 67 | B76: ENGINERSIN | C76: 120 | D76: 120.88 | E76: 118.67 | F76: 117.33 | G76: 115.12 | H76: 122.22 | I76: 124.43 | J76: 125.77 | K76: 123.1 | L76: 119.55 | M76: 15.77779
A77: 68 | B77: ESCORTS | C77: 570.9 | D77: 573.28 | E77: 564.62 | F77: 558.33 | G77: 549.67 | H77: 579.57 | I77: 588.23 | J77: 594.52 | K77: 581.95 | L77: 567 | M77: 23.75051
A78: 69 | B78: EXIDEIND | C78: 206.5 | D78: 206.32 | E78: 203.73 | F78: 200.97 | G78: 198.38 | H78: 209.08 | I78: 211.67 | J78: 214.43 | K78: 208.9 | L78: 203.55 | M78: 14.6748
A79: 70 | B79: FEDERALBNK | C79: 108.85 | D79: 109.17 | E79: 108.13 | F79: 107.42 | G79: 106.38 | H79: 109.88 | I79: 110.92 | J79: 111.63 | K79: 110.2 | L79: 108.45 | M79: 63.18349
A80: 71 | B80: FCONSUMER | C80: 41.5 | D80: 41.53 | E80: 40.97 | F80: 40.43 | G80: 39.87 | H80: 42.07 | I80: 42.63 | J80: 43.17 | K80: 42.1 | L80: 41 | M80: 9.77235
A81: 72 | B81: FRETAIL | C81: 471.4 | D81: 469.90 | E81: 465.80 | F81: 460.20 | G81: 456.10 | H81: 475.50 | I81: 479.60 | J81: 485.20 | K81: 474 | L81: 464.3 | M81: 0.76393
A82: 73 | B82: GAIL | C82: 307.8 | D82: 307.12 | E82: 304.93 | F82: 302.07 | G82: 299.88 | H82: 309.98 | I82: 312.17 | J82: 315.03 | K82: 309.3 | L82: 304.25 | M82: 39.83356
A83: 74 | B83: GMRINFRA | C83: 15.1 | D83: 15.13 | E83: 15.02 | F83: 14.93 | G83: 14.82 | H83: 15.22 | I83: 15.33 | J83: 15.42 | K83: 15.25 | L83: 15.05 | M83: 49.82805
A84: 75 | B84: GICRE | C84: 229.7 | D84: 229.00 | E84: 224.60 | F84: 219.50 | G84: 215.10 | H84: 234.10 | I84: 238.50 | J84: 243.60 | K84: 233.4 | L84: 223.9 | M84: 10.24319
A85: 76 | B85: GSKCONS | C85: 7797.75 | D85: 7802.92 | E85: 7775.83 | F85: 7753.92 | G85: 7726.83 | H85: 7824.83 | I85: 7851.92 | J85: 7873.83 | K85: 7830 | L85: 7781 | M85: 0.06249
A86: 77 | B86: GLENMARK | C86: 440.2 | D86: 441.87 | E86: 437.88 | F86: 435.57 | G86: 431.58 | H86: 444.18 | I86: 448.17 | J86: 450.48 | K86: 445.85 | L86: 439.55 | M86: 6.73117
A87: 78 | B87: GODREJAGRO | C87: 499.25 | D87: 499.95 | E87: 495.90 | F87: 492.55 | G87: 488.50 | H87: 503.30 | I87: 507.35 | J87: 510.70 | K87: 504 | L87: 496.6 | M87: 0.90854
A88: 79 | B88: GODREJCP | C88: 674.7 | D88: 672.48 | E88: 665.77 | F88: 656.83 | G88: 650.12 | H88: 681.42 | I88: 688.13 | J88: 697.07 | K88: 679.2 | L88: 663.55 | M88: 8.04769
A89: 80 | B89: GODREJIND | C89: 482.55 | D89: 483.83 | E89: 478.72 | F89: 474.88 | G89: 469.77 | H89: 487.67 | I89: 492.78 | J89: 496.62 | K89: 488.95 | L89: 480 | M89: 0.7005
A90: 81 | B90: GRAPHITE | C90: 323.05 | D90: 325.92 | E90: 319.18 | F90: 315.32 | G90: 308.58 | H90: 329.78 | I90: 336.52 | J90: 340.38 | K90: 332.65 | L90: 322.05 | M90: 6.72026
A91: 82 | B91: GRASIM | C91: 941.6 | D91: 937.67 | E91: 929.53 | F91: 917.47 | G91: 909.33 | H91: 949.73 | I91: 957.87 | J91: 969.93 | K91: 945.8 | L91: 925.6 | M91: 14.05857
A92: 83 | B92: GRUH | C92: 290.7 | D92: 290.88 | E92: 287.27 | F92: 283.83 | G92: 280.22 | H92: 294.32 | I92: 297.93 | J92: 301.37 | K92: 294.5 | L92: 287.45 | M92: 6.66986
A93: 84 | B93: GSPL | C93: 194.75 | D93: 194.97 | E93: 192.28 | F93: 189.82 | G93: 187.13 | H93: 197.43 | I93: 200.12 | J93: 202.58 | K93: 197.65 | L93: 192.5 | M93: 0.60138
A94: 85 | B94: HEG | C94: 1405.15 | D94: 1421.40 | E94: 1384.75 | F94: 1364.35 | G94: 1327.70 | H94: 1441.80 | I94: 1478.45 | J94: 1498.85 | K94: 1458.05 | L94: 1401 | M94: 1.72793
A95: 86 | B95: HCLTECH | C95: 1040.75 | D95: 1041.92 | E95: 1032.63 | F95: 1024.52 | G95: 1015.23 | H95: 1050.03 | I95: 1059.32 | J95: 1067.43 | K95: 1051.2 | L95: 1033.8 | M95: 12.76519
A96: 87 | B96: HDFCAMC | C96: 2011.95 | D96: 2015.62 | E96: 1992.33 | F96: 1972.72 | G96: 1949.43 | H96: 2035.23 | I96: 2058.52 | J96: 2078.13 | K96: 2038.9 | L96: 1996 | M96: 1.07722
A97: 88 | B97: HDFCBANK | C97: 2483.8 | D97: 2484.57 | E97: 2471.23 | F97: 2458.67 | G97: 2445.33 | H97: 2497.13 | I97: 2510.47 | J97: 2523.03 | K97: 2497.9 | L97: 2472 | M97: 19.98491
A98: 89 | B98: HDFCLIFE | C98: 489.1 | D98: 486.77 | E98: 482.03 | F98: 474.97 | G98: 470.23 | H98: 493.83 | I98: 498.57 | J98: 505.63 | K98: 491.5 | L98: 479.7 | M98: 21.9293
A99: 90 | B99: HAVELLS | C99: 783.8 | D99: 786.50 | E99: 779.00 | F99: 774.20 | G99: 766.70 | H99: 791.30 | I99: 798.80 | J99: 803.60 | K99: 794 | L99: 781.7 | M99: 9.24125
A100: 91 | B100: HEROMOTOCO | C100: 2606.15 | D100: 2603.05 | E100: 2588.10 | F100: 2570.05 | G100: 2555.10 | H100: 2621.10 | I100: 2636.05 | J100: 2654.10 | K100: 2618 | L100: 2585 | M100: 4.4671
A101: 92 | B101: HEXAWARE | C101: 372.85 | D101: 375.38 | E101: 368.52 | F101: 364.18 | G101: 357.32 | H101: 379.72 | I101: 386.58 | J101: 390.92 | K101: 382.25 | L101: 371.05 | M101: 9.79513
A102: 93 | B102: HINDALCO | C102: 206.9 | D102: 207.55 | E102: 205.60 | F102: 204.30 | G102: 202.35 | H102: 208.85 | I102: 210.80 | J102: 212.10 | K102: 209.5 | L102: 206.25 | M102: 40.32487
A103: 94 | B103: HINDPETRO | C103: 288.65 | D103: 288.32 | E103: 286.98 | F103: 285.32 | G103: 283.98 | H103: 289.98 | I103: 291.32 | J103: 292.98 | K103: 289.65 | L103: 286.65 | M103: 23.0218
A104: 95 | B104: HINDUNILVR | C104: 1793.6 | D104: 1790.95 | E104: 1783.20 | F104: 1772.80 | G104: 1765.05 | H104: 1801.35 | I104: 1809.10 | J104: 1819.50 | K104: 1798.7 | L104: 1780.55 | M104: 6.46633
A105: 96 | B105: HINDZINC | C105: 239.85 | D105: 239.47 | E105: 237.18 | F105: 234.52 | G105: 232.23 | H105: 242.13 | I105: 244.42 | J105: 247.08 | K105: 241.75 | L105: 236.8 | M105: 8.9443
A106: 97 | B106: HUDCO | C106: 42.15 | D106: 42.25 | E106: 41.95 | F106: 41.75 | G106: 41.45 | H106: 42.45 | I106: 42.75 | J106: 42.95 | K106: 42.55 | L106: 42.05 | M106: 5.6055
A107: 98 | B107: HDFC | C107: 2280.25 | D107: 2277.22 | E107: 2268.13 | F107: 2256.02 | G107: 2246.93 | H107: 2289.33 | I107: 2298.42 | J107: 2310.53 | K107: 2286.3 | L107: 2265.1 | M107: 15.97337
A108: 99 | B108: ICICIBANK | C108: 436.2 | D108: 437.23 | E108: 433.07 | F108: 429.93 | G108: 425.77 | H108: 440.37 | I108: 444.53 | J108: 447.67 | K108: 441.4 | L108: 434.1 | M108: 118.10688
A109: 100 | B109: ICICIGI | C109: 1123.8 | D109: 1120.82 | E109: 1114.98 | F109: 1106.17 | G109: 1100.33 | H109: 1129.63 | I109: 1135.47 | J109: 1144.28 | K109: 1126.65 | L109: 1112 | M109: 5.20416
A110: 101 | B110: ICICIPRULI | C110: 393.9 | D110: 392.52 | E110: 388.53 | F110: 383.17 | G110: 379.18 | H110: 397.88 | I110: 401.87 | J110: 407.23 | K110: 396.5 | L110: 387.15 | M110: 19.2982
A111: 102 | B111: IDBI | C111: 37.65 | D111: 37.43 | E111: 37.02 | F111: 36.38 | G111: 35.97 | H111: 38.07 | I111: 38.48 | J111: 39.12 | K111: 37.85 | L111: 36.8 | M111: 70.15717
A112: 103 | B112: IDFCFIRSTB | C112: 45 | D112: 45.15 | E112: 44.55 | F112: 44.10 | G112: 43.50 | H112: 45.60 | I112: 46.20 | J112: 46.65 | K112: 45.75 | L112: 44.7 | M112: 92.91774
A113: 104 | B113: ITC | C113: 277.65 | D113: 277.03 | E113: 275.82 | F113: 273.98 | G113: 272.77 | H113: 278.87 | I113: 280.08 | J113: 281.92 | K113: 278.25 | L113: 275.2 | M113: 96.97597
A114: 105 | B114: IBULHSGFIN | C114: 703.85 | D114: 708.37 | E114: 687.73 | F114: 671.62 | G114: 650.98 | H114: 724.48 | I114: 745.12 | J114: 761.23 | K114: 729 | L114: 692.25 | M114: 309.34915
A115: 106 | B115: IBVENTURES | C115: 322.95 | D115: 320.35 | E115: 309.70 | F115: 296.45 | G115: 285.80 | H115: 333.60 | I115: 344.25 | J115: 357.50 | K115: 331 | L115: 307.1 | M115: 41.96158
A116: 107 | B116: INDIANB | C116: 260.15 | D116: 261.25 | E116: 258.00 | F116: 255.85 | G116: 252.60 | H116: 263.40 | I116: 266.65 | J116: 268.80 | K116: 264.5 | L116: 259.1 | M116: 9.44713
A117: 108 | B117: INDHOTEL | C117: 152.15 | D117: 152.18 | E117: 151.42 | F117: 150.68 | G117: 149.92 | H117: 152.92 | I117: 153.68 | J117: 154.42 | K117: 152.95 | L117: 151.45 | M117: 2.49666
A118: 109 | B118: IOC | C118: 156.55 | D118: 156.32 | E118: 155.53 | F118: 154.52 | G118: 153.73 | H118: 157.33 | I118: 158.12 | J118: 159.13 | K118: 157.1 | L118: 155.3 | M118: 34.33538
A119: 110 | B119: IGL | C119: 302.5 | D119: 303.52 | E119: 300.68 | F119: 298.87 | G119: 296.03 | H119: 305.33 | I119: 308.17 | J119: 309.98 | K119: 306.35 | L119: 301.7 | M119: 17.57766
A120: 111 | B120: INDUSINDBK | C120: 1493.1 | D120: 1490.97 | E120: 1468.43 | F120: 1443.77 | G120: 1421.23 | H120: 1515.63 | I120: 1538.17 | J120: 1562.83 | K120: 1513.5 | L120: 1466.3 | M120: 47.99912
A121: 112 | B121: NAUKRI | C121: 2290.3 | D121: 2286.77 | E121: 2263.53 | F121: 2236.77 | G121: 2213.53 | H121: 2313.53 | I121: 2336.77 | J121: 2363.53 | K121: 2310 | L121: 2260 | M121: 1.16118
A122: 113 | B122: INFY | C122: 733.8 | D122: 732.93 | E122: 729.47 | F122: 725.13 | G122: 721.67 | H122: 737.27 | I122: 740.73 | J122: 745.07 | K122: 736.4 | L122: 728.6 | M122: 32.74064
A123: 114 | B123: INDIGO | C123: 1635.75 | D123: 1618.82 | E123: 1590.63 | F123: 1545.52 | G123: 1517.33 | H123: 1663.93 | I123: 1692.12 | J123: 1737.23 | K123: 1647 | L123: 1573.7 | M123: 17.67038
A124: 115 | B124: JSWENERGY | C124: 71.95 | D124: 72.33 | E124: 71.22 | F124: 70.48 | G124: 69.37 | H124: 73.07 | I124: 74.18 | J124: 74.92 | K124: 73.45 | L124: 71.6 | M124: 5.5229
A125: 116 | B125: JSWSTEEL | C125: 275.05 | D125: 275.62 | E125: 273.23 | F125: 271.42 | G125: 269.03 | H125: 277.43 | I125: 279.82 | J125: 281.63 | K125: 278 | L125: 273.8 | M125: 32.66606
A126: 117 | B126: JINDALSTEL | C126: 142.1 | D126: 143.13 | E126: 139.97 | F126: 137.83 | G126: 134.67 | H126: 145.27 | I126: 148.43 | J126: 150.57 | K126: 146.3 | L126: 141 | M126: 122.08125
A127: 118 | B127: JUBLFOOD | C127: 1259.05 | D127: 1260.95 | E127: 1251.90 | F127: 1244.75 | G127: 1235.70 | H127: 1268.10 | I127: 1277.15 | J127: 1284.30 | K127: 1270 | L127: 1253.8 | M127: 8.99521
A128: 119 | B128: JUBILANT | C128: 496.1 | D128: 496.72 | E128: 492.93 | F128: 489.77 | G128: 485.98 | H128: 499.88 | I128: 503.67 | J128: 506.83 | K128: 500.5 | L128: 493.55 | M128: 1.19244
A129: 120 | B129: KOTAKBANK | C129: 1497.8 | D129: 1492.55 | E129: 1480.25 | F129: 1462.70 | G129: 1450.40 | H129: 1510.10 | I129: 1522.40 | J129: 1539.95 | K129: 1504.85 | L129: 1475 | M129: 30.25925
A130: 121 | B130: L&TFH | C130: 120.05 | D130: 120.42 | E130: 118.93 | F130: 117.82 | G130: 116.33 | H130: 121.53 | I130: 123.02 | J130: 124.13 | K130: 121.9 | L130: 119.3 | M130: 79.39811
A131: 122 | B131: LTTS | C131: 1698.4 | D131: 1702.97 | E131: 1675.98 | F131: 1653.57 | G131: 1626.58 | H131: 1725.38 | I131: 1752.37 | J131: 1774.78 | K131: 1729.95 | L131: 1680.55 | M131: 1.68331
A132: 123 | B132: LICHSGFIN | C132: 568.75 | D132: 569.25 | E132: 565.90 | F132: 563.05 | G132: 559.70 | H132: 572.10 | I132: 575.45 | J132: 578.30 | K132: 572.6 | L132: 566.4 | M132: 10.08095
A133: 124 | B133: LTI | C133: 1655.8 | D133: 1674.60 | E133: 1631.20 | F133: 1606.60 | G133: 1563.20 | H133: 1699.20 | I133: 1742.60 | J133: 1767.20 | K133: 1718 | L133: 1650 | M133: 5.17876
A134: 125 | B134: LT | C134: 1571.7 | D134: 1576.85 | E134: 1563.10 | F134: 1554.50 | G134: 1540.75 | H134: 1585.45 | I134: 1599.20 | J134: 1607.80 | K134: 1590.6 | L134: 1568.25 | M134: 19.81745
A135: 126 | B135: LUPIN | C135: 754.35 | D135: 754.08 | E135: 748.42 | F135: 742.48 | G135: 736.82 | H135: 760.02 | I135: 765.68 | J135: 771.62 | K135: 759.75 | L135: 748.15 | M135: 15.94101
A136: 127 | B136: MRF | C136: 56539.45 | D136: 56613.53 | E136: 56227.07 | F136: 55914.68 | G136: 55528.22 | H136: 56925.92 | I136: 57312.38 | J136: 57624.77 | K136: 57000 | L136: 56301.15 | M136: 0.03757
A137: 128 | B137: MGL | C137: 828.3 | D137: 827.07 | E137: 818.23 | F137: 808.17 | G137: 799.33 | H137: 837.13 | I137: 845.97 | J137: 856.03 | K137: 835.9 | L137: 817 | M137: 2.73766
A138: 129 | B138: M&MFIN | C138: 395.5 | D138: 396.57 | E138: 392.68 | F138: 389.87 | G138: 385.98 | H138: 399.38 | I138: 403.27 | J138: 406.08 | K138: 400.45 | L138: 393.75 | M138: 9.32149
A139: 130 | B139: M&M | C139: 672.15 | D139: 670.55 | E139: 666.90 | F139: 661.65 | G139: 658.00 | H139: 675.80 | I139: 679.45 | J139: 684.70 | K139: 674.2 | L139: 665.3 | M139: 17.77421
A140: 131 | B140: MANAPPURAM | C140: 136.25 | D140: 136.75 | E140: 135.25 | F140: 134.25 | G140: 132.75 | H140: 137.75 | I140: 139.25 | J140: 140.25 | K140: 138.25 | L140: 135.75 | M140: 15.56332
A141: 132 | B141: MRPL | C141: 60.25 | D141: 60.32 | E141: 59.93 | F141: 59.62 | G141: 59.23 | H141: 60.63 | I141: 61.02 | J141: 61.33 | K141: 60.7 | L141: 60 | M141: 3.08836
A142: 133 | B142: MARICO | C142: 374.2 | D142: 373.65 | E142: 371.80 | F142: 369.40 | G142: 367.55 | H142: 376.05 | I142: 377.90 | J142: 380.30 | K142: 375.5 | L142: 371.25 | M142: 19.70504
A143: 134 | B143: MARUTI | C143: 6544.45 | D143: 6547.55 | E143: 6507.10 | F143: 6469.75 | G143: 6429.30 | H143: 6584.90 | I143: 6625.35 | J143: 6662.70 | K143: 6588 | L143: 6510.2 | M143: 5.76449
A144: 135 | B144: MFSL | C144: 415.25 | D144: 416.63 | E144: 411.07 | F144: 406.88 | G144: 401.32 | H144: 420.82 | I144: 426.38 | J144: 430.57 | K144: 422.2 | L144: 412.45 | M144: 8.40005
A145: 136 | B145: MINDTREE | C145: 899.05 | D145: 899.52 | E145: 890.03 | F145: 881.02 | G145: 871.53 | H145: 908.53 | I145: 918.02 | J145: 927.03 | K145: 909 | L145: 890.5 | M145: 6.13031
A146: 137 | B146: MOTHERSUMI | C146: 126.85 | D146: 126.28 | E146: 125.22 | F146: 123.58 | G146: 122.52 | H146: 127.92 | I146: 128.98 | J146: 130.62 | K146: 127.35 | L146: 124.65 | M146: 31.6076
A147: 138 | B147: MPHASIS | C147: 994.4 | D147: 992.18 | E147: 984.42 | F147: 974.43 | G147: 966.67 | H147: 1002.17 | I147: 1009.93 | J147: 1019.92 | K147: 999.95 | L147: 982.2 | M147: 1.09226
A148: 139 | B148: MUTHOOTFIN | C148: 624.65 | D148: 628.87 | E148: 618.03 | F148: 611.42 | G148: 600.58 | H148: 635.48 | I148: 646.32 | J148: 652.93 | K148: 639.7 | L148: 622.25 | M148: 6.80111
A149: 140 | B149: NATCOPHARM | C149: 532.7 | D149: 534.03 | E149: 528.72 | F149: 524.73 | G149: 519.42 | H149: 538.02 | I149: 543.33 | J149: 547.32 | K149: 539.35 | L149: 530.05 | M149: 0.65548
A150: 141 | B150: NBCC | C150: 61.3 | D150: 61.37 | E150: 60.38 | F150: 59.47 | G150: 58.48 | H150: 62.28 | I150: 63.27 | J150: 64.18 | K150: 62.35 | L150: 60.45 | M150: 83.65088
A151: 142 | B151: NHPC | C151: 24.6 | D151: 24.67 | E151: 24.53 | F151: 24.47 | G151: 24.33 | H151: 24.73 | I151: 24.87 | J151: 24.93 | K151: 24.8 | L151: 24.6 | M151: 5.79066
A152: 143 | B152: NMDC | C152: 116.5 | D152: 116.92 | E152: 115.58 | F152: 114.67 | G152: 113.33 | H152: 117.83 | I152: 119.17 | J152: 120.08 | K152: 118.25 | L152: 116 | M152: 21.72542
A153: 144 | B153: NTPC | C153: 143.45 | D153: 143.42 | E153: 142.38 | F153: 141.32 | G153: 140.28 | H153: 144.48 | I153: 145.52 | J153: 146.58 | K153: 144.45 | L153: 142.35 | M153: 57.92826
A154: 145 | B154: NATIONALUM | C154: 50.55 | D154: 50.82 | E154: 50.13 | F154: 49.72 | G154: 49.03 | H154: 51.23 | I154: 51.92 | J154: 52.33 | K154: 51.5 | L154: 50.4 | M154: 63.89058
A155: 146 | B155: OBEROIRLTY | C155: 623.75 | D155: 624.00 | E155: 606.30 | F155: 588.85 | G155: 571.15 | H155: 641.45 | I155: 659.15 | J155: 676.60 | K155: 641.7 | L155: 606.55 | M155: 7.28815
A156: 147 | B156: ONGC | C156: 167.1 | D156: 167.37 | E156: 165.83 | F156: 164.57 | G156: 163.03 | H156: 168.63 | I156: 170.17 | J156: 171.43 | K156: 168.9 | L156: 166.1 | M156: 88.27834
A157: 148 | B157: OIL | C157: 177.7 | D157: 178.02 | E157: 176.83 | F157: 175.97 | G157: 174.78 | H157: 178.88 | I157: 180.07 | J157: 180.93 | K157: 179.2 | L157: 177.15 | M157: 2.39935
A158: 149 | B158: OFSS | C158: 3235.95 | D158: 3238.28 | E158: 3207.67 | F158: 3179.38 | G158: 3148.77 | H158: 3266.57 | I158: 3297.18 | J158: 3325.47 | K158: 3268.9 | L158: 3210 | M158: 0.16163
A159: 150 | B159: PIIND | C159: 1197.95 | D159: 1197.03 | E159: 1186.07 | F159: 1174.18 | G159: 1163.22 | H159: 1208.92 | I159: 1219.88 | J159: 1231.77 | K159: 1208 | L159: 1185.15 | M159: 0.21383
A160: 151 | B160: PNBHOUSING | C160: 780.1 | D160: 779.85 | E160: 775.25 | F160: 770.40 | G160: 765.80 | H160: 784.70 | I160: 789.30 | J160: 794.15 | K160: 784.45 | L160: 775 | M160: 1.42572
A161: 152 | B161: PAGEIND | C161: 20876.9 | D161: 20846.30 | E161: 20767.60 | F161: 20658.30 | G161: 20579.60 | H161: 20955.60 | I161: 21034.30 | J161: 21143.60 | K161: 20925 | L161: 20737 | M161: 0.05585
A162: 153 | B162: PETRONET | C162: 252.65 | D162: 251.55 | E162: 249.60 | F162: 246.55 | G162: 244.60 | H162: 254.60 | I162: 256.55 | J162: 259.60 | K162: 253.5 | L162: 248.5 | M162: 22.67909
A163: 154 | B163: PFIZER | C163: 3423.85 | D163: 3431.97 | E163: 3390.93 | F163: 3358.02 | G163: 3316.98 | H163: 3464.88 | I163: 3505.92 | J163: 3538.83 | K163: 3473 | L163: 3399.05 | M163: 0.16041
A164: 155 | B164: PIDILITIND | C164: 1226.85 | D164: 1229.68 | E164: 1217.17 | F164: 1207.48 | G164: 1194.97 | H164: 1239.37 | I164: 1251.88 | J164: 1261.57 | K164: 1242.2 | L164: 1220 | M164: 7.55871
A165: 156 | B165: PEL | C165: 1949 | D165: 1991.13 | E165: 1881.27 | F165: 1813.53 | G165: 1703.67 | H165: 2058.87 | I165: 2168.73 | J165: 2236.47 | K165: 2101 | L165: 1923.4 | M165: 32.63907
A166: 157 | B166: PFC | C166: 133.05 | D166: 133.30 | E166: 131.60 | F166: 130.15 | G166: 128.45 | H166: 134.75 | I166: 136.45 | J166: 137.90 | K166: 135 | L166: 131.85 | M166: 31.14144
A167: 158 | B167: POWERGRID | C167: 210.2 | D167: 209.57 | E167: 208.33 | F167: 206.47 | G167: 205.23 | H167: 211.43 | I167: 212.67 | J167: 214.53 | K167: 210.8 | L167: 207.7 | M167: 69.32278
A168: 159 | B168: PRESTIGE | C168: 287.75 | D168: 288.92 | E168: 283.83 | F168: 279.92 | G168: 274.83 | H168: 292.83 | I168: 297.92 | J168: 301.83 | K168: 294 | L168: 285 | M168: 3.3187
A169: 160 | B169: PGHH | C169: 10986.8 | D169: 10983.95 | E169: 10877.90 | F169: 10769.00 | G169: 10662.95 | H169: 11092.85 | I169: 11198.90 | J169: 11307.80 | K169: 11090 | L169: 10875.05 | M169: 0.03219
A170: 161 | B170: PNB | C170: 82.05 | D170: 82.28 | E170: 81.27 | F170: 80.48 | G170: 79.47 | H170: 83.07 | I170: 84.08 | J170: 84.87 | K170: 83.3 | L170: 81.5 | M170: 267.64988
A171: 162 | B171: QUESS | C171: 450.8 | D171: 464.28 | E171: 403.17 | F171: 355.53 | G171: 294.42 | H171: 511.92 | I171: 573.03 | J171: 620.67 | K171: 525.4 | L171: 416.65 | M171: 41.52391
A172: 163 | B172: RBLBANK | C172: 654.15 | D172: 655.98 | E172: 648.97 | F172: 643.78 | G172: 636.77 | H172: 661.17 | I172: 668.18 | J172: 673.37 | K172: 663 | L172: 650.8 | M172: 14.77866
A173: 164 | B173: RECLTD | C173: 167.4 | D173: 167.67 | E173: 165.78 | F173: 164.17 | G173: 162.28 | H173: 169.28 | I173: 171.17 | J173: 172.78 | K173: 169.55 | L173: 166.05 | M173: 28.60446
A174: 165 | B174: RAJESHEXPO | C174: 717.95 | D174: 718.10 | E174: 714.35 | F174: 710.75 | G174: 707.00 | H174: 721.70 | I174: 725.45 | J174: 729.05 | K174: 721.85 | L174: 714.5 | M174: 2.43842
A175: 166 | B175: RELCAPITAL | C175: 64.35 | D175: 64.75 | E175: 63.15 | F175: 61.95 | G175: 60.35 | H175: 65.95 | I175: 67.55 | J175: 68.75 | K175: 66.35 | L175: 63.55 | M175: 175.61531
A176: 167 | B176: RELIANCE | C176: 1284 | D176: 1285.00 | E176: 1279.00 | F176: 1274.00 | G176: 1268.00 | H176: 1290.00 | I176: 1296.00 | J176: 1301.00 | K176: 1291 | L176: 1280 | M176: 42.75148
A177: 168 | B177: RELINFRA | C177: 54.65 | D177: 55.02 | E177: 53.33 | F177: 52.02 | G177: 50.33 | H177: 56.33 | I177: 58.02 | J177: 59.33 | K177: 56.7 | L177: 53.7 | M177: 276.00893
A178: 169 | B178: RPOWER | C178: 4.3 | D178: 4.32 | E178: 4.23 | F178: 4.17 | G178: 4.08 | H178: 4.38 | I178: 4.47 | J178: 4.53 | K178: 4.4 | L178: 4.25 | M178: 115.5012
A179: 170 | B179: SBILIFE | C179: 757.4 | D179: 757.40 | E179: 752.55 | F179: 747.70 | G179: 742.85 | H179: 762.25 | I179: 767.10 | J179: 771.95 | K179: 762.25 | L179: 752.55 | M179: 2.71994
A180: 171 | B180: SRF | C180: 3047.7 | D180: 3048.77 | E180: 3029.08 | F180: 3010.47 | G180: 2990.78 | H180: 3067.38 | I180: 3087.07 | J180: 3105.68 | K180: 3068.45 | L180: 3030.15 | M180: 1.46597
A181: 172 | B181: SHREECEM | C181: 21605.25 | D181: 21575.53 | E181: 21378.77 | F181: 21152.28 | G181: 20955.52 | H181: 21802.02 | I181: 21998.78 | J181: 22225.27 | K181: 21772.3 | L181: 21349.05 | M181: 0.31351
A182: 173 | B182: SRTRANSFIN | C182: 1062.85 | D182: 1070.48 | E182: 1050.47 | F182: 1038.08 | G182: 1018.07 | H182: 1082.87 | I182: 1102.88 | J182: 1115.27 | K182: 1090.5 | L182: 1058.1 | M182: 9.91299
A183: 174 | B183: SIEMENS | C183: 1357.65 | D183: 1349.02 | E183: 1336.18 | F183: 1314.72 | G183: 1301.88 | H183: 1370.48 | I183: 1383.32 | J183: 1404.78 | K183: 1361.85 | L183: 1327.55 | M183: 7.82113
A184: 175 | B184: SBIN | C184: 367.4 | D184: 368.17 | E184: 365.43 | F184: 363.47 | G184: 360.73 | H184: 370.13 | I184: 372.87 | J184: 374.83 | K184: 370.9 | L184: 366.2 | M184: 192.52646
A185: 176 | B185: SAIL | C185: 51.9 | D185: 51.77 | E185: 51.33 | F185: 50.77 | G185: 50.33 | H185: 52.33 | I185: 52.77 | J185: 53.33 | K185: 52.2 | L185: 51.2 | M185: 165.30485
A186: 177 | B186: STRTECH | C186: 170.2 | D186: 170.82 | E186: 168.08 | F186: 165.97 | G186: 163.23 | H186: 172.93 | I186: 175.67 | J186: 177.78 | K186: 173.55 | L186: 168.7 | M186: 9.7206
A187: 178 | B187: SPARC | C187: 118.6 | D187: 117.73 | E187: 115.87 | F187: 113.13 | G187: 111.27 | H187: 120.47 | I187: 122.33 | J187: 125.07 | K187: 119.6 | L187: 115 | M187: 4.25999
A188: 179 | B188: SUNPHARMA | C188: 392.1 | D188: 393.78 | E188: 389.52 | F188: 386.93 | G188: 382.67 | H188: 396.37 | I188: 400.63 | J188: 403.22 | K188: 398.05 | L188: 391.2 | M188: 33.08295
A189: 180 | B189: SUNTV | C189: 510.9 | D189: 512.83 | E189: 507.67 | F189: 504.43 | G189: 499.27 | H189: 516.07 | I189: 521.23 | J189: 524.47 | K189: 518 | L189: 509.6 | M189: 14.03921
A190: 181 | B190: SYNGENE | C190: 331.55 | D190: 330.48 | E190: 325.07 | F190: 318.58 | G190: 313.17 | H190: 336.97 | I190: 342.38 | J190: 348.87 | K190: 335.9 | L190: 324 | M190: 1.98754
A191: 182 | B191: TVSMOTOR | C191: 432.35 | D191: 434.08 | E191: 428.47 | F191: 424.58 | G191: 418.97 | H191: 437.97 | I191: 443.58 | J191: 447.47 | K191: 439.7 | L191: 430.2 | M191: 9.98691
A192: 183 | B192: TATACHEM | C192: 617.95 | D192: 619.23 | E192: 615.47 | F192: 612.98 | G192: 609.22 | H192: 621.72 | I192: 625.48 | J192: 627.97 | K192: 623 | L192: 616.75 | M192: 3.35538
A193: 184 | B193: TCS | C193: 2242.65 | D193: 2241.58 | E193: 2231.17 | F193: 2219.68 | G193: 2209.27 | H193: 2253.07 | I193: 2263.48 | J193: 2274.97 | K193: 2252 | L193: 2230.1 | M193: 9.8414
A194: 185 | B194: TATAGLOBAL | C194: 269.65 | D194: 270.42 | E194: 267.83 | F194: 266.02 | G194: 263.43 | H194: 272.23 | I194: 274.82 | J194: 276.63 | K194: 273 | L194: 268.6 | M194: 20.67702
A195: 186 | B195: TATAMTRDVR | C195: 80.7 | D195: 80.93 | E195: 79.37 | F195: 78.03 | G195: 76.47 | H195: 82.27 | I195: 83.83 | J195: 85.17 | K195: 82.5 | L195: 79.6 | M195: 41.50922
A196: 187 | B196: TATAMOTORS | C196: 165.2 | D196: 164.98 | E196: 162.22 | F196: 159.23 | G196: 156.47 | H196: 167.97 | I196: 170.73 | J196: 173.72 | K196: 167.75 | L196: 162 | M196: 195.12938
A197: 188 | B197: TATAPOWER | C197: 72.15 | D197: 72.67 | E197: 71.28 | F197: 70.42 | G197: 69.03 | H197: 73.53 | I197: 74.92 | J197: 75.78 | K197: 74.05 | L197: 71.8 | M197: 45.70483
A198: 189 | B198: TATASTEEL | C198: 495.3 | D198: 497.23 | E198: 491.82 | F198: 488.33 | G198: 482.92 | H198: 500.72 | I198: 506.13 | J198: 509.62 | K198: 502.65 | L198: 493.75 | M198: 72.63059
A199: 190 | B199: TECHM | C199: 700.6 | D199: 701.45 | E199: 696.15 | F199: 691.70 | G199: 686.40 | H199: 705.90 | I199: 711.20 | J199: 715.65 | K199: 706.75 | L199: 697 | M199: 28.38357
A200: 191 | B200: NIACL | C200: 148 | D200: 148.83 | E200: 146.87 | F200: 145.73 | G200: 143.77 | H200: 149.97 | I200: 151.93 | J200: 153.07 | K200: 150.8 | L200: 147.7 | M200: 0.71404
A201: 192 | B201: RAMCOCEM | C201: 787.55 | D201: 790.40 | E201: 780.25 | F201: 772.95 | G201: 762.80 | H201: 797.70 | I201: 807.85 | J201: 815.15 | K201: 800.55 | L201: 783.1 | M201: 1.50095
A202: 193 | B202: TITAN | C202: 1290.35 | D202: 1299.38 | E202: 1276.97 | F202: 1263.58 | G202: 1241.17 | H202: 1312.77 | I202: 1335.18 | J202: 1348.57 | K202: 1321.8 | L202: 1286 | M202: 29.01447
A203: 194 | B203: TORNTPHARM | C203: 1545.15 | D203: 1545.60 | E203: 1534.60 | F203: 1524.05 | G203: 1513.05 | H203: 1556.15 | I203: 1567.15 | J203: 1577.70 | K203: 1556.6 | L203: 1535.05 | M203: 1.65531
A204: 195 | B204: TORNTPOWER | C204: 303.7 | D204: 306.23 | E204: 299.47 | F204: 295.23 | G204: 288.47 | H204: 310.47 | I204: 317.23 | J204: 321.47 | K204: 313 | L204: 302 | M204: 24.95658
A205: 196 | B205: UPL | C205: 698.35 | D205: 685.73 | E205: 665.52 | F205: 632.68 | G205: 612.47 | H205: 718.57 | I205: 738.78 | J205: 771.62 | K205: 705.95 | L205: 652.9 | M205: 124.88054
... 30 more rows

Sheet MidCap Intra
L5: Back To Main Page
A6: FOR INTRA DAY TRADING | K6: =Main!B10 -> 2019-07-05
A9: Sr.no | B9: Scrip | C9: CLOSE RATE | D9: Pivot Point | E9: Supports | H9: Resistances
C10: Point | E10: S1 | F10: S2 | G10: S3 | H10: R1 | I10: R2 | J10: R3 | K10: HIGH | L10: LOW | M10: Total Trade Quanity in Lakhs
A11: 1 | B11: 3MINDIA | C11: 22794.7 | D11: 22958.23 | E11: 22516.47 | F11: 22238.23 | G11: 21796.47 | H11: 23236.47 | I11: 23678.23 | J11: 23956.47 | K11: 23400 | L11: 22680 | M11: 0.01071
A12: 2 | B12: ABB | C12: 1652 | D12: 1640.67 | E12: 1616.33 | F12: 1580.67 | G12: 1556.33 | H12: 1676.33 | I12: 1700.67 | J12: 1736.33 | K12: 1665 | L12: 1605 | M12: 1.84959
A13: 3 | B13: ACC | C13: 1576.75 | D13: 1576.93 | E13: 1563.87 | F13: 1550.98 | G13: 1537.92 | H13: 1589.82 | I13: 1602.88 | J13: 1615.77 | K13: 1590 | L13: 1564.05 | M13: 8.39957
A14: 4 | B14: AIAENG | C14: 1826.65 | D14: 1820.22 | E14: 1796.43 | F14: 1766.22 | G14: 1742.43 | H14: 1850.43 | I14: 1874.22 | J14: 1904.43 | K14: 1844 | L14: 1790 | M14: 0.1118
A15: 5 | B15: APLAPOLLO | C15: 1657.9 | D15: 1658.60 | E15: 1639.30 | F15: 1620.70 | G15: 1601.40 | H15: 1677.20 | I15: 1696.50 | J15: 1715.10 | K15: 1677.9 | L15: 1640 | M15: 0.24537
A16: 6 | B16: AUBANK | C16: 694.55 | D16: 696.77 | E16: 690.58 | F16: 686.62 | G16: 680.43 | H16: 700.73 | I16: 706.92 | J16: 710.88 | K16: 702.95 | L16: 692.8 | M16: 0.3879
A17: 7 | B17: AAVAS | C17: 1506.3 | D17: 1514.65 | E17: 1494.65 | F17: 1483.00 | G17: 1463.00 | H17: 1526.30 | I17: 1546.30 | J17: 1557.95 | K17: 1534.65 | L17: 1503 | M17: 0.09915
A18: 8 | B18: ADANIGREEN | C18: 51.05 | D18: 51.57 | E18: 49.73 | F18: 48.42 | G18: 46.58 | H18: 52.88 | I18: 54.72 | J18: 56.03 | K18: 53.4 | L18: 50.25 | M18: 23.07705
A19: 9 | B19: ADANIPORTS | C19: 414.9 | D19: 415.17 | E19: 413.08 | F19: 411.27 | G19: 409.18 | H19: 416.98 | I19: 419.07 | J19: 420.88 | K19: 417.25 | L19: 413.35 | M19: 11.01623
A20: 10 | B20: ADANIPOWER | C20: 65.35 | D20: 65.65 | E20: 64.40 | F20: 63.45 | G20: 62.20 | H20: 66.60 | I20: 67.85 | J20: 68.80 | K20: 66.9 | L20: 64.7 | M20: 229.77698
A21: 11 | B21: ADANITRANS | C21: 228.95 | D21: 230.62 | E21: 225.33 | F21: 221.72 | G21: 216.43 | H21: 234.23 | I21: 239.52 | J21: 243.13 | K21: 235.9 | L21: 227 | M21: 0.84315
A22: 12 | B22: ABCAPITAL | C22: 94.05 | D22: 93.65 | E22: 92.80 | F22: 91.55 | G22: 90.70 | H22: 94.90 | I22: 95.75 | J22: 97.00 | K22: 94.5 | L22: 92.4 | M22: 10.17863
A23: 13 | B23: ABFRL | C23: 211.2 | D23: 212.52 | E23: 208.28 | F23: 205.37 | G23: 201.13 | H23: 215.43 | I23: 219.67 | J23: 222.58 | K23: 216.75 | L23: 209.6 | M23: 1.63745
A24: 14 | B24: ADVENZYMES | C24: 171.25 | D24: 172.25 | E24: 169.60 | F24: 167.95 | G24: 165.30 | H24: 173.90 | I24: 176.55 | J24: 178.20 | K24: 174.9 | L24: 170.6 | M24: 0.59256
A25: 15 | B25: AEGISCHEM | C25: 206.9 | D25: 205.10 | E25: 201.80 | F25: 196.70 | G25: 193.40 | H25: 210.20 | I25: 213.50 | J25: 218.60 | K25: 208.4 | L25: 200 | M25: 0.84048
A26: 16 | B26: AJANTPHARM | C26: 946.3 | D26: 947.77 | E26: 920.53 | F26: 894.77 | G26: 867.53 | H26: 973.53 | I26: 1000.77 | J26: 1026.53 | K26: 975 | L26: 922 | M26: 1.40061
A27: 17 | B27: AKZOINDIA | C27: 1780.25 | D27: 1791.42 | E27: 1760.83 | F27: 1741.42 | G27: 1710.83 | H27: 1810.83 | I27: 1841.42 | J27: 1860.83 | K27: 1822 | L27: 1772 | M27: 0.01974
A28: 18 | B28: APLLTD | C28: 542.15 | D28: 539.75 | E28: 527.40 | F28: 512.65 | G28: 500.30 | H28: 554.50 | I28: 566.85 | J28: 581.60 | K28: 552.1 | L28: 525 | M28: 1.71921
A29: 19 | B29: ALKEM | C29: 1726.4 | D29: 1721.33 | E29: 1708.72 | F29: 1691.03 | G29: 1678.42 | H29: 1739.02 | I29: 1751.63 | J29: 1769.32 | K29: 1733.95 | L29: 1703.65 | M29: 0.06533
A30: 20 | B30: ALBK | C30: 50.65 | D30: 50.45 | E30: 49.40 | F30: 48.15 | G30: 47.10 | H30: 51.70 | I30: 52.75 | J30: 54.00 | K30: 51.5 | L30: 49.2 | M30: 73.08323
A31: 21 | B31: ALLCARGO | C31: 102.9 | D31: 103.78 | E31: 101.72 | F31: 100.53 | G31: 98.47 | H31: 104.97 | I31: 107.03 | J31: 108.22 | K31: 105.85 | L31: 102.6 | M31: 0.88691
A32: 22 | B32: AMARAJABAT | C32: 648.2 | D32: 644.90 | E32: 637.30 | F32: 626.40 | G32: 618.80 | H32: 655.80 | I32: 663.40 | J32: 674.30 | K32: 652.5 | L32: 634 | M32: 7.30879
A33: 23 | B33: AMBUJACEM | C33: 216.1 | D33: 216.03 | E33: 214.57 | F33: 213.03 | G33: 211.57 | H33: 217.57 | I33: 219.03 | J33: 220.57 | K33: 217.5 | L33: 214.5 | M33: 20.31484
A34: 24 | B34: ANDHRABANK | C34: 23.9 | D34: 23.83 | E34: 23.52 | F34: 23.13 | G34: 22.82 | H34: 24.22 | I34: 24.53 | J34: 24.92 | K34: 24.15 | L34: 23.45 | M34: 11.90838
A35: 25 | B35: APOLLOHOSP | C35: 1325.45 | D35: 1332.43 | E35: 1315.22 | F35: 1304.98 | G35: 1287.77 | H35: 1342.67 | I35: 1359.88 | J35: 1370.12 | K35: 1349.65 | L35: 1322.2 | M35: 3.69704
A36: 26 | B36: APOLLOTYRE | C36: 199.4 | D36: 200.00 | E36: 198.40 | F36: 197.40 | G36: 195.80 | H36: 201.00 | I36: 202.60 | J36: 203.60 | K36: 201.6 | L36: 199 | M36: 11.12054
A37: 27 | B37: ASHOKLEY | C37: 89.95 | D37: 89.80 | E37: 89.05 | F37: 88.15 | G37: 87.40 | H37: 90.70 | I37: 91.45 | J37: 92.35 | K37: 90.55 | L37: 88.9 | M37: 125.28964
A38: 28 | B38: ASHOKA | C38: 145.75 | D38: 145.90 | E38: 143.85 | F38: 141.95 | G38: 139.90 | H38: 147.80 | I38: 149.85 | J38: 151.75 | K38: 147.95 | L38: 144 | M38: 1.5596
A39: 29 | B39: ASIANPAINT | C39: 1359.7 | D39: 1359.07 | E39: 1351.78 | F39: 1343.87 | G39: 1336.58 | H39: 1366.98 | I39: 1374.27 | J39: 1382.18 | K39: 1366.35 | L39: 1351.15 | M39: 9.02077
A40: 30 | B40: ASTERDM | C40: 127.3 | D40: 128.23 | E40: 125.77 | F40: 124.23 | G40: 121.77 | H40: 129.77 | I40: 132.23 | J40: 133.77 | K40: 130.7 | L40: 126.7 | M40: 2.20998
A41: 31 | B41: ASTRAZEN | C41: 2121.6 | D41: 2122.90 | E41: 2098.80 | F41: 2076.00 | G41: 2051.90 | H41: 2145.70 | I41: 2169.80 | J41: 2192.60 | K41: 2147 | L41: 2100.1 | M41: 0.09664
A42: 32 | B42: ASTRAL | C42: 1322.9 | D42: 1327.97 | E42: 1309.93 | F42: 1296.97 | G42: 1278.93 | H42: 1340.93 | I42: 1358.97 | J42: 1371.93 | K42: 1346 | L42: 1315 | M42: 0.13019
A43: 33 | B43: ATUL | C43: 3954.2 | D43: 3965.40 | E43: 3928.80 | F43: 3903.40 | G43: 3866.80 | H43: 3990.80 | I43: 4027.40 | J43: 4052.80 | K43: 4002 | L43: 3940 | M43: 0.05222
A44: 34 | B44: AUROPHARMA | C44: 605.1 | D44: 602.12 | E44: 595.98 | F44: 586.87 | G44: 580.73 | H44: 611.23 | I44: 617.37 | J44: 626.48 | K44: 608.25 | L44: 593 | M44: 38.52443
A45: 35 | B45: AVANTIFEED | C45: 350.1 | D45: 351.27 | E45: 347.83 | F45: 345.57 | G45: 342.13 | H45: 353.53 | I45: 356.97 | J45: 359.23 | K45: 354.7 | L45: 349 | M45: 1.65906
A46: 36 | B46: DMART | C46: 1433 | D46: 1445.33 | E46: 1415.67 | F46: 1398.33 | G46: 1368.67 | H46: 1462.67 | I46: 1492.33 | J46: 1509.67 | K46: 1475 | L46: 1428 | M46: 2.64148
A47: 37 | B47: AXISBANK | C47: 808.85 | D47: 808.78 | E47: 804.37 | F47: 799.88 | G47: 795.47 | H47: 813.27 | I47: 817.68 | J47: 822.17 | K47: 813.2 | L47: 804.3 | M47: 55.53273
A48: 38 | B48: BASF | C48: 1305.2 | D48: 1310.40 | E48: 1295.80 | F48: 1286.40 | G48: 1271.80 | H48: 1319.80 | I48: 1334.40 | J48: 1343.80 | K48: 1325 | L48: 1301 | M48: 0.02881
A49: 39 | B49: BEML | C49: 916.4 | D49: 917.73 | E49: 910.97 | F49: 905.53 | G49: 898.77 | H49: 923.17 | I49: 929.93 | J49: 935.37 | K49: 924.5 | L49: 912.3 | M49: 8.86883
A50: 40 | B50: BSE | C50: 617.7 | D50: 616.90 | E50: 614.85 | F50: 612.00 | G50: 609.95 | H50: 619.75 | I50: 621.80 | J50: 624.65 | K50: 618.95 | L50: 614.05 | M50: 0.46365
A51: 41 | B51: BAJAJ-AUTO | C51: 2894.8 | D51: 2893.60 | E51: 2878.20 | F51: 2861.60 | G51: 2846.20 | H51: 2910.20 | I51: 2925.60 | J51: 2942.20 | K51: 2909 | L51: 2877 | M51: 2.49409
A52: 42 | B52: BAJAJCON | C52: 323.55 | D52: 323.22 | E52: 320.43 | F52: 317.32 | G52: 314.53 | H52: 326.33 | I52: 329.12 | J52: 332.23 | K52: 326 | L52: 320.1 | M52: 0.51266
A53: 43 | B53: BAJAJELEC | C53: 532.4 | D53: 532.43 | E53: 527.97 | F53: 523.53 | G53: 519.07 | H53: 536.87 | I53: 541.33 | J53: 545.77 | K53: 536.9 | L53: 528 | M53: 0.50811
A54: 44 | B54: BAJFINANCE | C54: 3732.5 | D54: 3729.18 | E54: 3708.47 | F54: 3684.43 | G54: 3663.72 | H54: 3753.22 | I54: 3773.93 | J54: 3797.97 | K54: 3749.9 | L54: 3705.15 | M54: 7.43616
A55: 45 | B55: BAJAJFINSV | C55: 8537.55 | D55: 8504.55 | E55: 8453.00 | F55: 8368.45 | G55: 8316.90 | H55: 8589.10 | I55: 8640.65 | J55: 8725.20 | K55: 8556.1 | L55: 8420 | M55: 1.44946
A56: 46 | B56: BAJAJHLDNG | C56: 3711.6 | D56: 3718.83 | E56: 3687.77 | F56: 3663.93 | G56: 3632.87 | H56: 3742.67 | I56: 3773.73 | J56: 3797.57 | K56: 3749.9 | L56: 3695 | M56: 0.27677
A57: 47 | B57: BALKRISIND | C57: 751.55 | D57: 751.27 | E57: 745.68 | F57: 739.82 | G57: 734.23 | H57: 757.13 | I57: 762.72 | J57: 768.58 | K57: 756.85 | L57: 745.4 | M57: 3.98564
A58: 48 | B58: BALMLAWRIE | C58: 180.9 | D58: 181.22 | E58: 179.03 | F58: 177.17 | G58: 174.98 | H58: 183.08 | I58: 185.27 | J58: 187.13 | K58: 183.4 | L58: 179.35 | M58: 0.55537
A59: 49 | B59: BALRAMCHIN | C59: 147.9 | D59: 146.05 | E59: 143.20 | F59: 138.50 | G59: 135.65 | H59: 150.75 | I59: 153.60 | J59: 158.30 | K59: 148.9 | L59: 141.35 | M59: 15.95823
A60: 50 | B60: BANDHANBNK | C60: 559.3 | D60: 561.37 | E60: 554.63 | F60: 549.97 | G60: 543.23 | H60: 566.03 | I60: 572.77 | J60: 577.43 | K60: 568.1 | L60: 556.7 | M60: 8.86461
A61: 51 | B61: BANKBARODA | C61: 129.4 | D61: 128.80 | E61: 126.60 | F61: 123.80 | G61: 121.60 | H61: 131.60 | I61: 133.80 | J61: 136.60 | K61: 131 | L61: 126 | M61: 445.86582
A62: 52 | B62: BANKINDIA | C62: 94.5 | D62: 94.55 | E62: 93.30 | F62: 92.10 | G62: 90.85 | H62: 95.75 | I62: 97.00 | J62: 98.20 | K62: 95.8 | L62: 93.35 | M62: 153.69281
A63: 53 | B63: MAHABANK | C63: 16.5 | D63: 16.45 | E63: 16.25 | F63: 16.00 | G63: 15.80 | H63: 16.70 | I63: 16.90 | J63: 17.15 | K63: 16.65 | L63: 16.2 | M63: 10.55681
A64: 54 | B64: BATAINDIA | C64: 1457.25 | D64: 1459.47 | E64: 1450.93 | F64: 1444.62 | G64: 1436.08 | H64: 1465.78 | I64: 1474.32 | J64: 1480.63 | K64: 1468 | L64: 1453.15 | M64: 2.24249
A65: 55 | B65: BERGEPAINT | C65: 320.45 | D65: 320.37 | E65: 318.58 | F65: 316.72 | G65: 314.93 | H65: 322.23 | I65: 324.02 | J65: 325.88 | K65: 322.15 | L65: 318.5 | M65: 2.90451
A66: 56 | B66: BDL | C66: 332.3 | D66: 333.57 | E66: 328.33 | F66: 324.37 | G66: 319.13 | H66: 337.53 | I66: 342.77 | J66: 346.73 | K66: 338.8 | L66: 329.6 | M66: 0.33561
A67: 57 | B67: BEL | C67: 113.6 | D67: 113.47 | E67: 112.48 | F67: 111.37 | G67: 110.38 | H67: 114.58 | I67: 115.57 | J67: 116.68 | K67: 114.45 | L67: 112.35 | M67: 40.62454
A68: 58 | B68: BHARATFORG | C68: 475.95 | D68: 473.32 | E68: 464.83 | F68: 453.72 | G68: 445.23 | H68: 484.43 | I68: 492.92 | J68: 504.03 | K68: 481.8 | L68: 462.2 | M68: 19.88905
A69: 59 | B69: BHEL | C69: 73.1 | D69: 73.07 | E69: 72.48 | F69: 71.87 | G69: 71.28 | H69: 73.68 | I69: 74.27 | J69: 74.88 | K69: 73.65 | L69: 72.45 | M69: 50.04601
A70: 60 | B70: BPCL | C70: 380 | D70: 380.82 | E70: 377.63 | F70: 375.27 | G70: 372.08 | H70: 383.18 | I70: 386.37 | J70: 388.73 | K70: 384 | L70: 378.45 | M70: 20.84424
A71: 61 | B71: BHARTIARTL | C71: 362.75 | D71: 360.25 | E71: 355.50 | F71: 348.25 | G71: 343.50 | H71: 367.50 | I71: 372.25 | J71: 379.50 | K71: 365 | L71: 353 | M71: 84.07402
A72: 62 | B72: INFRATEL | C72: 263.1 | D72: 263.78 | E72: 261.07 | F72: 259.03 | G72: 256.32 | H72: 265.82 | I72: 268.53 | J72: 270.57 | K72: 266.5 | L72: 261.75 | M72: 16.45218
A73: 63 | B73: BIOCON | C73: 248.95 | D73: 248.90 | E73: 246.85 | F73: 244.75 | G73: 242.70 | H73: 251.00 | I73: 253.05 | J73: 255.15 | K73: 250.95 | L73: 246.8 | M73: 16.46732
A74: 64 | B74: BIRLACORPN | C74: 590 | D74: 585.93 | E74: 580.87 | F74: 571.73 | G74: 566.67 | H74: 595.07 | I74: 600.13 | J74: 609.27 | K74: 591 | L74: 576.8 | M74: 0.7849
A75: 65 | B75: BLISSGVS | C75: 157.05 | D75: 157.73 | E75: 155.47 | F75: 153.88 | G75: 151.62 | H75: 159.32 | I75: 161.58 | J75: 163.17 | K75: 160 | L75: 156.15 | M75: 1.79474
A76: 66 | B76: BLUEDART | C76: 2664.6 | D76: 2663.53 | E76: 2642.07 | F76: 2619.53 | G76: 2598.07 | H76: 2686.07 | I76: 2707.53 | J76: 2730.07 | K76: 2685 | L76: 2641 | M76: 0.0088
A77: 67 | B77: BLUESTARCO | C77: 765.7 | D77: 764.75 | E77: 755.95 | F77: 746.20 | G77: 737.40 | H77: 774.50 | I77: 783.30 | J77: 793.05 | K77: 773.55 | L77: 755 | M77: 0.20988
A78: 68 | B78: BBTC | C78: 972.2 | D78: 964.40 | E78: 945.80 | F78: 919.40 | G78: 900.80 | H78: 990.80 | I78: 1009.40 | J78: 1035.80 | K78: 983 | L78: 938 | M78: 2.00905
A79: 69 | B79: BOMDYEING | C79: 109.75 | D79: 110.37 | E79: 108.28 | F79: 106.82 | G79: 104.73 | H79: 111.83 | I79: 113.92 | J79: 115.38 | K79: 112.45 | L79: 108.9 | M79: 14.87658
A80: 70 | B80: BOSCHLTD | C80: 16882.3 | D80: 16830.93 | E80: 16672.87 | F80: 16463.43 | G80: 16305.37 | H80: 17040.37 | I80: 17198.43 | J80: 17407.87 | K80: 16989 | L80: 16621.5 | M80: 0.09836
A81: 71 | B81: BRIGADE | C81: 277.3 | D81: 277.90 | E81: 273.80 | F81: 270.30 | G81: 266.20 | H81: 281.40 | I81: 285.50 | J81: 289.00 | K81: 282 | L81: 274.4 | M81: 0.69818
A82: 72 | B82: BRITANNIA | C82: 2841.35 | D82: 2826.78 | E82: 2803.57 | F82: 2765.78 | G82: 2742.57 | H82: 2864.57 | I82: 2887.78 | J82: 2925.57 | K82: 2850 | L82: 2789 | M82: 3.46395
A83: 73 | B83: CARERATING | C83: 928.2 | D83: 930.72 | E83: 920.83 | F83: 913.47 | G83: 903.58 | H83: 938.08 | I83: 947.97 | J83: 955.33 | K83: 940.6 | L83: 923.35 | M83: 0.06478
A84: 74 | B84: CCL | C84: 255.15 | D84: 255.13 | E84: 252.52 | F84: 249.88 | G84: 247.27 | H84: 257.77 | I84: 260.38 | J84: 263.02 | K84: 257.75 | L84: 252.5 | M84: 0.51841
A85: 75 | B85: CESC | C85: 780.3 | D85: 784.35 | E85: 774.30 | F85: 768.30 | G85: 758.25 | H85: 790.35 | I85: 800.40 | J85: 806.40 | K85: 794.4 | L85: 778.35 | M85: 1.64936
A86: 77 | B86: CGPOWER | C86: 26.25 | D86: 26.43 | E86: 25.87 | F86: 25.48 | G86: 24.92 | H86: 26.82 | I86: 27.38 | J86: 27.77 | K86: 27 | L86: 26.05 | M86: 22.81761
A87: 78 | B87: CRISIL | C87: 1425.25 | D87: 1432.90 | E87: 1413.85 | F87: 1402.45 | G87: 1383.40 | H87: 1444.30 | I87: 1463.35 | J87: 1474.75 | K87: 1451.95 | L87: 1421.5 | M87: 0.04567
A88: 79 | B88: CADILAHC | C88: 236.75 | D88: 236.87 | E88: 235.13 | F88: 233.52 | G88: 231.78 | H88: 238.48 | I88: 240.22 | J88: 241.83 | K88: 238.6 | L88: 235.25 | M88: 4.50557
A89: 80 | B89: CANFINHOME | C89: 357.95 | D89: 358.97 | E89: 354.98 | F89: 352.02 | G89: 348.03 | H89: 361.93 | I89: 365.92 | J89: 368.88 | K89: 362.95 | L89: 356 | M89: 2.258
A90: 81 | B90: CANBK | C90: 287.15 | D90: 288.35 | E90: 283.25 | F90: 279.35 | G90: 274.25 | H90: 292.25 | I90: 297.35 | J90: 301.25 | K90: 293.45 | L90: 284.45 | M90: 73.93529
A91: 82 | B91: CAPLIPOINT | C91: 437.95 | D91: 440.02 | E91: 432.98 | F91: 428.02 | G91: 420.98 | H91: 444.98 | I91: 452.02 | J91: 456.98 | K91: 447.05 | L91: 435.05 | M91: 0.10707
A92: 83 | B92: CARBORUNIV | C92: 350 | D92: 349.92 | E92: 345.63 | F92: 341.27 | G92: 336.98 | H92: 354.28 | I92: 358.57 | J92: 362.93 | K92: 354.2 | L92: 345.55 | M92: 0.45908
A93: 84 | B93: CASTROLIND | C93: 132 | D93: 131.83 | E93: 130.67 | F93: 129.33 | G93: 128.17 | H93: 133.17 | I93: 134.33 | J93: 135.67 | K93: 133 | L93: 130.5 | M93: 16.5982
A94: 85 | B94: CEATLTD | C94: 936 | D94: 937.48 | E94: 923.87 | F94: 911.73 | G94: 898.12 | H94: 949.62 | I94: 963.23 | J94: 975.37 | K94: 951.1 | L94: 925.35 | M94: 2.40684
A95: 86 | B95: CENTRALBK | C95: 20.75 | D95: 20.93 | E95: 20.47 | F95: 20.18 | G95: 19.72 | H95: 21.22 | I95: 21.68 | J95: 21.97 | K95: 21.4 | L95: 20.65 | M95: 14.87392
A96: 87 | B96: CDSL | C96: 218.2 | D96: 218.33 | E96: 217.27 | F96: 216.33 | G96: 215.27 | H96: 219.27 | I96: 220.33 | J96: 221.27 | K96: 219.4 | L96: 217.4 | M96: 0.7641
A97: 88 | B97: CENTURYPLY | C97: 172 | D97: 171.65 | E97: 169.40 | F97: 166.80 | G97: 164.55 | H97: 174.25 | I97: 176.50 | J97: 179.10 | K97: 173.9 | L97: 169.05 | M97: 1.38054
A98: 89 | B98: CERA | C98: 2954.95 | D98: 2968.65 | E98: 2936.30 | F98: 2917.65 | G98: 2885.30 | H98: 2987.30 | I98: 3019.65 | J98: 3038.30 | K98: 3001 | L98: 2950 | M98: 0.01459
A99: 90 | B99: CHAMBLFERT | C99: 183.25 | D99: 183.77 | E99: 181.63 | F99: 180.02 | G99: 177.88 | H99: 185.38 | I99: 187.52 | J99: 189.13 | K99: 185.9 | L99: 182.15 | M99: 1.92122
A100: 91 | B100: CHENNPETRO | C100: 206.9 | D100: 206.97 | E100: 205.93 | F100: 204.97 | G100: 203.93 | H100: 207.93 | I100: 208.97 | J100: 209.93 | K100: 208 | L100: 206 | M100: 1.03412
A101: 92 | B101: CHOLAHLDNG | C101: 466.3 | D101: 468.10 | E101: 463.20 | F101: 460.10 | G101: 455.20 | H101: 471.20 | I101: 476.10 | J101: 479.20 | K101: 473 | L101: 465 | M101: 1.56729
A102: 93 | B102: CHOLAFIN | C102: 291.7 | D102: 291.50 | E102: 288.55 | F102: 285.40 | G102: 282.45 | H102: 294.65 | I102: 297.60 | J102: 300.75 | K102: 294.45 | L102: 288.35 | M102: 8.3485
A103: 94 | B103: CIPLA | C103: 551.55 | D103: 552.60 | E103: 549.55 | F103: 547.55 | G103: 544.50 | H103: 554.60 | I103: 557.65 | J103: 559.65 | K103: 555.65 | L103: 550.6 | M103: 6.39531
A104: 95 | B104: CUB | C104: 210.75 | D104: 211.57 | E104: 209.38 | F104: 208.02 | G104: 205.83 | H104: 212.93 | I104: 215.12 | J104: 216.48 | K104: 213.75 | L104: 210.2 | M104: 10.26703
A105: 96 | B105: COALINDIA | C105: 251.1 | D105: 251.13 | E105: 249.42 | F105: 247.73 | G105: 246.02 | H105: 252.82 | I105: 254.53 | J105: 256.22 | K105: 252.85 | L105: 249.45 | M105: 25.55817
A106: 97 | B106: COCHINSHIP | C106: 383.85 | D106: 383.92 | E106: 381.93 | F106: 380.02 | G106: 378.03 | H106: 385.83 | I106: 387.82 | J106: 389.73 | K106: 385.9 | L106: 382 | M106: 0.34227
A107: 98 | B107: COFFEEDAY | C107: 226 | D107: 226.68 | E107: 221.47 | F107: 216.93 | G107: 211.72 | H107: 231.22 | I107: 236.43 | J107: 240.97 | K107: 231.9 | L107: 222.15 | M107: 0.90547
A108: 99 | B108: COLPAL | C108: 1151.5 | D108: 1154.27 | E108: 1144.03 | F108: 1136.57 | G108: 1126.33 | H108: 1161.73 | I108: 1171.97 | J108: 1179.43 | K108: 1164.5 | L108: 1146.8 | M108: 2.89112
A109: 100 | B109: CONCOR | C109: 573 | D109: 574.13 | E109: 568.32 | F109: 563.63 | G109: 557.82 | H109: 578.82 | I109: 584.63 | J109: 589.32 | K109: 579.95 | L109: 569.45 | M109: 3.48097
A110: 101 | B110: COROMANDEL | C110: 423.15 | D110: 422.52 | E110: 419.03 | F110: 414.92 | G110: 411.43 | H110: 426.63 | I110: 430.12 | J110: 434.23 | K110: 426 | L110: 418.4 | M110: 0.56383
A111: 102 | B111: CORPBANK | C111: 27.5 | D111: 27.57 | E111: 26.33 | F111: 25.17 | G111: 23.93 | H111: 28.73 | I111: 29.97 | J111: 31.13 | K111: 28.8 | L111: 26.4 | M111: 28.44696
A112: 103 | B112: COX&KINGS | C112: 30.05 | D112: 30.05 | E112: 30.05 | F112: 30.05 | G112: 30.05 | H112: 30.05 | I112: 30.05 | J112: 30.05 | K112: 30.05 | L112: 30.05 | M112: 0.37223
A113: 104 | B113: CREDITACC | C113: 516.75 | D113: 519.45 | E113: 510.90 | F113: 505.05 | G113: 496.50 | H113: 525.30 | I113: 533.85 | J113: 539.70 | K113: 528 | L113: 513.6 | M113: 0.68167
A114: 105 | B114: CROMPTON | C114: 233.55 | D114: 234.55 | E114: 231.10 | F114: 228.65 | G114: 225.20 | H114: 237.00 | I114: 240.45 | J114: 242.90 | K114: 238 | L114: 232.1 | M114: 1.61758
A115: 106 | B115: CUMMINSIND | C115: 760.3 | D115: 757.93 | E115: 749.87 | F115: 739.43 | G115: 731.37 | H115: 768.37 | I115: 776.43 | J115: 786.87 | K115: 766 | L115: 747.5 | M115: 5.04244
A116: 107 | B116: CYIENT | C116: 540.45 | D116: 540.65 | E116: 538.30 | F116: 536.15 | G116: 533.80 | H116: 542.80 | I116: 545.15 | J116: 547.30 | K116: 543 | L116: 538.5 | M116: 0.35084
A117: 108 | B117: DBCORP | C117: 192.25 | D117: 193.95 | E117: 190.40 | F117: 188.55 | G117: 185.00 | H117: 195.80 | I117: 199.35 | J117: 201.20 | K117: 197.5 | L117: 192.1 | M117: 0.19102
A118: 109 | B118: DCBBANK | C118: 231.9 | D118: 232.52 | E118: 229.38 | F118: 226.87 | G118: 223.73 | H118: 235.03 | I118: 238.17 | J118: 240.68 | K118: 235.65 | L118: 230 | M118: 3.81609
A119: 110 | B119: DCMSHRIRAM | C119: 554.75 | D119: 559.00 | E119: 548.15 | F119: 541.55 | G119: 530.70 | H119: 565.60 | I119: 576.45 | J119: 583.05 | K119: 569.85 | L119: 552.4 | M119: 0.79485
A120: 111 | B120: DLF | C120: 194.6 | D120: 194.67 | E120: 192.43 | F120: 190.27 | G120: 188.03 | H120: 196.83 | I120: 199.07 | J120: 201.23 | K120: 196.9 | L120: 192.5 | M120: 98.37342
A121: 112 | B121: DABUR | C121: 402.95 | D121: 403.80 | E121: 399.95 | F121: 396.95 | G121: 393.10 | H121: 406.80 | I121: 410.65 | J121: 413.65 | K121: 407.65 | L121: 400.8 | M121: 19.81032
A122: 113 | B122: DEEPAKFERT | C122: 116.5 | D122: 115.97 | E122: 114.98 | F122: 113.47 | G122: 112.48 | H122: 117.48 | I122: 118.47 | J122: 119.98 | K122: 116.95 | L122: 114.45 | M122: 3.44208
A123: 114 | B123: DEEPAKNTR | C123: 306.55 | D123: 306.13 | E123: 303.02 | F123: 299.48 | G123: 296.37 | H123: 309.67 | I123: 312.78 | J123: 316.32 | K123: 309.25 | L123: 302.6 | M123: 1.45745
A124: 115 | B124: DELTACORP | C124: 174 | D124: 174.65 | E124: 172.40 | F124: 170.80 | G124: 168.55 | H124: 176.25 | I124: 178.50 | J124: 180.10 | K124: 176.9 | L124: 173.05 | M124: 3.31247
A125: 116 | B125: DHFL | C125: 83.2 | D125: 83.78 | E125: 80.97 | F125: 78.73 | G125: 75.92 | H125: 86.02 | I125: 88.83 | J125: 91.07 | K125: 86.6 | L125: 81.55 | M125: 329.55058
A126: 117 | B126: DBL | C126: 484.75 | D126: 485.73 | E126: 477.27 | F126: 469.78 | G126: 461.32 | H126: 493.22 | I126: 501.68 | J126: 509.17 | K126: 494.2 | L126: 478.25 | M126: 3.54591
A127: 118 | B127: DISHTV | C127: 31.55 | D127: 32.08 | E127: 30.47 | F127: 29.38 | G127: 27.77 | H127: 33.17 | I127: 34.78 | J127: 35.87 | K127: 33.7 | L127: 31 | M127: 533.58614
A128: 119 | B128: DCAL | C128: 217.05 | D128: 217.45 | E128: 212.90 | F128: 208.75 | G128: 204.20 | H128: 221.60 | I128: 226.15 | J128: 230.30 | K128: 222 | L128: 213.3 | M128: 0.48738
A129: 120 | B129: DIVISLAB | C129: 1619.8 | D129: 1623.57 | E129: 1608.18 | F129: 1596.57 | G129: 1581.18 | H129: 1635.18 | I129: 1650.57 | J129: 1662.18 | K129: 1638.95 | L129: 1611.95 | M129: 2.14179
A130: 121 | B130: DIXON | C130: 2345.65 | D130: 2345.47 | E130: 2328.93 | F130: 2312.22 | G130: 2295.68 | H130: 2362.18 | I130: 2378.72 | J130: 2395.43 | K130: 2362 | L130: 2328.75 | M130: 0.03533
A131: 122 | B131: LALPATHLAB | C131: 1076.75 | D131: 1072.45 | E131: 1060.90 | F131: 1045.05 | G131: 1033.50 | H131: 1088.30 | I131: 1099.85 | J131: 1115.70 | K131: 1084 | L131: 1056.6 | M131: 0.65396
A132: 123 | B132: DRREDDY | C132: 2602.4 | D132: 2605.15 | E132: 2590.30 | F132: 2578.20 | G132: 2563.35 | H132: 2617.25 | I132: 2632.10 | J132: 2644.20 | K132: 2620 | L132: 2593.05 | M132: 3.681
A133: 124 | B133: EIDPARRY | C133: 181.7 | D133: 180.55 | E133: 177.30 | F133: 172.90 | G133: 169.65 | H133: 184.95 | I133: 188.20 | J133: 192.60 | K133: 183.8 | L133: 176.15 | M133: 1.22568
A134: 125 | B134: EIHOTEL | C134: 180.65 | D134: 180.25 | E134: 179.05 | F134: 177.45 | G134: 176.25 | H134: 181.85 | I134: 183.05 | J134: 184.65 | K134: 181.45 | L134: 178.65 | M134: 0.44832
A135: 126 | B135: EDELWEISS | C135: 172.05 | D135: 172.17 | E135: 169.23 | F135: 166.42 | G135: 163.48 | H135: 174.98 | I135: 177.92 | J135: 180.73 | K135: 175.1 | L135: 169.35 | M135: 10.13058
A136: 127 | B136: EICHERMOT | C136: 19825.4 | D136: 19852.13 | E136: 19609.27 | F136: 19393.13 | G136: 19150.27 | H136: 20068.27 | I136: 20311.13 | J136: 20527.27 | K136: 20095 | L136: 19636 | M136: 1.05134
A137: 128 | B137: ELGIEQUIP | C137: 261.35 | D137: 262.38 | E137: 257.77 | F137: 254.18 | G137: 249.57 | H137: 265.97 | I137: 270.58 | J137: 274.17 | K137: 267 | L137: 258.8 | M137: 0.84232
A138: 129 | B138: EMAMILTD | C138: 307.7 | D138: 304.90 | E138: 300.80 | F138: 293.90 | G138: 289.80 | H138: 311.80 | I138: 315.90 | J138: 322.80 | K138: 309 | L138: 298 | M138: 7.50264
A139: 130 | B139: ENDURANCE | C139: 1118.65 | D139: 1111.20 | E139: 1097.45 | F139: 1076.25 | G139: 1062.50 | H139: 1132.40 | I139: 1146.15 | J139: 1167.35 | K139: 1124.95 | L139: 1090 | M139: 1.09425
A140: 131 | B140: ENGINERSIN | C140: 120 | D140: 120.88 | E140: 118.67 | F140: 117.33 | G140: 115.12 | H140: 122.22 | I140: 124.43 | J140: 125.77 | K140: 123.1 | L140: 119.55 | M140: 15.77779
A141: 132 | B141: EQUITAS | C141: 121.45 | D141: 121.25 | E141: 120.25 | F141: 119.05 | G141: 118.05 | H141: 122.45 | I141: 123.45 | J141: 124.65 | K141: 122.25 | L141: 120.05 | M141: 14.97694
A142: 133 | B142: ERIS | C142: 498.4 | D142: 497.15 | E142: 490.30 | F142: 482.20 | G142: 475.35 | H142: 505.25 | I142: 512.10 | J142: 520.20 | K142: 504 | L142: 489.05 | M142: 0.83323
A143: 134 | B143: ESCORTS | C143: 570.9 | D143: 573.28 | E143: 564.62 | F143: 558.33 | G143: 549.67 | H143: 579.57 | I143: 588.23 | J143: 594.52 | K143: 581.95 | L143: 567 | M143: 23.75051
A144: 135 | B144: ESSELPACK | C144: 130.8 | D144: 130.58 | E144: 130.17 | F144: 129.53 | G144: 129.12 | H144: 131.22 | I144: 131.63 | J144: 132.27 | K144: 131 | L144: 129.95 | M144: 0.40026
A145: 136 | B145: EXIDEIND | C145: 206.5 | D145: 206.32 | E145: 203.73 | F145: 200.97 | G145: 198.38 | H145: 209.08 | I145: 211.67 | J145: 214.43 | K145: 208.9 | L145: 203.55 | M145: 14.6748
A146: 137 | B146: FDC | C146: 186.85 | D146: 187.75 | E146: 185.60 | F146: 184.35 | G146: 182.20 | H146: 189.00 | I146: 191.15 | J146: 192.40 | K146: 189.9 | L146: 186.5 | M146: 0.12185
A147: 138 | B147: FEDERALBNK | C147: 108.85 | D147: 109.17 | E147: 108.13 | F147: 107.42 | G147: 106.38 | H147: 109.88 | I147: 110.92 | J147: 111.63 | K147: 110.2 | L147: 108.45 | M147: 63.18349
A148: 139 | B148: FINEORG | C148: 1386.35 | D148: 1389.52 | E148: 1369.98 | F148: 1353.62 | G148: 1334.08 | H148: 1405.88 | I148: 1425.42 | J148: 1441.78 | K148: 1409.05 | L148: 1373.15 | M148: 0.0356
A149: 140 | B149: FINCABLES | C149: 410.4 | D149: 411.08 | E149: 407.17 | F149: 403.93 | G149: 400.02 | H149: 414.32 | I149: 418.23 | J149: 421.47 | K149: 415 | L149: 407.85 | M149: 0.75674
A150: 141 | B150: FINPIPE | C150: 525.4 | D150: 526.12 | E150: 522.28 | F150: 519.17 | G150: 515.33 | H150: 529.23 | I150: 533.07 | J150: 536.18 | K150: 529.95 | L150: 523 | M150: 0.22809
A151: 142 | B151: FSL | C151: 51.85 | D151: 51.75 | E151: 51.30 | F151: 50.75 | G151: 50.30 | H151: 52.30 | I151: 52.75 | J151: 53.30 | K151: 52.2 | L151: 51.2 | M151: 9.48603
A152: 143 | B152: FORTIS | C152: 133.8 | D152: 133.82 | E152: 133.03 | F152: 132.27 | G152: 131.48 | H152: 134.58 | I152: 135.37 | J152: 136.13 | K152: 134.6 | L152: 133.05 | M152: 2.57284
A153: 144 | B153: FCONSUMER | C153: 41.5 | D153: 41.53 | E153: 40.97 | F153: 40.43 | G153: 39.87 | H153: 42.07 | I153: 42.63 | J153: 43.17 | K153: 42.1 | L153: 41 | M153: 9.77235
A154: 145 | B154: FLFL | C154: 480.6 | D154: 479.82 | E154: 477.73 | F154: 474.87 | G154: 472.78 | H154: 482.68 | I154: 484.77 | J154: 487.63 | K154: 481.9 | L154: 476.95 | M154: 0.46698
A155: 146 | B155: FRETAIL | C155: 471.4 | D155: 469.90 | E155: 465.80 | F155: 460.20 | G155: 456.10 | H155: 475.50 | I155: 479.60 | J155: 485.20 | K155: 474 | L155: 464.3 | M155: 0.76393
A156: 147 | B156: GAIL | C156: 307.8 | D156: 307.12 | E156: 304.93 | F156: 302.07 | G156: 299.88 | H156: 309.98 | I156: 312.17 | J156: 315.03 | K156: 309.3 | L156: 304.25 | M156: 39.83356
A157: 148 | B157: GEPIL | C157: 871.8 | D157: 866.93 | E157: 858.87 | F157: 845.93 | G157: 837.87 | H157: 879.87 | I157: 887.93 | J157: 900.87 | K157: 875 | L157: 854 | M157: 0.09176
A158: 149 | B158: GET&D | C158: 236.6 | D158: 238.53 | E158: 234.07 | F158: 231.53 | G158: 227.07 | H158: 241.07 | I158: 245.53 | J158: 248.07 | K158: 243 | L158: 236 | M158: 0.09528
A159: 150 | B159: GHCL | C159: 239.85 | D159: 239.67 | E159: 238.68 | F159: 237.52 | G159: 236.53 | H159: 240.83 | I159: 241.82 | J159: 242.98 | K159: 240.65 | L159: 238.5 | M159: 0.17317
A160: 151 | B160: GMRINFRA | C160: 15.1 | D160: 15.13 | E160: 15.02 | F160: 14.93 | G160: 14.82 | H160: 15.22 | I160: 15.33 | J160: 15.42 | K160: 15.25 | L160: 15.05 | M160: 49.82805
A161: 152 | B161: GALAXYSURF | C161: 1265.9 | D161: 1267.38 | E161: 1249.77 | F161: 1233.63 | G161: 1216.02 | H161: 1283.52 | I161: 1301.13 | J161: 1317.27 | K161: 1285 | L161: 1251.25 | M161: 0.06629
A162: 153 | B162: GDL | C162: 127.05 | D162: 127.43 | E162: 125.87 | F162: 124.68 | G162: 123.12 | H162: 128.62 | I162: 130.18 | J162: 131.37 | K162: 129 | L162: 126.25 | M162: 2.31363
A163: 154 | B163: GAYAPROJ | C163: 152.3 | D163: 152.57 | E163: 149.73 | F163: 147.17 | G163: 144.33 | H163: 155.13 | I163: 157.97 | J163: 160.53 | K163: 155.4 | L163: 150 | M163: 2.08215
A164: 155 | B164: GICRE | C164: 229.7 | D164: 229.00 | E164: 224.60 | F164: 219.50 | G164: 215.10 | H164: 234.10 | I164: 238.50 | J164: 243.60 | K164: 233.4 | L164: 223.9 | M164: 10.24319
A165: 156 | B165: GILLETTE | C165: 7460.15 | D165: 7460.88 | E165: 7441.37 | F165: 7422.58 | G165: 7403.07 | H165: 7479.67 | I165: 7499.18 | J165: 7517.97 | K165: 7480.4 | L165: 7442.1 | M165: 0.0144
A166: 157 | B166: GSKCONS | C166: 7797.75 | D166: 7802.92 | E166: 7775.83 | F166: 7753.92 | G166: 7726.83 | H166: 7824.83 | I166: 7851.92 | J166: 7873.83 | K166: 7830 | L166: 7781 | M166: 0.06249
A167: 158 | B167: GLAXO | C167: 1185 | D167: 1186.62 | E167: 1175.38 | F167: 1165.77 | G167: 1154.53 | H167: 1196.23 | I167: 1207.47 | J167: 1217.08 | K167: 1197.85 | L167: 1177 | M167: 0.26376
A168: 159 | B168: GLENMARK | C168: 440.2 | D168: 441.87 | E168: 437.88 | F168: 435.57 | G168: 431.58 | H168: 444.18 | I168: 448.17 | J168: 450.48 | K168: 445.85 | L168: 439.55 | M168: 6.73117
A169: 160 | B169: GODFRYPHLP | C169: 832.85 | D169: 833.53 | E169: 820.27 | F169: 807.68 | G169: 794.42 | H169: 846.12 | I169: 859.38 | J169: 871.97 | K169: 846.8 | L169: 820.95 | M169: 1.00476
A170: 161 | B170: GODREJAGRO | C170: 499.25 | D170: 499.95 | E170: 495.90 | F170: 492.55 | G170: 488.50 | H170: 503.30 | I170: 507.35 | J170: 510.70 | K170: 504 | L170: 496.6 | M170: 0.90854
A171: 162 | B171: GODREJCP | C171: 674.7 | D171: 672.48 | E171: 665.77 | F171: 656.83 | G171: 650.12 | H171: 681.42 | I171: 688.13 | J171: 697.07 | K171: 679.2 | L171: 663.55 | M171: 8.04769
A172: 163 | B172: GODREJIND | C172: 482.55 | D172: 483.83 | E172: 478.72 | F172: 474.88 | G172: 469.77 | H172: 487.67 | I172: 492.78 | J172: 496.62 | K172: 488.95 | L172: 480 | M172: 0.7005
A173: 164 | B173: GODREJPROP | C173: 946.4 | D173: 953.50 | E173: 934.95 | F173: 923.50 | G173: 904.95 | H173: 964.95 | I173: 983.50 | J173: 994.95 | K173: 972.05 | L173: 942.05 | M173: 11.11155
A174: 165 | B174: GRANULES | C174: 100.25 | D174: 100.28 | E174: 98.47 | F174: 96.68 | G174: 94.87 | H174: 102.07 | I174: 103.88 | J174: 105.67 | K174: 102.1 | L174: 98.5 | M174: 3.17636
A175: 166 | B175: GRAPHITE | C175: 323.05 | D175: 325.92 | E175: 319.18 | F175: 315.32 | G175: 308.58 | H175: 329.78 | I175: 336.52 | J175: 340.38 | K175: 332.65 | L175: 322.05 | M175: 6.72026
A176: 167 | B176: GRASIM | C176: 941.6 | D176: 937.67 | E176: 929.53 | F176: 917.47 | G176: 909.33 | H176: 949.73 | I176: 957.87 | J176: 969.93 | K176: 945.8 | L176: 925.6 | M176: 14.05857
A177: 168 | B177: GESHIP | C177: 274.6 | D177: 273.13 | E177: 270.37 | F177: 266.13 | G177: 263.37 | H177: 277.37 | I177: 280.13 | J177: 284.37 | K177: 275.9 | L177: 268.9 | M177: 0.33048
A178: 169 | B178: GREAVESCOT | C178: 146.3 | D178: 146.63 | E178: 145.47 | F178: 144.63 | G178: 143.47 | H178: 147.47 | I178: 148.63 | J178: 149.47 | K178: 147.8 | L178: 145.8 | M178: 0.71639
A179: 170 | B179: GRINDWELL | C179: 601.85 | D179: 602.93 | E179: 598.87 | F179: 595.88 | G179: 591.82 | H179: 605.92 | I179: 609.98 | J179: 612.97 | K179: 607 | L179: 599.95 | M179: 0.10791
A180: 171 | B180: GRUH | C180: 290.7 | D180: 290.88 | E180: 287.27 | F180: 283.83 | G180: 280.22 | H180: 294.32 | I180: 297.93 | J180: 301.37 | K180: 294.5 | L180: 287.45 | M180: 6.66986
A181: 172 | B181: GUJALKALI | C181: 519.8 | D181: 518.02 | E181: 514.03 | F181: 508.27 | G181: 504.28 | H181: 523.78 | I181: 527.77 | J181: 533.53 | K181: 522 | L181: 512.25 | M181: 0.15164
A182: 173 | B182: GUJFLUORO | C182: 926.65 | D182: 929.72 | E182: 917.53 | F182: 908.42 | G182: 896.23 | H182: 938.83 | I182: 951.02 | J182: 960.13 | K182: 941.9 | L182: 920.6 | M182: 0.2393
A183: 174 | B183: GUJGASLTD | C183: 163.15 | D183: 163.62 | E183: 162.18 | F183: 161.22 | G183: 159.78 | H183: 164.58 | I183: 166.02 | J183: 166.98 | K183: 165.05 | L183: 162.65 | M183: 2.54454
A184: 175 | B184: GMDCLTD | C184: 74.7 | D184: 74.88 | E184: 74.22 | F184: 73.73 | G184: 73.07 | H184: 75.37 | I184: 76.03 | J184: 76.52 | K184: 75.55 | L184: 74.4 | M184: 0.60687
A185: 176 | B185: GNFC | C185: 253.7 | D185: 253.92 | E185: 250.63 | F185: 247.57 | G185: 244.28 | H185: 256.98 | I185: 260.27 | J185: 263.33 | K185: 257.2 | L185: 250.85 | M185: 2.84492
A186: 177 | B186: GPPL | C186: 83.75 | D186: 83.68 | E186: 83.12 | F186: 82.48 | G186: 81.92 | H186: 84.32 | I186: 84.88 | J186: 85.52 | K186: 84.25 | L186: 83.05 | M186: 3.27016
A187: 178 | B187: GSFC | C187: 93.25 | D187: 93.27 | E187: 92.78 | F187: 92.32 | G187: 91.83 | H187: 93.73 | I187: 94.22 | J187: 94.68 | K187: 93.75 | L187: 92.8 | M187: 7.05964
A188: 179 | B188: GSPL | C188: 194.75 | D188: 194.97 | E188: 192.28 | F188: 189.82 | G188: 187.13 | H188: 197.43 | I188: 200.12 | J188: 202.58 | K188: 197.65 | L188: 192.5 | M188: 0.60138
A189: 180 | B189: GULFOILLUB | C189: 872.5 | D189: 869.78 | E189: 861.32 | F189: 850.13 | G189: 841.67 | H189: 880.97 | I189: 889.43 | J189: 900.62 | K189: 878.25 | L189: 858.6 | M189: 0.40774
A190: 181 | B190: HEG | C190: 1405.15 | D190: 1421.40 | E190: 1384.75 | F190: 1364.35 | G190: 1327.70 | H190: 1441.80 | I190: 1478.45 | J190: 1498.85 | K190: 1458.05 | L190: 1401 | M190: 1.72793
A191: 182 | B191: HCLTECH | C191: 1040.75 | D191: 1041.92 | E191: 1032.63 | F191: 1024.52 | G191: 1015.23 | H191: 1050.03 | I191: 1059.32 | J191: 1067.43 | K191: 1051.2 | L191: 1033.8 | M191: 12.76519
A192: 183 | B192: HDFCAMC | C192: 2011.95 | D192: 2015.62 | E192: 1992.33 | F192: 1972.72 | G192: 1949.43 | H192: 2035.23 | I192: 2058.52 | J192: 2078.13 | K192: 2038.9 | L192: 1996 | M192: 1.07722
A193: 184 | B193: HDFCBANK | C193: 2483.8 | D193: 2484.57 | E193: 2471.23 | F193: 2458.67 | G193: 2445.33 | H193: 2497.13 | I193: 2510.47 | J193: 2523.03 | K193: 2497.9 | L193: 2472 | M193: 19.98491
A194: 185 | B194: HDFCLIFE | C194: 489.1 | D194: 486.77 | E194: 482.03 | F194: 474.97 | G194: 470.23 | H194: 493.83 | I194: 498.57 | J194: 505.63 | K194: 491.5 | L194: 479.7 | M194: 21.9293
A195: 186 | B195: HATHWAY | C195: 22.9 | D195: 23.18 | E195: 22.47 | F195: 22.03 | G195: 21.32 | H195: 23.62 | I195: 24.33 | J195: 24.77 | K195: 23.9 | L195: 22.75 | M195: 0.56554
A196: 187 | B196: HATSUN | C196: 704.8 | D196: 705.23 | E196: 702.47 | F196: 700.13 | G196: 697.37 | H196: 707.57 | I196: 710.33 | J196: 712.67 | K196: 708 | L196: 702.9 | M196: 0.01732
A197: 188 | B197: HAVELLS | C197: 783.8 | D197: 786.50 | E197: 779.00 | F197: 774.20 | G197: 766.70 | H197: 791.30 | I197: 798.80 | J197: 803.60 | K197: 794 | L197: 781.7 | M197: 9.24125
A198: 189 | B198: HEIDELBERG | C198: 204.1 | D198: 202.68 | E198: 198.37 | F198: 192.63 | G198: 188.32 | H198: 208.42 | I198: 212.73 | J198: 218.47 | K198: 207 | L198: 196.95 | M198: 3.54645
A199: 190 | B199: HERITGFOOD | C199: 407.55 | D199: 408.18 | E199: 405.37 | F199: 403.18 | G199: 400.37 | H199: 410.37 | I199: 413.18 | J199: 415.37 | K199: 411 | L199: 406 | M199: 0.18972
A200: 191 | B200: HEROMOTOCO | C200: 2606.15 | D200: 2603.05 | E200: 2588.10 | F200: 2570.05 | G200: 2555.10 | H200: 2621.10 | I200: 2636.05 | J200: 2654.10 | K200: 2618 | L200: 2585 | M200: 4.4671
A201: 192 | B201: HEXAWARE | C201: 372.85 | D201: 375.38 | E201: 368.52 | F201: 364.18 | G201: 357.32 | H201: 379.72 | I201: 386.58 | J201: 390.92 | K201: 382.25 | L201: 371.05 | M201: 9.79513
A202: 193 | B202: HFCL | C202: 19.3 | D202: 19.35 | E202: 19.10 | F202: 18.90 | G202: 18.65 | H202: 19.55 | I202: 19.80 | J202: 20.00 | K202: 19.6 | L202: 19.15 | M202: 14.44679
A203: 194 | B203: HSCL | C203: 103.95 | D203: 103.88 | E203: 103.07 | F203: 102.18 | G203: 101.37 | H203: 104.77 | I203: 105.58 | J203: 106.47 | K203: 104.7 | L203: 103 | M203: 1.82216
A204: 195 | B204: HIMATSEIDE | C204: 162.6 | D204: 163.57 | E204: 160.58 | F204: 158.57 | G204: 155.58 | H204: 165.58 | I204: 168.57 | J204: 170.58 | K204: 166.55 | L204: 161.55 | M204: 0.40357
A205: 196 | B205: HINDALCO | C205: 206.9 | D205: 207.55 | E205: 205.60 | F205: 204.30 | G205: 202.35 | H205: 208.85 | I205: 210.80 | J205: 212.10 | K205: 209.5 | L205: 206.25 | M205: 40.32487
A206: 197 | B206: HAL | C206: 711.65 | D206: 710.32 | E206: 706.33 | F206: 701.02 | G206: 697.03 | H206: 715.63 | I206: 719.62 | J206: 724.93 | K206: 714.3 | L206: 705 | M206: 0.05784
... 320 more rows

Sheet Bulk Deals
E6: Back To Main Page
A7: Subject : | B7: BULK DEAL | D7: =Main!B10 -> 2019-07-05
A9: Date | B9: Scrip code | C9: Scrip Name | D9: Client Name | E9: Buy / Sell | F9: Quantity Traded | G9: Trade Price / Wt.Avg.trade price | H9: Exchange
A10: 2019-07-04 | B10: 542721 | C10: ARL | D10: ASHVINIKUMAR MOOLCHAND MEHTA | E10: BUY | F10: 200,000 | G10: 27.03 | H10: BSE
A11: 2019-07-04 | B11: 590122 | C11: ASHIKACR | D11: KABIR SHRAN DAGAR (HUF) | E11: SELL | F11: 35,945 | G11: 38.05 | H11: BSE
A12: 2019-07-04 | B12: 504340 | C12: CONFINT | D12: PINKY SURANA | E12: BUY | F12: 419,000 | G12: 0.68 | H12: BSE
A13: 2019-07-04 | B13: 504340 | C13: CONFINT | D13: DHARMESHBHAI JETHABHAI VAGHELA | E13: SELL | F13: 374,830 | G13: 0.68 | H13: BSE
A14: 2019-07-04 | B14: 542724 | C14: EARUM | D14: SHASHIKANT VEDPRAKASH SHARMA | E14: BUY | F14: 60,000 | G14: 36 | H14: BSE
A15: 2019-07-04 | B15: 542724 | C15: EARUM | D15: SMIRAL ASHWINKUMAR PATEL | E15: BUY | F15: 60,000 | G15: 36 | H15: BSE
A16: 2019-07-04 | B16: 542724 | C16: EARUM | D16: MOHAK AMITKUMAR SHAH | E16: BUY | F16: 90,000 | G16: 36 | H16: BSE
A17: 2019-07-04 | B17: 540937 | C17: MEDICO | D17: ARYAMAN BROKING LIMITED | E17: SELL | F17: 24,000 | G17: 83.10 | H17: BSE
A18: 2019-07-04 | B18: 540937 | C18: MEDICO | D18: GOODPOINT COMMODEAL PRIVATE LIMITED | E18: BUY | F18: 54,000 | G18: 83.10 | H18: BSE
A19: 2019-07-04 | B19: 540937 | C19: MEDICO | D19: SHRI RAVINDRA MEDIA VENTURES PRIVATE LIMITED | E19: SELL | F19: 30,000 | G19: 83.10 | H19: BSE
A20: 2019-07-04 | B20: 542145 | C20: RONI | D20: ARYAMAN BROKING LIMITED | E20: SELL | F20: 24,000 | G20: 30 | H20: BSE
A21: 2019-07-04 | B21: 542725 | C21: SBC | D21: SWETA AGRAWAL | E21: BUY | F21: 60,000 | G21: 23.00 | H21: BSE
A22: 2019-07-04 | B22: 542725 | C22: SBC | D22: SANDEEP KUMAR SRIVASTAVA | E22: BUY | F22: 60,000 | G22: 23.04 | H22: BSE
A23: 2019-07-04 | B23: 542725 | C23: SBC | D23: MRIDUL SINGHAL | E23: BUY | F23: 66,000 | G23: 23.1 | H23: BSE
A24: 2019-07-04 | B24: 542725 | C24: SBC | D24: FAIRDEAL FINANCIAL ADVISORY PRIVATE LIMITED | E24: BUY | F24: 192,000 | G24: 23.02 | H24: BSE
A25: 2019-07-04 | B25: 539520 | C25: SHAILJA | D25: MEGHAVI RITESH SHAH | E25: BUY | F25: 71,000 | G25: 7.71 | H25: BSE
A26: 2019-07-04 | B26: 539520 | C26: SHAILJA | D26: ANKUR SURESH MEHTA | E26: SELL | F26: 70,000 | G26: 7.71 | H26: BSE
A27: 2019-07-04 | B27: 541701 | C27: SUPERSHAKT | D27: AVIATOR EMERGING MARKET FUND | E27: BUY | F27: 83,400 | G27: 407 | H27: BSE
A28: 2019-07-04 | B28: 541701 | C28: SUPERSHAKT | D28: LTS INVESTMENT FUND LTD | E28: SELL | F28: 83,400 | G28: 407 | H28: BSE
A29: 2019-07-04 | B29: ALLSEC | C29: Allsec Technologies Limit | D29: SSD SECURITIES PRIVATE LIMITED | E29: BUY | F29: 600,005 | G29: 286.17 | H29: NSE
A30: 2019-07-04 | B30: ARTEDZ | C30: Artedz Fabs Limited | D30: BHAVNA HITESH PATEL | E30: BUY | F30: 114,000 | G30: 32 | H30: NSE
A31: 2019-07-04 | B31: ARTEDZ | C31: Artedz Fabs Limited | D31: HITESH MOHANBHAI PATEL | E31: BUY | F31: 60,000 | G31: 32 | H31: NSE
A32: 2019-07-04 | B32: DHFL | C32: Dewan Housing Fin Corp | D32: CROSSLAND TRADING CO | E32: BUY | F32: 1,608,232 | G32: 83.49 | H32: NSE
A33: 2019-07-04 | B33: DHFL | C33: Dewan Housing Fin Corp | D33: TOWER RESEARCH CAPITAL MARKETS INDIA PRIVATE LIMITED | E33: BUY | F33: 2,017,857 | G33: 83.95 | H33: NSE
A34: 2019-07-04 | B34: EROSMEDIA | C34: Eros Intl Media Ltd | D34: CHETAN RASIKLAL SHAH | E34: BUY | F34: 590,246 | G34: 16.31 | H34: NSE
A35: 2019-07-04 | B35: IBULHSGFIN | C35: Indiabulls Hsg Fin Ltd | D35: TOWER RESEARCH CAPITAL MARKETS INDIA PRIVATE LIMITED | E35: BUY | F35: 2,465,063 | G35: 713.28 | H35: NSE
A36: 2019-07-04 | B36: INDIAMART | C36: IndiaMART InterMESH Ltd | D36: NUMIV RESEARCH PRIVATE LIMITED | E36: BUY | F36: 161,622 | G36: 1295.13 | H36: NSE
A37: 2019-07-04 | B37: INDIAMART | C37: IndiaMART InterMESH Ltd | D37: TOWER RESEARCH CAPITAL MARKETS INDIA PRIVATE LIMITED | E37: BUY | F37: 190,750 | G37: 1273.79 | H37: NSE
A38: 2019-07-04 | B38: INDIAMART | C38: IndiaMART InterMESH Ltd | D38: PURITY TRADEMAX LLP | E38: BUY | F38: 159,909 | G38: 1272.99 | H38: NSE
A39: 2019-07-04 | B39: INDIAMART | C39: IndiaMART InterMESH Ltd | D39: JMP SECURITIES PVT LTD | E39: BUY | F39: 167,294 | G39: 1289.23 | H39: NSE
A40: 2019-07-04 | B40: LAGNAM | C40: Lagnam Spintex Limited | D40: KETAN V THAKKAR HUF | E40: BUY | F40: 192,000 | G40: 13.5 | H40: NSE
A41: 2019-07-04 | B41: RELCAPITAL | C41: Reliance Capital Limited | D41: ALPHAGREP SECURITIES PRIVATE LIMITED | E41: BUY | F41: 1,326,442 | G41: 65.12 | H41: NSE
A42: 2019-07-04 | B42: RELCAPITAL | C42: Reliance Capital Limited | D42: TOWER RESEARCH CAPITAL MARKETS INDIA PRIVATE LIMITED | E42: BUY | F42: 1,836,982 | G42: 65.31 | H42: NSE
A43: 2019-07-04 | B43: RELINFRA | C43: Reliance Infrastructu Ltd | D43: TOWER RESEARCH CAPITAL MARKETS INDIA PRIVATE LIMITED | E43: BUY | F43: 2,890,441 | G43: 55.39 | H43: NSE
A44: 2019-07-04 | B44: RELINFRA | C44: Reliance Infrastructu Ltd | D44: ALPHAGREP SECURITIES PRIVATE LIMITED | E44: BUY | F44: 1,965,840 | G44: 55.27 | H44: NSE
A45: 2019-07-04 | B45: ALLSEC | C45: Allsec Technologies Limit | D45: FIRST CARLYLE VENTURES MAURITIUS | E45: SELL | F45: 684,103 | G45: 286.49 | H45: NSE
A46: 2019-07-04 | B46: ARTEDZ | C46: Artedz Fabs Limited | D46: DIMPLE VIPUL PATEL | E46: SELL | F46: 174000 | G46: 32 | H46: NSE
A47: 2019-07-04 | B47: DHFL | C47: Dewan Housing Fin Corp | D47: TOWER RESEARCH CAPITAL MARKETS INDIA PRIVATE LIMITED | E47: SELL | F47: 2017857 | G47: 83.99 | H47: NSE
A48: 2019-07-04 | B48: DHFL | C48: Dewan Housing Fin Corp | D48: CROSSLAND TRADING CO | E48: SELL | F48: 1625435 | G48: 83.54 | H48: NSE
A49: 2019-07-04 | B49: EROSMEDIA | C49: Eros Intl Media Ltd | D49: CHETAN RASIKLAL SHAH | E49: SELL | F49: 155245 | G49: 16.32 | H49: NSE
A50: 2019-07-04 | B50: IBULHSGFIN | C50: Indiabulls Hsg Fin Ltd | D50: TOWER RESEARCH CAPITAL MARKETS INDIA PRIVATE LIMITED | E50: SELL | F50: 2465063 | G50: 713.82 | H50: NSE
A51: 2019-07-04 | B51: INDIAMART | C51: IndiaMART InterMESH Ltd | D51: NUMIV RESEARCH PRIVATE LIMITED | E51: SELL | F51: 161622 | G51: 1295.71 | H51: NSE
A52: 2019-07-04 | B52: INDIAMART | C52: IndiaMART InterMESH Ltd | D52: PURITY TRADEMAX LLP | E52: SELL | F52: 159909 | G52: 1274.07 | H52: NSE
A53: 2019-07-04 | B53: INDIAMART | C53: IndiaMART InterMESH Ltd | D53: JMP SECURITIES PVT LTD | E53: SELL | F53: 166714 | G53: 1288.9 | H53: NSE
A54: 2019-07-04 | B54: INDIAMART | C54: IndiaMART InterMESH Ltd | D54: TOWER RESEARCH CAPITAL MARKETS INDIA PRIVATE LIMITED | E54: SELL | F54: 190750 | G54: 1274.62 | H54: NSE
A55: 2019-07-04 | B55: LAGNAM | C55: Lagnam Spintex Limited | D55: PROFESSIONAL ARBITRAGE CONCEPTS PVT LTD | E55: SELL | F55: 192000 | G55: 13.5 | H55: NSE
A56: 2019-07-04 | B56: RELCAPITAL | C56: Reliance Capital Limited | D56: ALPHAGREP SECURITIES PRIVATE LIMITED | E56: SELL | F56: 1326442 | G56: 65.16 | H56: NSE
A57: 2019-07-04 | B57: RELCAPITAL | C57: Reliance Capital Limited | D57: TOWER RESEARCH CAPITAL MARKETS INDIA PRIVATE LIMITED | E57: SELL | F57: 1836982 | G57: 65.12 | H57: NSE
A58: 2019-07-04 | B58: RELINFRA | C58: Reliance Infrastructu Ltd | D58: ALPHAGREP SECURITIES PRIVATE LIMITED | E58: SELL | F58: 1965840 | G58: 55.28 | H58: NSE
A59: 2019-07-04 | B59: RELINFRA | C59: Reliance Infrastructu Ltd | D59: TOWER RESEARCH CAPITAL MARKETS INDIA PRIVATE LIMITED | E59: SELL | F59: 2890441 | G59: 55.28 | H59: NSE

Sheet Call Tracker (Equity & F&O)
M5: Back To Main Page
A6: Retail Research Technical Calls & Fundamental Performance Report for the month of July-2019
M7: =Main!B10 -> 2019-07-05
B8: Positional Call
A9: Sr.no | B9: Date | D9: Company | E9: Rec | F9: Rec Price | G9: Stop Loss*** | H9: Call Closed At | I9: Target | J9: Remark | K9: Profit / Loss per Share | L9: Gain / Loss % | M9: Status | N9: Closed Date | O9: NSE Closed Price
A10: 1 | B10: 2019-05-27 | D10: TATAELXSI | E10: Buy | F10: 874 | G10: 818.7 | H10: 915 | I10: 970-990 | J10: Profit of Rs.41 /- | K10: =H10-F10 -> 41 | L10: =K10/F10 -> 4.69% | M10: Successful | N10: 2019-07-02 | R10: R
A11: 2 | B11: 2019-05-28 | D11: BAJAJFINSV | E11: Sell | F11: 8150-8200 | G11: 8625 | I11: 7300 | J11: Open | O11: =VLOOKUP(D11,Sheet2!A54:M1849,6,0) -> 8430.45 | R11: H
A12: 3 | B12: 2019-05-31 | D12: ITC | E12: Buy | F12: 285-287 | G12: 268.3 | I12: 315-325 | J12: Open | O12: =VLOOKUP(D12,Sheet2!A61:M1856,6,0) -> 276.7 | R12: R
A13: 4 | B13: 2019-06-13 | D13: GODREJCP | E13: Buy | F13: 675-680 | G13: 644 | I13: 740-750 | J13: Open | O13: =VLOOKUP(D13,Sheet2!A66:M1861,6,0) -> 672.9 | R13: H
A14: 5 | B14: 2019-06-17 | D14: SUNTV | E14: Buy | F14: 517 | G14: 476 | H14: 539.5 | I14: 575-585 | J14: Part Profit of Rs.22.5/- | K14: =H14-F14 -> 22.5 | L14: =K14/F14 -> 4.35% | M14: Successful | N14: 2019-06-20 | O14: =VLOOKUP(D14,Sheet2!A66:M1861,6,0) -> 513.55 | R14: R
A15: 6 | B15: 2019-06-21 | D15: AJANTPHARM | E15: Buy | F15: 950-960 | G15: 897.7 | I15: 1060-1080 | J15: Open | O15: =VLOOKUP(D15,Sheet2!A2:M1641,6,0) -> 954.75 | R15: R
A16: 7 | B16: 2019-06-24 | D16: ESCORTS | E16: Buy | F16: 549.5 | G16: 518 | H16: 573 | I16: 600 | J16: Part Profit of Rs.23.5 /- | K16: 23.5 | L16: 4.28% | M16: Successful | N16: 2019-07-02 | O16: =VLOOKUP(D16,Sheet2!A68:M1863,6,0) -> 571.8 | R16: H
A17: 8 | B17: 2019-06-25 | D17: JUBLFOOD | E17: Buy | F17: 1260-1265 | G17: 1158.3 | I17: 1450 -1470 | J17: Open | O17: =VLOOKUP(D17,Sheet2!A4:M1643,6,0) -> 1251.05 | R17: R
A18: 9 | B18: 2019-07-04 | D18: TORNTPHARM | E18: Buy | F18: 1540-1550 | G18: 1454 | I18: 1730-1750 | J18: Open | O18: =VLOOKUP(D18,Sheet2!A5:M1644,6,0) -> 1552.85 | R18: R
A25: CLBS = Closing Basis *** | F25: Reinitiated $
A26: Dividend adjusted <> | F26: Revised stoploss #
A27: Part book {}
B29: Momentum Call
A30: Sr.no | B30: Date | D30: Company | E30: Rec | F30: Rec Price | G30: Stop Loss | H30: Call Closed At | I30: Target | J30: Remark | K30: Profit / Loss per Share/Lot | L30: Gain / Loss % | M30: Gain / Loss per Lot | N30: Lot | O30: Status | P30: Closed Date
A31: 1 | B31: 2019-06-26 | D31: INDUSINDBK | E31: Buy | F31: 1437.5 | G31: 1395 | H31: 1475.5 | I31: 1480-1500 | J31: Profit of Rs.38 /- | K31: =H31-F31 -> 38 | L31: =K31/F31 -> 2.64% | O31: Successful | P31: 2019-07-03 | R31: H
A32: 2 | B32: 2019-06-26 | D32: HEROMOTOCO | E32: Buy | F32: 2585-2595 | G32: 2490 | I32: 2750-2800 | J32: Open | R32: H
A33: 3 | B33: 2019-06-27 | D33: ASIANPAINT JUL FUT | E33: Buy | F33: 1372 | G33: 1352 | H33: 1352 | I33: 1400 -1410 | J33: Loss of Rs.20 /- | K33: =H33-F33 -> -20 | M33: =K33*N33 -> -12000 | N33: 600 | O33: Unsuccessful | P33: 2019-07-02 | R33: N
A34: 4 | B34: 2019-06-27 | D34: TITAN JULY FUT | E34: Sell | F34: 1331 | G34: 1350 | H34: 1322 | I34: 1290 | J34: Profit of Rs.9 /- | K34: =F34-H34 -> 9 | M34: =K34*N34 -> 6750 | N34: 750 | O34: Successful | P34: 2019-07-02 | R34: H
A35: 5 | B35: 2019-06-27 | D35: COLPAL JUL FUT | E35: Buy | F35: 1137 | G35: 1120 | H35: 1149 | I35: 1170 | J35: Profit of Rs.12 /- | K35: =H35-F35 -> 12 | M35: =K35*N35 -> 8400 | N35: 700 | O35: Successful | P35: 2019-07-02 | R35: N
A36: 6 | B36: 2019-06-28 | D36: CIPLA JULY FUT | E36: Buy | F36: 555-557 | G36: 545 | I36: 575-580 | J36: Open | R36: H
A37: 7 | B37: 2019-06-28 | D37: NIITTECH JUL FUT | E37: Sell | F37: 1325-1328 | G37: 1345 | I37: 1290 | J37: Open | R37: R
A38: 8 | B38: 2019-06-28 | D38: POWERGRID JUL FUT | E38: Buy | F38: 206.25 | G38: 203 | H38: 208.5 | I38: 213 | J38: Profit of Rs.2.25 /- | K38: =H38-F38 -> 2.25 | M38: =K38*N38 -> 9000 | N38: 4000 | O38: Successful | P38: 2019-07-01 | R38: N
A39: 9 | B39: 2019-06-28 | D39: LT JUL FUT | E39: Buy | F39: 1549 | G39: 1519 | H39: 1568 | I39: 1600 | J39: Profit of Rs.19 /- | K39: =H39-F39 -> 19 | M39: =K39*N39 -> 7125 | N39: 375 | O39: Successful | P39: 2019-07-03 | R39: N
A40: 10 | B40: 2019-07-01 | D40: BATAINDIA JUL FUT | E40: Sell | F40: 1435 | G40: 1458.7 | H40: 1458.7 | I40: 1400 | J40: Loss of Rs.23.7 /- | K40: =F40-H40 -> -23.7 | M40: =K40*N40 -> -13035 | N40: 550 | O40: Unsuccessful | P40: 2019-07-03 | R40: R
A41: 11 | B41: 2019-07-01 | D41: CADILAHC JUL FUT | E41: Buy | F41: 242.5 | G41: 235 | H41: 235 | I41: 260 | J41: Loss of Rs.7.5 /- | K41: =H41-F41 -> -7.5 | M41: =K41*N41 -> -12000 | N41: 1600 | O41: Unsuccessful | P41: 2019-07-02 | R41: H
A42: 12 | B42: 2019-07-01 | D42: MCDOWELL-N | E42: Sell | F42: 592.5 | G42: 610 | H42: 580 | I42: 565-560 | J42: Profit of Rs.12.5 /- | K42: =F42-H42 -> 12.5 | L42: =K42/F42 -> 2.11% | O42: Successful | P42: 2019-07-03 | R42: H
A43: 13 | B43: 2019-07-02 | D43: HDFC JULY FUT | E43: Sell | F43: 2239 | G43: 2262 | H43: 2259 | I43: 2200 | J43: Loss of Rs.20/- | K43: =F43-H43 -> -20 | M43: =K43*N43 -> -10000 | N43: 500 | O43: Unsuccessful | P43: 2019-07-02 | R43: H
A44: 14 | B44: 2019-07-02 | D44: BHARTIARTL JUL FUT | E44: Buy | F44: 351 | G44: 344.3 | H44: 355.5 | I44: 362-365 | J44: Profit of Rs.4.5 /- | K44: =H44-F44 -> 4.5 | M44: =K44*N44 -> 8329.5 | N44: 1851 | O44: Successful | P44: 2019-07-02 | R44: R
A45: 15 | B45: 2019-07-02 | D45: TVSMOTOR JUL FUT | E45: Sell | F45: 428-430 | G45: 441 | I45: 410 | J45: Open | R45: N
A46: 16 | B46: 2019-07-02 | D46: RECLTD | E46: Sell | F46: 163.5 | G46: 168.2 | H46: 166.5 | I46: 156-154 | J46: Loss of Rs.3/- | K46: =F46-H46 -> -3 | L46: =K46/F46 -> -1.83% | O46: Unsuccessful | P46: 2019-07-03 | R46: R
A47: 17 | B47: 2019-07-02 | D47: TITAN JUL FUT | E47: Sell | F47: 1333.5 | G47: 1353 | H47: 1324.5 | I47: 1300-1290 | J47: Profit of Rs.9 /- | K47: =F47-H47 -> 9 | M47: =K47*N47 -> 6750 | N47: 750 | O47: Successful | P47: 2019-07-03 | R47: H
A48: 18 | B48: 2019-07-02 | D48: RAYMOND JUL FUT | E48: Buy | F48: 745 | G48: 730 | H48: 754.5 | I48: 765-770 | J48: Profit of Rs.9.5 /- | K48: =H48-F48 -> 9.5 | M48: =K48*N48 -> 7600 | N48: 800 | O48: Successful | P48: 2019-07-03 | R48: N
A49: 19 | B49: 2019-07-03 | D49: IGL | E49: Buy | F49: 308-309 | G49: 298 | I49: 325-339 | J49: Open | R49: H
A50: 20 | B50: 2019-07-03 | D50: SUNPHARMA | E50: Buy | F50: 394-397 | G50: 379 | I50: 420-425 | J50: Open | R50: H
A51: 21 | B51: 2019-07-03 | D51: BANKBARODA | E51: Buy | F51: 121.5 | G51: 118 | H51: 124.1 | I51: 128 | J51: Profit of Rs.2.6 /- | K51: =H51-F51 -> 2.6 | L51: =K51/F51 -> 2.14% | O51: Successful | P51: 2019-07-03 | R51: H
A52: 22 | B52: 2019-07-03 | D52: M&MFIN JUL FUT | E52: Buy | F52: 387.5 | G52: 379 | H52: 394 | I52: 408 | J52: Profit of Rs.6.5 /- | K52: =H52-F52 -> 6.5 | M52: =K52*N52 -> 8125 | N52: 1250 | O52: Successful | P52: 2019-07-04 | R52: H
A53: 23 | B53: 2019-07-04 | D53: UPL JUL FUT | E53: Sell | F53: 667 | G53: 681 | H53: 681 | I53: 645 | J53: Loss of Rs.14/- | K53: =F53-H53 -> -14 | M53: =K53*N53 -> -12600 | N53: 900 | O53: Unsuccessful | P53: 2019-07-04 | R53: R
A54: 24 | B54: 2019-07-04 | D54: INDUSINDBK JUL FUT | E54: Buy | F54: 1495-1500 | G54: 1467 | I54: 1550-1560 | J54: Open | R54: N
A57: CLBS = Closing Basis ***
A58: Dividend adjusted <> | F58: Reinitiated $
F59: Revised stoploss #
A61: Master Trade High Risk
A62: Sr.no | B62: Date | D62: Company | E62: Rec | F62: Rec Price | G62: Stop Loss | H62: Call Closed At | I62: Target | J62: Remark | K62: Profit / Loss per share | L62: Gain / Loss per Lot | M62: Lot | N62: Status | O62: Closed Date
A63: 1 | B63: 2019-07-01 | D63: GAIL JUL FUT | E63: Buy | F63: 310.5 | G63: 298 | H63: 314.25 | I63: 325 | J63: Profit of Rs.3 /- | K63: =H63-F63 -> 3.75 | L63: =3*M63 -> 8001 | M63: 2667 | N63: Successful | O63: 2019-07-01 | R63: H
D64: GAIL 320 CE | E64: Sell | F64: 6 | H64: 6.75 | K64: =F64-H64 -> -0.75
A65: 2 | B65: 2019-07-03 | D65: BIOCON JUL FUT | E65: Buy | F65: 251-253 | G65: 243 | I65: 265-268 | J65: Open | R65: R
A66: 3 | B66: 2019-07-03 | D66: GAIL JUL FUT | E66: Buy | F66: 306-307 | G66: 297 | I66: 325 | J66: Open | R66: H
D67: GAIL 315 CE | E67: Sell | F67: 5.50-6.50
A72: Master Trade Medium Risk
A73: Sr.no | B73: Date | D73: Company | E73: Rec | F73: Rec Price | G73: Stop Loss | H73: Call Closed At | I73: Target | J73: Remark | K73: Profit/ Loss per lot | L73: Gain / Loss per Lot | M73: Lot | N73: Status | O73: Closed Date
A74: 1 | B74: 2019-06-28 | D74: NIFTY 11950 CE 4-JULY | E74: Buy | F74: 39.5 | G74: 18 | H74: 18 | I74: 70-80 | J74: Loss of Rs.21.5 /- | K74: =H74-F74 -> -21.5 | L74: =K74*M74 -> -1612.5 | M74: 75 | N74: Unsuccessful | O74: 2019-07-02 | R74: H
A75: 2 | B75: 2019-07-04 | D75: NIFTY 4-Jul 11950 PE | E75: Buy | F75: 16 | H75: 27 | I75: 45 | J75: Profit of Rs.11 /- | K75: =H75-F75 -> 11 | L75: =K75*M75 -> 825 | M75: 75 | N75: Successful | O75: 2019-07-04 | R75: R
A81: Techno -Funda (positional)
A82: Sr.no | B82: Date | D82: Company | E82: Rec | F82: Rec Price | G82: Stop Loss*** | H82: Call Closed At | I82: Target | J82: Remark | K82: Profit / Loss per Share | L82: Gain / Loss % | M82: Status | N82: Closed Date | O82: NSE Closed Price
A83: 1 | B83: 2019-04-04 | D83: FINPIPE | E83: Buy | F83: 474.5 | G83: 435 | H83: 524 | I83: 560 | J83: Profit of Rs.49.5 /- | K83: =H83-F83 -> 49.5 | L83: =K83/F83 -> 10.43% | M83: Successful | N83: 2019-07-01 | R83: H
A84: 2 | B84: 2019-05-24 | D84: APOLLOTYRE | E84: Buy | F84: 187.5 | G84: 178.7 | H84: 201.5 | I84: 220-230 | J84: Part Profit of Rs.14/- | K84: =H84-F84 -> 14 | L84: 7.47% | M84: Successful | N84: 2019-06-04 | R84: R
A87: CLBS = Closing Basis *** | F87: Reinitiated $
A88: Dividend adjusted <> | F88: Revised stoploss #
B93: Investment Idea
A94: Sr.no | B94: Date | D94: Company | E94: Rec | F94: Rec Price | G94: Point of Review | H94: Close Rate | I94: Target | J94: Remark | K94: Profit / Loss per Share | L94: Gain / Loss % | M94: Status | N94: Closed Date
A95: 1 | B95: 2013-11-01 | D95: L&T Finance Holding | E95: Accu | F95: 82.00 | G95: - | H95: 100 | I95: 100.00 | J95: Target Achieved | K95: =H95-F95 -> 18.00 | L95: =K95/F95 -> 21.95% | M95: Successful | N95: 2016-10-14
A96: 2 | B96: 2014-06-04 | D96: Finolex Inds | E96: Buy | F96: 257.00 | G96: - | H96: 300 | I96: 300.00 | J96: Target Achieved | K96: =H96-F96 -> 43.00 | L96: 16.73% | M96: Successful | N96: 2014-07-02
A97: =1+A96 -> 3 | B97: 2014-07-08 | D97: JK Cement | E97: Buy | F97: 393.00 | G97: - | H97: 468 | I97: 468.00 | J97: Target Achieved | K97: =H97-F97 -> 75.00 | L97: 19.08% | M97: Successful | N97: 2014-08-12
A98: 4 | B98: 2014-08-06 | D98: Finolex Cables | E98: Buy | F98: 205.00 | G98: - | H98: 275 | I98: 250.00 | J98: Target Achieved | K98: 70.00 | L98: 34.15% | M98: Successful | N98: 2014-11-19
A99: 5 | B99: 2014-09-04 | D99: Exide Inds | E99: Buy | F99: 162.00 | G99: - | H99: 190 | I99: 190.00 | J99: Target Achieved | K99: 28.00 | L99: 17.28% | M99: Successful | N99: 2015-01-02
A100: 6 | B100: 2014-09-04 | D100: Deepak Nitrite | E100: Buy | F100: 75.00 | G100: - | H100: 91.5 | I100: 95-100 | J100: Profit of Rs.16.50/- | K100: 16.50 | L100: 22.00% | M100: Successful | N100: 2014-11-11
A101: 7 | B101: 2014-10-01 | D101: Mercks | E101: Buy | F101: 850.00 | G101: - | H101: 982.5 | I101: 1050.00 | J101: Profit of Rs.132.50/- | K101: 132.50 | L101: 15.59% | M101: Successful | N101: 2015-02-04
A102: 8 | B102: 2014-10-01 | D102: Grindwell Norton | E102: Buy | F102: 475.00 | G102: - | H102: 515 | I102: 600.00 | J102: Profit of Rs.40/- | K102: 40.00 | L102: 8.42% | M102: Successful | N102: 2014-10-27
A103: 9 | B103: 2014-10-01 | D103: Snowman Logistics | E103: Buy | F103: 86.00 | G103: - | H103: 99 | I103: 140.00 | J103: Profit of Rs.13.00/- | K103: 13.00 | L103: 15.12% | M103: Successful | N103: 2014-10-27
A104: 10 | B104: 2014-10-14 | D104: Birla Corp | E104: Buy | F104: 496.60 | G104: - | H104: 621 | I104: 580.00 | J104: Target Achieved | K104: 124.40 | L104: 25.05% | M104: Successful | N104: 2016-08-23
A105: 11 | B105: 2014-10-14 | D105: Ultratech Cem | E105: Buy | F105: 2481.90 | G105: - | H105: 2840 | I105: 2870.00 | J105: Profit of Rs.358.10/- | K105: 358.10 | L105: 14.43% | M105: Successful | N105: 2015-01-13
A106: =1+A103 -> 10 | B106: 2014-10-16 | D106: Sintex Inds | E106: Buy | F106: 84.50 | G106: - | H106: 93 | I106: 110.00 | J106: Profit of Rs.8.50/- | K106: 8.50 | L106: 10.06% | M106: Successful | N106: 2014-10-27
A107: =1+A106 -> 11 | B107: 2014-10-16 | D107: HSIL | E107: Buy | F107: 401.00 | G107: - | H107: 428 | I107: 450.00 | J107: Profit of Rs.27.00/- | K107: 27.00 | L107: 6.73% | M107: Successful | N107: 2015-01-16
A108: 12 | B108: 2014-10-16 | D108: Eveready Inds | E108: Buy | F108: 101.00 | G108: - | H108: 112 | I108: 120.00 | J108: Profit of Rs.11.00/- | K108: 11.00 | L108: 10.89% | M108: Successful | N108: 2014-10-27
A109: 13 | B109: 2014-11-11 | D109: Pennar Inds | E109: Buy | F109: 59.00 | G109: - | H109: 76 | I109: 76.00 | J109: Target Achieved | K109: 17.00 | L109: 28.81% | M109: Successful | N109: 2017-10-24
A110: 14 | B110: 2014-11-11 | D110: Snowman Logistics | E110: Buy | F110: 99.00 | G110: - | H110: 120 | I110: 120.00 | J110: Profit of Rs.21/- | K110: 21.00 | L110: 21.21% | M110: Successful | N110: 2014-11-17
A111: 15 | B111: 2014-11-13 | D111: Dharamsi Morarji Chem | E111: Buy | F111: 22.00 | G111: - | H111: 33.55 | I111: 32.00 | J111: Profit of Rs 11.55/- | K111: 11.55 | L111: 52.50% | M111: Successful | N111: 2015-07-03
A112: 16 | B112: 2014-12-03 | D112: Tatachem | E112: Buy | F112: 440.00 | G112: - | H112: 520 | I112: 520.00 | J112: Profit of Rs 80.00/- | K112: 80.00 | L112: 18.18% | M112: Successful | N112: 2015-07-23
A113: 17 | B113: 2014-12-03 | D113: Advanta | E113: Buy | F113: 360.00 | G113: - | H113: 427 | I113: 425.00 | J113: Profit of Rs.67.00/- | K113: 67.00 | L113: 18.61% | M113: Successful | N113: 2015-02-23
A114: 18 | B114: 2015-01-08 | D114: GDL | E114: Buy | F114: 360.00 | G114: - | H114: 455 | I114: 420.00 | J114: Profit of Rs.95.00/- | K114: 95.00 | L114: 26.39% | M114: Successful | N114: 2015-01-20
A115: 19 | B115: 2015-01-08 | D115: NRB Bearing | E115: Buy | F115: 130.00 | H115: 175.5 | I115: 165.00 | J115: Profit of Rs 45.50/- | K115: 45.50 | L115: 35.00% | M115: Successful | N115: 2017-12-19
A116: 20 | B116: 2015-02-05 | D116: GSFC | E116: Accu | F116: 98.00 | H116: 120 | I116: 120.00 | J116: Target Achieved | K116: 22.00 | L116: 22.45% | M116: Successful | N116: 2017-01-18
A117: 21 | B117: 2015-02-05 | D117: Sundrmfast | E117: Accu | F117: 196.00 | H117: 262 | I117: 255.00 | J117: Target Achieved | K117: 66.00 | L117: 33.67% | M117: Successful | N117: 2016-08-17
A118: 22 | B118: 2015-03-04 | D118: GPPL | E118: Accu | F118: 235 | H118: 77.00 | I118: 280-285 | J118: Loss of Rs.158/- | K118: =H118-F118 -> -158.00 | L118: -67.23% | M118: Unsuccessful | N118: 2019-02-26
A119: 23 | B119: 2015-03-04 | D119: ORIENTCEM | E119: Accu | F119: 185.00 | H119: 224 | I119: 220-225 | J119: Target Achieved | K119: 39.00 | L119: =K119/F119 -> 21.08% | M119: Successful | N119: 2016-10-04
A120: 24 | B120: 2015-03-27 | D120: PFS | E120: Accu | F120: 49.5 | H120: 15.85 | I120: 67.00 | J120: Loss of Rs.33.65/- | K120: =H120-F120 -> -33.65 | L120: =K120/F120 -> -68% | M120: Unsuccessful | N120: 2019-06-11
A121: 25 | B121: 2015-03-30 | D121: Walchandnagar Ind Ltd | E121: Accu | F121: 183.50 | H121: 219 | I121: 218.00 | J121: Profit of Rs.35.50/- | K121: 35.50 | L121: =K121/F121 -> 19.35% | M121: Successful | N121: 2015-04-09
A122: 26 | B122: 2015-04-20 | D122: Kalpataru Power Transmission Ltd | E122: Accu | F122: =(227+237)/2 -> 232.00 | H122: 298 | I122: 298.00 | J122: Target Achieved | K122: 66.00 | L122: 28.45% | M122: Successful | N122: 2017-03-29
A123: 27 | B123: 2015-05-04 | D123: Mastek Ltd | E123: Buy | F123: 385.00 | H123: =212.5+331 -> 543.5 | I123: 510.00 | J123: Profit of Rs 158.50/- | K123: 158.50 | L123: 41.17% | M123: Successful | N123: 2015-08-19
A124: 28 | B124: 2015-05-04 | D124: Suprajit Eng | E124: Buy | F124: 115.50 | H124: 146 | I124: 142.00 | J124: Profit of Rs 30.50/- | K124: 30.50 | L124: 26.41% | M124: Successful | N124: 2015-07-17
A125: 29 | B125: 2015-05-27 | D125: TCI | E125: Buy | F125: 237.50 | H125: 279.5 | I125: 278.00 | J125: Target Achieved | K125: 42.00 | L125: 17.68% | M125: Successful | N125: 2015-08-06
A126: 30 | B126: 2015-06-19 | D126: HSIL | E126: Accu | F126: 340.00 | H126: 448 | I126: 448.00 | J126: Target Achieved | K126: 108.00 | L126: 31.76% | M126: Successful | N126: 2017-10-10
A127: 31 | B127: 2015-07-06 | D127: Capital First | E127: Accu | F127: 390.00 | H127: 460 | I127: 460.00 | J127: Target Achieved | K127: 70.00 | L127: 17.95% | M127: Successful | N127: 2016-04-18
A128: 32 | B128: 2015-07-10 | D128: Dolphin OffShore | E128: Accu | F128: 122.5 | H128: 61.00 | I128: 172.00 | J128: Loss of Rs.61.50/- | K128: -61.50 | L128: -50.20% | M128: Unsuccessful | N128: 2018-08-21
A129: 33 | B129: 2015-08-03 | D129: Allcargo logistics | E129: Accu | F129: 297.50 | H129: 350 | I129: 360.00 | J129: Profit of Rs 52.50/- | K129: 52.50 | L129: =K129/F129 -> 17.65% | M129: Successful | N129: 2015-08-16
A130: 34 | B130: 2015-08-03 | D130: Camline Fine | E130: Accu | F130: 115.50 | H130: 149 | I130: 140.00 | J130: Profit of Rs 33.50/- | K130: 33.50 | L130: 29.00% | M130: Successful | N130: 2017-01-05
A131: 35 | B131: 2015-09-04 | D131: TCI | E131: Accu | F131: 226.00 | H131: 292 | I131: 292.00 | J131: Target Achieved | K131: 66.00 | L131: 29.20% | M131: Successful | N131: 2015-10-09
A132: 36 | B132: 2015-09-07 | D132: Kalpataru Power Transmission Ltd | E132: Accu | F132: 232.50 | H132: 312.5 | I132: 310.00 | J132: Target Achieved | K132: 80.00 | L132: 34.41% | M132: Successful | N132: 2017-03-29
A133: 37 | B133: 2015-09-21 | D133: LLOYD ELECTRIC & ENG LTD | E133: Accu | F133: 196.50 | H133: 238 | I133: 238.00 | J133: Target Achieved | K133: 41.50 | L133: 21.12% | M133: Successful | N133: 2015-10-14
A134: 38 | B134: 2015-09-24 | D134: L&T Finance Holding | E134: Accu | F134: 65.00 | H134: 82 | I134: 82.00 | J134: Target Achieved | K134: 17.00 | L134: 26.15% | M134: Successful | N134: 2016-07-27
A135: 39 | B135: 2015-10-14 | D135: KEC International ltd | E135: Accu | F135: 144.00 | H135: 182.5 | I135: 181.00 | J135: Target Achieved | K135: 38.50 | L135: 26.74% | M135: Successful | N135: 2017-03-23
A136: 40 | B136: 2015-10-14 | D136: Gruh Finance | E136: Accu | F136: 264.00 | H136: 311 | I136: 311.00 | J136: Target Achieved | K136: 47.00 | L136: 17.80% | M136: Successful | N136: 2016-08-22
A137: 41 | B137: 2015-11-10 | D137: Pidilitind | E137: Buy | F137: 549.50 | H137: 630 | I137: 630.00 | J137: Target Achieved | K137: 80.50 | L137: 14.65% | M137: Successful | N137: 2016-02-19
A138: 42 | B138: 2015-12-04 | D138: Zensar Technology | E138: Accu | F138: 1027.50 | H138: 1315 | I138: 1250.00 | J138: Target Achieved | K138: =H138-F138 -> 287.50 | L138: 27.98% | M138: Successful | N138: 2018-05-24
A139: 43 | B139: 2015-12-29 | D139: Vinati Organics Ltd | E139: Accu | F139: 465.00 | H139: 540 | I139: 540.00 | J139: Target Achieved | K139: 75.00 | L139: =K139/F139 -> 16.13% | M139: Successful | N139: 2016-06-09
A140: 44 | B140: 2016-01-11 | D140: GSFC | E140: Buy | F140: 81.00 | H140: 110 | I140: 110.00 | J140: Target Achieved | K140: 29.00 | L140: 35.80% | M140: Successful | N140: 2017-01-10
A141: 45 | B141: 2016-01-13 | D141: SSWL | E141: Buy | F141: 417.50 | H141: 547 | I141: 535.00 | J141: Target Achieved | K141: 129.50 | L141: 31.02% | M141: Successful | N141: 2016-07-27 | T141: .
A142: 46 | B142: 2016-02-08 | D142: Persistent System Ltd | E142: Accu | F142: 650.00 | H142: 800 | I142: 800.00 | J142: Target Achieved | K142: 150.00 | L142: 23.08% | M142: Successful | N142: 2018-02-23
A143: 47 | B143: 2016-03-04 | D143: UPL | E143: Accu | F143: 437.50 | H143: 504.5 | I143: 522.00 | J143: Profit of Rs.67/- | K143: 67.00 | L143: 15.31% | M143: Successful | N143: 2016-04-20
A144: 48 | B144: 2016-03-09 | D144: Ashoka Buildcon Ltd | E144: Accu | F144: 189.50 | H144: 218 | I144: 218.00 | J144: Target Achieved | K144: 28.50 | L144: 15.04% | M144: Successful | N144: 2017-10-26
A145: 49 | B145: 2016-04-11 | D145: PTC INDIA FIN SERV LTD | E145: Accu | F145: 36.5 | H145: 15.85 | I145: 60.00 | J145: Loss of Rs.20.65/- | K145: -20.65 | L145: -56.58% | M145: Unsuccessful | N145: 2019-06-11
A146: 50 | B146: 2016-04-12 | D146: CAMLINFINE $ | E146: Accu | F146: 93.00 | H146: 149 | I146: 140.00 | J146: Profit of Rs 56/- | K146: 56.00 | L146: =K146/F146 -> 60.22% | M146: Successful | N146: 2017-01-05
A147: 51 | B147: 2016-04-12 | D147: Greaves Cotton Ltd. | E147: Accu | F147: 130.00 | H147: 150 | I147: 150-155 | J147: Target Achieved | K147: 20.00 | L147: 15.38% | M147: Successful | N147: 2016-07-13
A148: 52 | B148: 2016-04-13 | D148: DHFL | E148: Accu | F148: 196.00 | H148: 299 | I148: 299.00 | J148: Target Achieved | K148: 103.00 | L148: 52.55% | M148: Successful | N148: 2016-09-07
A149: 53 | B149: 2016-04-13 | D149: Magma | E149: Accu | F149: 88.00 | H149: 103 | I149: 103.00 | J149: Target Achieved | K149: 15.00 | L149: 17.05% | M149: Successful | N149: 2016-06-09
A150: 54 | B150: 2016-05-02 | D150: KEC International ltd $ | E150: Accu | F150: 127.50 | H150: 148 | I150: 148-150 | J150: Target Achieved | K150: 20.50 | L150: 16.08% | M150: Successful | N150: 2016-07-13
A151: 55 | B151: 2016-05-03 | D151: Mindtree | E151: Accu | F151: 675.00 | H151: 815 | I151: 790-800 | J151: Target Achieved | K151: 140.00 | L151: 20.74% | M151: Successful | N151: 2018-02-23
A152: 56 | B152: 2016-06-06 | D152: TRITURBINE | E152: Accu | F152: 110.00 | H152: 126.5 | I152: 125.00 | J152: Profit of Rs.16.50/- | K152: 16.50 | L152: =K152/F152 -> 15.00% | M152: Successful | N152: 2016-07-01
A153: 57 | B153: 2016-06-17 | D153: Pennar Industries Ltd | E153: Accu | F153: 44.00 | H153: 69.5 | I153: 69.50 | J153: Profit of Rs.25.50/- | K153: 25.50 | L153: 57.95% | M153: Successful | N153: 2017-08-30
A154: 58 | B154: 2016-06-28 | D154: EVEREADY INDS. IND. LTD. | E154: Accu | F154: 262.50 | H154: 340 | I154: 333.00 | J154: Profit of Rs.77.50/- | K154: 77.50 | L154: 29.52% | M154: Successful | N154: 2017-10-09
A155: 59 | B155: 2016-06-28 | D155: FIEM INDUSTRIES LIMITED | E155: Accu | F155: 840.00 | H155: 1230 | I155: 1230.00 | J155: Target Achieved | K155: 390.00 | L155: 46.43% | M155: Successful | N155: 2016-10-06
A156: 60 | B156: 2016-07-05 | D156: Bajaj Corp Ltd | E156: Accu | F156: 395 | H156: =(468.5+342.5)/2 -> 405.50 | I156: 510.00 | J156: Profit of Rs.10.50/- | K156: 10.50 | L156: 3% | M156: Neutral | N156: 2019-05-21
A157: 61 | B157: 2016-08-02 | D157: GPPL $ | E157: Buy | F157: 169.5 | H157: 77.00 | I157: 198-200 | J157: Loss of Rs.92.5/- | K157: -92.50 | L157: -54.57% | M157: Unsuccessful | N157: 2019-02-26
A158: 62 | B158: 2016-08-04 | D158: WONDERLA HOLIDAYS LTD | E158: Accu | F158: 400 | H158: 305.00 | I158: 475.00 | J158: Loss of Rs.95/- | K158: =H158-F158 -> -95.00 | L158: =K158/F158 -> -23.75% | M158: Unsuccessful | N158: 2019-05-21
A159: 63 | B159: 2016-08-11 | D159: CAMLINFINE | E159: Accu | F159: 86.50 | H159: 130 | I159: 130.00 | J159: Profit of Rs.43.50/- | K159: =H159-F159 -> 43.50 | L159: =K159/F159 -> 50.29% | M159: Successful | N159: 2017-12-22
A160: 64 | B160: 2016-08-18 | D160: GRANULES | E160: Accu | F160: 133.5 | H160: 126.50 | I160: 178.00 | J160: Exit | K160: -7.00 | L160: -5.24% | M160: Unsuccessful | N160: 2016-09-02
A161: 65 | B161: 2016-08-31 | D161: VA TECH WABAG | E161: Accu | F161: 560.00 | H161: 725 | I161: 725.00 | J161: Target Achieved | K161: 165.00 | L161: 29.46% | M161: Successful | N161: 2016-03-27
A162: 66 | B162: 2016-09-01 | D162: SKIPPER LIMITED | E162: Accu | F162: 160.50 | H162: 210 | I162: 210.00 | J162: Target Achieved | K162: 49.50 | L162: 30.84% | M162: Successful | N162: 2017-05-16
A163: 67 | B163: 2016-10-03 | D163: IFB Industries | E163: Accu | F163: 430.00 | H163: 596 | I163: 575.00 | J163: Profit of Rs.166/- | K163: 166.00 | L163: 38.60% | M163: Successful | N163: 2017-02-03
A164: 68 | B164: 2016-10-14 | D164: ASIANTILES | E164: Accu | F164: 280.00 | H164: 345 | I164: 345.00 | J164: Target Achieved | K164: 65.00 | L164: 23.21% | M164: Successful | N164: 2017-03-20
A165: 69 | B165: 2016-10-14 | D165: DEEPIND | E165: Accu | F165: 245.00 | H165: 325.5 | I165: 330.00 | J165: Profit of Rs.80.5/- | K165: 80.50 | L165: 32.86% | M165: Successful | N165: 2017-02-03
A166: 70 | B166: 2016-10-17 | D166: DCBBANK | E166: Accu | F166: 125.00 | H166: 160 | I166: 160.00 | J166: Target Achieved | K166: 35.00 | L166: 28.00% | M166: Successful | N166: 2017-03-09
A167: 71 | B167: 2016-10-17 | D167: ORIENTREF | E167: Accu | F167: 114.00 | H167: 145 | I167: 145.00 | J167: Target Achieved | K167: 31.00 | L167: =K167/F167 -> 27.19% | M167: Successful | N167: 2017-05-04
A168: 72 | B168: 2016-10-17 | D168: GANECOS | E168: Accu | F168: 212.00 | H168: 280 | I168: 276.00 | J168: Profit of Rs.68/- | K168: 68.00 | L168: =K168/F168 -> 32.08% | M168: Successful | N168: 2017-05-03
A169: 73 | B169: 2016-11-04 | D169: NBCC | E169: Accu | F169: 155.00 | H169: 210 | I169: 210.00 | J169: Profit of Rs.55/- | K169: 55.00 | L169: =K169/F169 -> 35.48% | M169: Successful | N169: 2017-07-28
A170: 74 | B170: 2016-12-06 | D170: PRECAM | E170: Accu | F170: 150.5 | H170: 72.50 | I170: 174.00 | J170: Loss of Rs.78/- | K170: -78.00 | L170: =K170/F170 -> -51.83% | M170: Unsuccessful | N170: 2018-08-21
A171: 75 | B171: 2016-12-08 | D171: INFRATEL | E171: Accu | F171: 380.00 | H171: 478 | I171: 468.00 | J171: Target Achieved | K171: 98.00 | L171: =K171/F171 -> 25.79% | M171: Successful | N171: 2017-10-17
A172: 76 | B172: 2016-12-30 | D172: GODREJPROP | E172: Accu | F172: 305.00 | H172: 375 | I172: 375.00 | J172: Target Achieved | K172: 70.00 | L172: 22.95% | M172: Successful | N172: 2017-02-02
A173: 77 | B173: 2017-01-04 | D173: DEEPAKNTR | E173: Accu | F173: 99.50 | H173: 158 | I173: 158.00 | J173: Target Achieved | K173: 58.50 | L173: 58.79% | M173: Successful | N173: 2017-06-12
A174: 78 | B174: 2017-02-20 | D174: SUBROS | E174: Accu | F174: 202.50 | H174: 234 | I174: 234.00 | J174: Target Achieved | K174: 31.50 | L174: 15.56% | M174: Successful | N174: 2017-04-11
A175: 79 | B175: 2017-02-20 | D175: RECLTD | E175: Accu | F175: 140.50 | H175: 220 | I175: 220.00 | J175: Target Achieved | K175: 79.50 | L175: 56.58% | M175: Successful | N175: 2017-05-09
A176: 80 | B176: 2017-03-24 | D176: VRLLOG | E176: Accu | F176: 300.50 | H176: 417.5 | I176: 420.00 | J176: Profit of Rs.117/- | K176: 117.00 | L176: 38.94% | M176: Successful | N176: 2017-12-01
A177: 81 | B177: 2017-03-24 | D177: FIEMIND | E177: Accu | F177: 850.00 | H177: 1042.5 | I177: 1023.00 | J177: Profit of Rs 192.50/- | K177: 192.50 | L177: 22.65% | M177: Successful | N177: 2017-04-05
A178: 82 | B178: 2017-04-05 | D178: RATNAMANI | E178: Accu | F178: 785.00 | H178: 930 | I178: 920.00 | J178: Profit of Rs.145/- | K178: 145.00 | L178: 18.47% | M178: Successful | N178: 2017-08-29
A179: 83 | B179: 2017-04-06 | D179: ZEEMEDIA | E179: Accu | F179: 40 | H179: 13.10 | I179: 60.00 | J179: Loss of Rs.26.9/- | K179: =H179-F179 -> -26.90 | L179: -67.25% | M179: Unsuccessful | N179: 2018-02-07
A180: 84 | B180: 2017-04-12 | D180: DABUR | E180: Accu | F180: 289.50 | H180: 354 | I180: 360.00 | J180: Profit of Rs.64.5/- | K180: 64.50 | L180: =K180/F180 -> 22.28% | M180: Successful | N180: 2017-11-01
A181: 85 | B181: 2017-04-20 | D181: KPRMILL | E181: Accu | F181: 700.00 | H181: 840 | I181: 840.00 | J181: Profit of Rs.140/- | K181: 140.00 | L181: =K181/F181 -> 20.00% | M181: Successful | N181: 2017-06-07
A182: 86 | B182: 2017-05-22 | D182: GREAVESCOT | E182: Accu | F182: 153-158 | I182: 190.00 | J182: Open
A183: 87 | B183: 2017-06-01 | D183: ESSELPACK | E183: Accu | F183: 130 | H183: 155.50 | I183: 170.00 | J183: Part profit of Rs.51/- | K183: =H183-F183 -> 25.50 | L183: =K183/F183 -> 20% | M183: Successful | N183: 2017-11-17
A184: 88 | B184: 2017-06-15 | D184: KEI | E184: Accu | F184: 214.50 | H184: 262 | I184: 262.00 | J184: Profit of Rs.47.5/- | K184: =H184-F184 -> 47.50 | L184: 22.14% | M184: Successful | N184: 2017-08-30
A185: 89 | B185: 2017-07-17 | D185: MAYURUNIQ | E185: Accu | F185: 370.00 | H185: 447.5 | I185: 450.00 | J185: Target Achieved | K185: 77.50 | L185: 20.95% | M185: Successful | N185: 2017-10-27
A186: 90 | B186: 2017-07-27 | D186: RAMCOCEM | E186: Accu | F186: 657.50 | H186: 825 | I186: 820.00 | J186: Target Achieved | K186: 167.50 | L186: 25.48% | M186: Successful | N186: 2017-12-21
A187: 91 | B187: 2017-08-17 | D187: FINPIPE | E187: Accu | F187: 605.00 | H187: 750 | I187: 750.00 | J187: Profit of Rs.145/- | K187: 145.00 | L187: 23.97% | M187: Successful | N187: 2017-10-19
A188: 92 | B188: 2017-09-01 | D188: SHK | E188: Accu | F188: 255 | H188: 307.50 | I188: 320.00 | J188: Part profit of Rs.52.5/- | K188: 52.50 | L188: 21% | M188: Successful | N188: 2017-12-29
A189: 93 | B189: 2017-09-19 | D189: SKIPPER | E189: Accu | F189: 215.00 | H189: 258 | I189: 258.00 | J189: Target Achieved | K189: 43.00 | L189: 20.00% | M189: Successful | N189: 2017-11-01
A190: 94 | B190: 2017-09-20 | D190: CAMLINFINE | E190: Accu | F190: 75.00 | H190: 90 | I190: 90.00 | J190: Profit of Rs.15.00/- | K190: 15.00 | L190: 20.00% | M190: Successful | N190: 2017-10-11
A191: 95 | B191: 2017-10-03 | D191: GNA | E191: Accu | F191: 315.00 | H191: 392 | I191: 384.00 | J191: Profit of Rs.77/- | K191: 77.00 | L191: 24.44% | M191: Successful | N191: 2017-10-09
A192: 96 | B192: 2017-10-05 | D192: NOCIL | E192: Accu | F192: 145.00 | H192: 179 | I192: 180.00 | J192: Profit of Rs.34/- | K192: 34.00 | L192: 23.45% | M192: Successful | N192: 2017-10-17
A193: 97 | B193: 2017-10-06 | D193: CENTURYPLY | E193: Accu | F193: 256.00 | H193: 323 | I193: 320.00 | J193: Target Achieved | K193: 67.00 | L193: 26.17% | M193: Successful | N193: 2017-11-28
A194: 98 | B194: 2017-10-09 | D194: RECLTD | E194: Accu | F194: 152.5 | H194: 183.50 | I194: 210.00 | J194: Part Profit of Rs.31/- | K194: 31.00 | L194: 20% | M194: Successful | N194: 2017-11-03
A195: 99 | B195: 2017-10-09 | D195: EIHOTEL | E195: Accu | F195: 137.50 | H195: 184 | I195: 183.00 | J195: Profit of Rs.46.5/- | K195: 46.50 | L195: 33.82% | M195: Successful | N195: 2018-01-08
A196: 100 | B196: 2017-10-10 | D196: BOROSIL | E196: Accu | F196: 895.00 | H196: 1122.5 | I196: 1078.00 | J196: Profit of Rs.227.5/- | K196: 227.50 | L196: 25.42% | M196: Successful | N196: 2018-01-17
A197: 101 | B197: 2017-10-10 | D197: NRBBEARING | E197: Accu | F197: 125.50 | H197: 158 | I197: 155.00 | J197: Profit of Rs.32.5/- | K197: 32.50 | L197: 25.90% | M197: Successful | N197: 2017-11-28
A198: 102 | B198: 2017-10-12 | D198: CYIENT | E198: Accu | F198: 525.00 | H198: 629 | I198: 629.00 | J198: Target Achieved | K198: 104.00 | L198: 19.81% | M198: Successful | N198: 2018-01-19
A199: 103 | B199: 2017-11-07 | D199: HATSUN | E199: Accu | F199: 740.00 | H199: 892.5 | I199: 900.00 | J199: Profit of Rs.152.5/- | K199: 152.50 | L199: 20.61% | M199: Successful | N199: 2017-11-13
A200: 104 | B200: 2017-12-04 | D200: SANGHIIND | E200: Accu | F200: 118.50 | H200: 143.5 | I200: 145.00 | J200: Profit of Rs.25/- | K200: 25.00 | L200: 21.10% | M200: Successful | N200: 2017-12-28
A201: 105 | B201: 2017-12-05 | D201: ALLCARGO | E201: Accu | F201: 177.5 | H201: 215.00 | I201: 230.00 | J201: Part Profit of Rs.37.5/- | K201: 37.50 | L201: 21% | M201: Successful | N201: 2017-12-27
A202: 106 | B202: 2017-12-21 | D202: KAJARIACER | E202: Accu | F202: 710-720 | I202: 872.00 | J202: Open
A203: 107 | B203: 2017-12-29 | D203: GNA | E203: Accu | F203: 435.00 | H203: 542.5 | I203: 539.00 | J203: Target Achieved | K203: =H203-F203 -> 107.50 | L203: =K203/F203 -> 24.71% | M203: Successful | N203: 2018-04-16
A204: 108 | B204: 2017-12-29 | D204: ZENSARTECH | E204: Accu | F204: 885.00 | H204: 1090 | I204: 1084.00 | J204: Target Achieved | K204: =H204-F204 -> 205.00 | L204: =K204/F204 -> 23.16% | M204: Successful | N204: 2018-04-23
A205: 109 | B205: 2018-02-07 | D205: GREAVESCOT | E205: Accu | F205: 130-132 | I205: 190.00 | J205: Open
A206: 110 | B206: 2018-02-27 | D206: MOLDTKPAC | E206: Accu | F206: 320-330 | I206: 398.00 | J206: Open
A207: 111 | B207: 2018-03-05 | D207: LICHSGFIN | E207: Accu | F207: 505-515 | I207: 672.00 | J207: Open
A208: 112 | B208: 2018-04-02 | D208: EVERESTIND | E208: Accu | F208: 492.5 | H208: 589.00 | I208: 613.00 | J208: Part Profit of Rs.37.5/- | K208: =H208-F208 -> 96.50 | L208: =K208/F208 -> 20% | M208: Successful | N208: 2018-08-21
A209: 113 | B209: 2018-04-04 | D209: GPPL | E209: Accu | F209: 141.5 | H209: 77.00 | I209: 180.00 | J209: Loss of Rs.64.5/- | K209: =H209-F209 -> -64.50 | L209: =K209/F209 -> -45.58% | M209: Unsuccessful | N209: 2019-02-26
A210: 114 | B210: 2018-04-19 | D210: MANPASAND | E210: Accu | F210: 430 | H210: 220.00 | I210: 537.00 | J210: Loss of Rs.210/- | K210: =H210-F210 -> -210.00 | L210: =K210/F210 -> -48.84% | M210: Unsuccessful | N210: 2018-06-01
A211: 115 | B211: 2018-04-30 | D211: HEIDELBERG | E211: Accu | F211: 156 | H211: 196.00 | I211: 196.00 | J211: Profit of Rs.40/- | K211: =H211-F211 -> 40.00 | L211: =K211/F211 -> 26% | M211: Successful | N211: 2019-05-20
A212: 116 | B212: 2018-06-07 | D212: KEC | E212: Accu | F212: 340-345 | I212: 439.00 | J212: Open
A213: 117 | B213: 2018-07-04 | D213: ASHOKLEY | E213: Accu | F213: 125-130 | I213: 170.00 | J213: Open
A214: 118 | B214: 2018-07-13 | D214: FCONSUMER | E214: Accu | F214: 46-47 | I214: 59.00 | J214: Open
A215: 119 | B215: 2018-07-25 | D215: ZEEMEDIA | E215: Accu | F215: 27.5 | H215: 13.10 | I215: 60.00 | J215: Loss of Rs.14.40/- | K215: =H215-F215 -> -14.40 | L215: =K215/F215 -> -52.36% | M215: Unsuccessful | N215: 2018-02-07
A216: 120 | B216: 2018-08-06 | D216: GABRIEL | E216: Accu | F216: 148-152 | I216: 182.00 | J216: Open
A217: 121 | B217: 2018-08-23 | D217: INDIANHUME | E217: Accu | F217: 285.00 | H217: 355 | I217: 364.00 | J217: Profit of Rs.70/- | K217: =H217-F217 -> 70.00 | L217: =K217/F217 -> 24.56% | M217: Successful | N217: 2018-12-21
A218: 122 | B218: 2018-08-29 | D218: GRINDWELL | E218: Accu | F218: 520-530 | I218: 635.00 | J218: Open
A219: 123 | B219: 2018-10-22 | D219: FINPIPE | E219: Accu | F219: 475.00 | H219: 574 | I219: 570.00 | J219: Target Achieved | K219: =H219-F219 -> 99.00 | L219: =K219/F219 -> 20.84% | M219: Successful | N219: 2018-10-30
A220: 124 | B220: 2018-10-23 | D220: JKPAPER | E220: Accu | F220: 158-162 | I220: 191.00 | J220: Open
A221: 125 | B221: 2018-10-24 | D221: GULFOILLUB | E221: Accu | F221: 707.50 | H221: 872 | I221: 872.00 | J221: Target Achieved | K221: =H221-F221 -> 164.50 | L221: =K221/F221 -> 23.25% | M221: Successful | N221: 2019-01-17
A222: 126 | B222: 2018-10-25 | D222: GODREJCP | E222: Accu | F222: 707.5 | H222: 850.00 | I222: 890.00 | J222: Part Profit of Rs.142.5/- | K222: =H222-F222 -> 142.50 | L222: =K222/F222 -> 20% | M222: Successful | N222: 2018-12-19
A223: 127 | B223: 2018-10-25 | D223: DBCORP | E223: Accu | F223: 164.00 | H223: 204 | I223: 209.00 | J223: Profit of Rs.40/- | K223: =H223-F223 -> 40.00 | L223: =K223/F223 -> 24.39% | M223: Successful | N223: 2019-03-15
A224: 128 | B224: 2018-10-26 | D224: RITES | E224: Accu | F224: 240.00 | H224: 297 | I224: 297.00 | J224: Target Achieved | K224: =H224-F224 -> 57.00 | L224: =K224/F224 -> 23.75% | M224: Successful | N224: 2018-11-13
A225: 129 | B225: 2018-12-05 | D225: CCL | E225: Accu | F225: 260-270 | I225: 321.00 | J225: Open
A226: 130 | B226: 2018-12-05 | D226: BRIGADE | E226: Accu | F226: 202.50 | H226: 255 | I226: 252.00 | J226: Target Achieved | K226: =H226-F226 -> 52.50 | L226: =K226/F226 -> 25.93% | M226: Successful | N226: 2019-03-18
A227: 131 | B227: 2018-12-31 | D227: JKCEMENT | E227: Accu | F227: 710.00 | H227: 866 | I227: 866.00 | J227: Target Achieved | K227: =H227-F227 -> 156.00 | L227: =K227/F227 -> 21.97% | M227: Successful | N227: 2019-03-29
A228: 132 | B228: 2019-01-04 | D228: MGL | E228: Accu | F228: 890-900 | I228: 1185.00 | J228: Open
A229: 133 | B229: 2019-02-26 | D229: MARICO | E229: Accu | F229: 335-345 | I229: 411.00 | J229: Open
... 21 more rows

Sheet Sheet2 (hidden)
A1: SYMBOL | B1: SERIES | C1: OPEN | D1: HIGH | E1: LOW | F1: CLOSE | G1: LAST | H1: PREVCLOSE | I1: TOTTRDQTY | J1: TOTTRDVAL | K1: TIMESTAMP | L1: TOTALTRADES | M1: ISIN | N1: ISIN
A2: 20MICRONS | B2: EQ | C2: 36.35 | D2: 40.4 | E2: 35.5 | F2: 38.85 | G2: 38.95 | H2: 36.75 | I2: 61882 | J2: 2353866.55 | K2: 2019-07-03 | L2: 593 | M2: INE144J01027
A3: 21STCENMGM | B3: EQ | C3: 17.5 | D3: 17.7 | E3: 17.5 | F3: 17.7 | G3: 17.7 | H3: 17.4 | I3: 91 | J3: 1596.7 | K3: 2019-07-03 | L3: 5 | M3: INE253B01015
A4: 3IINFOTECH | B4: EQ | C4: 3.3 | D4: 3.3 | E4: 3.2 | F4: 3.25 | G4: 3.25 | H4: 3.3 | I4: 1107906 | J4: 3598110.6 | K4: 2019-07-03 | L4: 386 | M4: INE748C01020
A5: 3MINDIA | B5: EQ | C5: 23304.35 | D5: 23450 | E5: 23085 | F5: 23206.85 | G5: 23186.6 | H5: 23392.9 | I5: 1379 | J5: 32109223.1 | K5: 2019-07-03 | L5: 780 | M5: INE470A01017
A6: 3PLAND | B6: EQ | C6: 8.4 | D6: 8.75 | E6: 8.4 | F6: 8.75 | G6: 8.75 | H6: 8.8 | I6: 3494 | J6: 29414.55 | K6: 2019-07-03 | L6: 7 | M6: INE105C01023
A7: 5PAISA | B7: EQ | C7: 211.6 | D7: 223 | E7: 211.3 | F7: 221.2 | G7: 223 | H7: 217.7 | I7: 3567 | J7: 779967.8 | K7: 2019-07-03 | L7: 260 | M7: INE618L01018
A8: 63MOONS | B8: EQ | C8: 111.6 | D8: 114.75 | E8: 110.1 | F8: 111 | G8: 111.5 | H8: 110.15 | I8: 155044 | J8: 17421386.55 | K8: 2019-07-03 | L8: 2303 | M8: INE111B01023
A9: 8KMILES | B9: EQ | C9: 79 | D9: 84.3 | E9: 78 | F9: 84.3 | G9: 84.3 | H9: 80.3 | I9: 51291 | J9: 4287597.2 | K9: 2019-07-03 | L9: 399 | M9: INE650K01021
A10: A2ZINFRA | B10: EQ | C10: 12.2 | D10: 12.55 | E10: 11.9 | F10: 12.45 | G10: 12.3 | H10: 12.3 | I10: 213131 | J10: 2614667.85 | K10: 2019-07-03 | L10: 659 | M10: INE619I01012
A11: AARTIDRUGS | B11: EQ | C11: 525.2 | D11: 528.95 | E11: 522.05 | F11: 525.4 | G11: 526.85 | H11: 520.95 | I11: 5705 | J11: 2993818.35 | K11: 2019-07-03 | L11: 661 | M11: INE767A01016
A12: AARTIIND | B12: BE | C12: 1725.2 | D12: 1799.45 | E12: 1724 | F12: 1753.7 | G12: 1755 | H12: 1801.25 | I12: 11595 | J12: 20327982.3 | K12: 2019-07-03 | L12: 1391 | M12: INE769A01020
A13: AARVEEDEN | B13: EQ | C13: 19.35 | D13: 20.25 | E13: 19.15 | F13: 19.6 | G13: 19.5 | H13: 19.4 | I13: 6966 | J13: 137284.55 | K13: 2019-07-03 | L13: 122 | M13: INE273D01019
A14: AAVAS | B14: EQ | C14: 1509 | D14: 1527 | E14: 1490.85 | F14: 1512.7 | G14: 1510 | H14: 1498.7 | I14: 315791 | J14: 474553139.6 | K14: 2019-07-03 | L14: 4034 | M14: INE216P01012
A15: ABAN | B15: EQ | C15: 39.35 | D15: 40 | E15: 38.25 | F15: 38.65 | G15: 38.65 | H15: 39.35 | I15: 79497 | J15: 3110058.25 | K15: 2019-07-03 | L15: 1038 | M15: INE421A01028
A16: ABB | B16: EQ | C16: 1607.95 | D16: 1615.45 | E16: 1600 | F16: 1607.75 | G16: 1610 | H16: 1600.45 | I16: 58485 | J16: 94062949.2 | K16: 2019-07-03 | L16: 3892 | M16: INE117A01022
A17: ABBOTINDIA | B17: EQ | C17: 8726.25 | D17: 8844.85 | E17: 8726.25 | F17: 8802.7 | G17: 8799.9 | H17: 8782.95 | I17: 1366 | J17: 12017904.05 | K17: 2019-07-03 | L17: 482 | M17: INE358A01014
A18: ABCAPITAL | B18: EQ | C18: 91.8 | D18: 92.8 | E18: 90.7 | F18: 92.4 | G18: 92.5 | H18: 91.35 | I18: 873664 | J18: 80515817.2 | K18: 2019-07-03 | L18: 10673 | M18: INE674K01013
A19: ABFRL | B19: EQ | C19: 217.85 | D19: 219.3 | E19: 214 | F19: 215.4 | G19: 214.55 | H19: 216.4 | I19: 208043 | J19: 45166768.95 | K19: 2019-07-03 | L19: 7251 | M19: INE647O01011
A20: ABSLNN50ET | B20: EQ | C20: 274 | D20: 277.39 | E20: 274 | F20: 277.39 | G20: 277.39 | H20: 274 | I20: 53 | J20: 14665.57 | K20: 2019-07-03 | L20: 3 | M20: INF209KB1B87
A21: ACC | B21: EQ | C21: 1577.9 | D21: 1582.55 | E21: 1558.4 | F21: 1564.05 | G21: 1561.95 | H21: 1573.8 | I21: 432234 | J21: 678019303.7 | K21: 2019-07-03 | L21: 14812 | M21: INE012A01025
A22: ACCELYA | B22: EQ | C22: 857.9 | D22: 863.5 | E22: 856 | F22: 860.45 | G22: 858 | H22: 857.9 | I22: 3117 | J22: 2683158.95 | K22: 2019-07-03 | L22: 205 | M22: INE793A01012
A23: ACE | B23: EQ | C23: 94 | D23: 94.95 | E23: 93.5 | F23: 94.3 | G23: 94.8 | H23: 94.25 | I23: 89008 | J23: 8374245 | K23: 2019-07-03 | L23: 1967 | M23: INE731H01025
A24: ADANIENT | B24: EQ | C24: 156.4 | D24: 157.6 | E24: 154.2 | F24: 155.6 | G24: 154.8 | H24: 154.7 | I24: 5661251 | J24: 881287819.3 | K24: 2019-07-03 | L24: 33800 | M24: INE423A01024
A25: ADANIGAS | B25: EQ | C25: 174.7 | D25: 178.65 | E25: 173.25 | F25: 174.25 | G25: 174.3 | H25: 175.55 | I25: 631985 | J25: 110749188.5 | K25: 2019-07-03 | L25: 7571 | M25: INE399L01023
A26: ADANIGREEN | B26: EQ | C26: 50.75 | D26: 54 | E26: 50.5 | F26: 52 | G26: 52.05 | H26: 50.2 | I26: 5384608 | J26: 282866908.6 | K26: 2019-07-03 | L26: 22058 | M26: INE364U01010
A27: ADANIPORTS | B27: EQ | C27: 414 | D27: 419.5 | E27: 414 | F27: 414.9 | G27: 414.3 | H27: 414.05 | I27: 2542307 | J27: 1058888216 | K27: 2019-07-03 | L27: 40115 | M27: INE742F01042
A28: ADANIPOWER | B28: EQ | C28: 64.3 | D28: 66.25 | E28: 63.6 | F28: 65.75 | G28: 66 | H28: 64.75 | I28: 52851764 | J28: 3444236586 | K28: 2019-07-03 | L28: 100629 | M28: INE814H01011
A29: ADANITRANS | B29: EQ | C29: 235.95 | D29: 241 | E29: 231 | F29: 232.3 | G29: 233 | H29: 236.2 | I29: 173647 | J29: 40900999.75 | K29: 2019-07-03 | L29: 3924 | M29: INE931S01010
A30: ADFFOODS | B30: EQ | C30: 295.9 | D30: 302 | E30: 293.1 | F30: 296.55 | G30: 296 | H30: 295.15 | I30: 92503 | J30: 27648841 | K30: 2019-07-03 | L30: 2207 | M30: INE982B01019
A31: ADHUNIK | B31: EQ | C31: 1.35 | D31: 1.4 | E31: 1.35 | F31: 1.35 | G31: 1.35 | H31: 1.4 | I31: 22697 | J31: 30645.8 | K31: 2019-07-03 | L31: 18 | M31: INE400H01019
A32: ADHUNIKIND | B32: EQ | C32: 85.95 | D32: 87.9 | E32: 84.35 | F32: 86.55 | G32: 87.9 | H32: 84.15 | I32: 13937 | J32: 1194386.95 | K32: 2019-07-03 | L32: 202 | M32: INE452L01012
A33: ADLABS | B33: EQ | C33: 5.05 | D33: 5.55 | E33: 5.05 | F33: 5.55 | G33: 5.55 | H33: 5.3 | I33: 64977 | J33: 353102.6 | K33: 2019-07-03 | L33: 194 | M33: INE172N01012
A34: ADORWELD | B34: EQ | C34: 341.15 | D34: 344.95 | E34: 341.1 | F34: 343.55 | G34: 343 | H34: 342.4 | I34: 496 | J34: 170088.15 | K34: 2019-07-03 | L34: 74 | M34: INE045A01017
A35: ADROITINFO | B35: EQ | C35: 10.5 | D35: 10.9 | E35: 10.5 | F35: 10.85 | G35: 10.85 | H35: 11.05 | I35: 918 | J35: 9775 | K35: 2019-07-03 | L35: 16 | M35: INE737B01033
A36: ADSL | B36: EQ | C36: 13.55 | D36: 14.65 | E36: 13.55 | F36: 14 | G36: 14 | H36: 13.95 | I36: 17862 | J36: 253088.2 | K36: 2019-07-03 | L36: 79 | M36: INE102I01027
A37: ADVANIHOTR | B37: EQ | C37: 63 | D37: 63 | E37: 61 | F37: 61.35 | G37: 61.4 | H37: 61.4 | I37: 842 | J37: 51791.4 | K37: 2019-07-03 | L37: 29 | M37: INE199C01026
A38: ADVENZYMES | B38: EQ | C38: 174.5 | D38: 175.95 | E38: 171.5 | F38: 172.2 | G38: 171.95 | H38: 173.3 | I38: 38818 | J38: 6718221.65 | K38: 2019-07-03 | L38: 1210 | M38: INE837H01020
A39: AEGISCHEM | B39: EQ | C39: 200.2 | D39: 202 | E39: 200 | F39: 200.5 | G39: 200.05 | H39: 200.15 | I39: 36446 | J39: 7312420.15 | K39: 2019-07-03 | L39: 1379 | M39: INE208C01025
A40: AGARIND | B40: EQ | C40: 118.8 | D40: 122.65 | E40: 111.05 | F40: 118.4 | G40: 114 | H40: 116.85 | I40: 12671 | J40: 1482708.6 | K40: 2019-07-03 | L40: 269 | M40: INE204E01012
A41: AGCNET | B41: EQ | C41: 110.2 | D41: 112.15 | E41: 110 | F41: 110.05 | G41: 110.85 | H41: 110 | I41: 7282 | J41: 802060.8 | K41: 2019-07-03 | L41: 110 | M41: INE676A01019
A42: AGLSL | B42: EQ | C42: 52.6 | D42: 55.85 | E42: 52.6 | F42: 54 | G42: 53.15 | H42: 53.55 | I42: 1297 | J42: 69863.35 | K42: 2019-07-03 | L42: 21 | M42: INE517U01013
A43: AGRITECH | B43: EQ | C43: 62 | D43: 64.8 | E43: 61.15 | F43: 61.95 | G43: 62.85 | H43: 61.95 | I43: 28286 | J43: 1787741.4 | K43: 2019-07-03 | L43: 577 | M43: INE449G01018
A44: AGROPHOS | B44: BE | C44: 83.55 | D44: 86 | E44: 83.55 | F44: 85.35 | G44: 83.55 | H44: 83.75 | I44: 430 | J44: 36561.5 | K44: 2019-07-03 | L44: 10 | M44: INE740V01019
A45: AHLEAST | B45: EQ | C45: 187.05 | D45: 197.45 | E45: 187.05 | F45: 190.2 | G45: 188.05 | H45: 189.2 | I45: 55 | J45: 10454.9 | K45: 2019-07-03 | L45: 23 | M45: INE926K01017
A46: AHLUCONT | B46: EQ | C46: 340 | D46: 355.25 | E46: 332.85 | F46: 351.8 | G46: 354.8 | H46: 339.6 | I46: 13308 | J46: 4628900.6 | K46: 2019-07-03 | L46: 611 | M46: INE758C01029
A47: AHLWEST | B47: EQ | C47: 332 | D47: 339.9 | E47: 325.15 | F47: 327.55 | G47: 325.15 | H47: 338.05 | I47: 2644 | J47: 877509.9 | K47: 2019-07-03 | L47: 117 | M47: INE915K01010
A48: AIAENG | B48: EQ | C48: 1801.15 | D48: 1825.1 | E48: 1781.4 | F48: 1806.35 | G48: 1795 | H48: 1827.45 | I48: 5344 | J48: 9646207.55 | K48: 2019-07-03 | L48: 869 | M48: INE212H01026
A49: AIONJSW | B49: EQ | C49: 20.1 | D49: 23.45 | E49: 19.7 | F49: 21.55 | G49: 21.65 | H49: 20.5 | I49: 179422 | J49: 3986395.8 | K49: 2019-07-03 | L49: 803 | M49: INE743C01021
A50: AIRAN | B50: EQ | C50: 23.6 | D50: 26.8 | E50: 23.4 | F50: 23.55 | G50: 23.75 | H50: 24.25 | I50: 6508215 | J50: 157739080.4 | K50: 2019-07-03 | L50: 835 | M50: INE645W01026
A51: AJANTPHARM | B51: EQ | C51: 959.15 | D51: 968.3 | E51: 925 | F51: 954.75 | G51: 952.55 | H51: 959.15 | I51: 90323 | J51: 86421474.3 | K51: 2019-07-03 | L51: 4442 | M51: INE031B01049
A52: AJMERA | B52: EQ | C52: 169.75 | D52: 172.3 | E52: 167.8 | F52: 169.5 | G52: 169.5 | H52: 168.35 | I52: 17523 | J52: 2978516 | K52: 2019-07-03 | L52: 606 | M52: INE298G01027
A53: AKSHARCHEM | B53: EQ | C53: 270 | D53: 285 | E53: 263.5 | F53: 273.95 | G53: 281 | H53: 268.3 | I53: 2190 | J53: 597065.05 | K53: 2019-07-03 | L53: 224 | M53: INE542B01011
A54: AKSHOPTFBR | B54: EQ | C54: 11 | D54: 11.6 | E54: 10.85 | F54: 11.3 | G54: 11.35 | H54: 11.05 | I54: 296312 | J54: 3339082.6 | K54: 2019-07-03 | L54: 883 | M54: INE523B01011
A55: AKZOINDIA | B55: EQ | C55: 1756 | D55: 1824 | E55: 1756 | F55: 1796 | G55: 1781 | H55: 1779.95 | I55: 11494 | J55: 20706153.4 | K55: 2019-07-03 | L55: 1346 | M55: INE133A01011
A56: ALANKIT | B56: EQ | C56: 31.5 | D56: 31.75 | E56: 30.3 | F56: 30.65 | G56: 30.65 | H56: 30.85 | I56: 428381 | J56: 13184195.35 | K56: 2019-07-03 | L56: 2785 | M56: INE914E01040
A57: ALBERTDAVD | B57: EQ | C57: 391.3 | D57: 400 | E57: 390.6 | F57: 394.5 | G57: 394.1 | H57: 395 | I57: 655 | J57: 258387.05 | K57: 2019-07-03 | L57: 48 | M57: INE155C01010
A58: ALBK | B58: EQ | C58: 46.4 | D58: 49.6 | E58: 45.1 | F58: 48.95 | G58: 48.95 | H58: 46.85 | I58: 5915485 | J58: 281738086.9 | K58: 2019-07-03 | L58: 14843 | M58: INE428A01015
A59: ALCHEM | B59: BE | C59: 1.15 | D59: 1.2 | E59: 1.15 | F59: 1.2 | G59: 1.2 | H59: 1.15 | I59: 6700 | J59: 8005 | K59: 2019-07-03 | L59: 4 | M59: INE964B01033
A60: ALEMBICLTD | B60: EQ | C60: 42.65 | D60: 43.05 | E60: 42.45 | F60: 42.55 | G60: 42.7 | H60: 42.8 | I60: 42415 | J60: 1811003.55 | K60: 2019-07-03 | L60: 663 | M60: INE426A01027
A61: ALICON | B61: EQ | C61: 550 | D61: 566.05 | E61: 550 | F61: 554.2 | G61: 555.3 | H61: 560.3 | I61: 1408 | J61: 789432.05 | K61: 2019-07-03 | L61: 173 | M61: INE062D01024
A62: ALKALI | B62: EQ | C62: 40.5 | D62: 42.8 | E62: 40.5 | F62: 41.05 | G62: 40.75 | H62: 41.35 | I62: 3658 | J62: 150442.15 | K62: 2019-07-03 | L62: 78 | M62: INE773I01017
A63: ALKEM | B63: EQ | C63: 1711 | D63: 1730.7 | E63: 1690 | F63: 1716.85 | G63: 1722 | H63: 1710.75 | I63: 14736 | J63: 25219629.2 | K63: 2019-07-03 | L63: 4559 | M63: INE540L01014
A64: ALKYLAMINE | B64: EQ | C64: 820 | D64: 841 | E64: 820 | F64: 839.45 | G64: 840 | H64: 828 | I64: 1032 | J64: 862363.9 | K64: 2019-07-03 | L64: 97 | M64: INE150B01021
A65: ALLCARGO | B65: EQ | C65: 104.25 | D65: 105.4 | E65: 103.5 | F65: 104.5 | G65: 105 | H65: 103.8 | I65: 64979 | J65: 6769272 | K65: 2019-07-03 | L65: 1195 | M65: INE418H01029
A66: ALLSEC | B66: EQ | C66: 315.05 | D66: 317.75 | E66: 301.05 | F66: 301.05 | G66: 301.05 | H66: 316.85 | I66: 5988 | J66: 1815816 | K66: 2019-07-03 | L66: 89 | M66: INE835G01018
A67: ALMONDZ | B67: EQ | C67: 16.5 | D67: 17.4 | E67: 16.5 | F67: 16.7 | G67: 16.65 | H67: 17.4 | I67: 5073 | J67: 85149.25 | K67: 2019-07-03 | L67: 36 | M67: INE326B01027
A68: ALOKTEXT | B68: EQ | C68: 3.45 | D68: 3.55 | E68: 3.35 | F68: 3.5 | G68: 3.5 | H68: 3.4 | I68: 3519245 | J68: 12111631.1 | K68: 2019-07-03 | L68: 793 | M68: INE270A01011
A69: ALPA | B69: EQ | C69: 19 | D69: 19 | E69: 17.75 | F69: 18.65 | G69: 18.65 | H69: 19 | I69: 5627 | J69: 104173.3 | K69: 2019-07-03 | L69: 107 | M69: INE385I01010
A70: ALPHAGEO | B70: EQ | C70: 406.95 | D70: 407 | E70: 373 | F70: 386.65 | G70: 388 | H70: 405.55 | I70: 15124 | J70: 5897126.4 | K70: 2019-07-03 | L70: 851 | M70: INE137C01018
A71: AMARAJABAT | B71: EQ | C71: 625 | D71: 636 | E71: 625 | F71: 631.25 | G71: 632.25 | H71: 628.1 | I71: 321457 | J71: 202774098 | K71: 2019-07-03 | L71: 7517 | M71: INE885A01032
A72: AMBER | B72: EQ | C72: 828.05 | D72: 831.7 | E72: 815 | F72: 825.6 | G72: 826 | H72: 828.05 | I72: 4399 | J72: 3623083.95 | K72: 2019-07-03 | L72: 477 | M72: INE371P01015
A73: AMBIKCO | B73: EQ | C73: 1059.95 | D73: 1059.95 | E73: 1037 | F73: 1050.2 | G73: 1056 | H73: 1049.75 | I73: 3915 | J73: 4106271.3 | K73: 2019-07-03 | L73: 515 | M73: INE540G01014
A74: AMBUJACEM | B74: EQ | C74: 215 | D74: 215.75 | E74: 213.1 | F74: 214.95 | G74: 215 | H74: 214.95 | I74: 1379872 | J74: 296218013.7 | K74: 2019-07-03 | L74: 11222 | M74: INE079A01024
A75: AMDIND | B75: EQ | C75: 18.25 | D75: 18.3 | E75: 16.85 | F75: 18.3 | G75: 18.3 | H75: 18.3 | I75: 6724 | J75: 121187.4 | K75: 2019-07-03 | L75: 75 | M75: INE005I01014
A76: AMJLAND | B76: EQ | C76: 16.15 | D76: 16.85 | E76: 16.15 | F76: 16.8 | G76: 16.8 | H76: 16.45 | I76: 14545 | J76: 239850.75 | K76: 2019-07-03 | L76: 45 | M76: INE606A01024
A77: AMRUTANJAN | B77: EQ | C77: 302.65 | D77: 306.55 | E77: 301.1 | F77: 302.6 | G77: 303 | H77: 301.7 | I77: 13278 | J77: 4033131.6 | K77: 2019-07-03 | L77: 758 | M77: INE098F01031
A78: ANANTRAJ | B78: EQ | C78: 31.25 | D78: 32.4 | E78: 31.25 | F78: 31.65 | G78: 31.7 | H78: 31.9 | I78: 261315 | J78: 8341254 | K78: 2019-07-03 | L78: 1002 | M78: INE242C01024
A79: ANDHRABANK | B79: EQ | C79: 23.3 | D79: 23.6 | E79: 23.2 | F79: 23.3 | G79: 23.25 | H79: 23.3 | I79: 569255 | J79: 13295707.75 | K79: 2019-07-03 | L79: 1289 | M79: INE434A01013
A80: ANDHRACEMT | B80: EQ | C80: 3.85 | D80: 4 | E80: 3.85 | F80: 3.9 | G80: 3.9 | H80: 3.85 | I80: 41224 | J80: 159841.35 | K80: 2019-07-03 | L80: 70 | M80: INE666E01012
A81: ANDHRSUGAR | B81: EQ | C81: 314 | D81: 319.6 | E81: 314 | F81: 316.8 | G81: 316.5 | H81: 315.4 | I81: 7314 | J81: 2317154.7 | K81: 2019-07-03 | L81: 489 | M81: INE715B01013
A82: ANIKINDS | B82: EQ | C82: 11.8 | D82: 11.9 | E82: 10.7 | F82: 11.3 | G82: 11.5 | H82: 11.25 | I82: 1056 | J82: 11881.7 | K82: 2019-07-03 | L82: 25 | M82: INE087B01017
A83: ANKITMETAL | B83: BE | C83: 0.45 | D83: 0.45 | E83: 0.4 | F83: 0.45 | G83: 0.45 | H83: 0.4 | I83: 26329 | J83: 11725.1 | K83: 2019-07-03 | L83: 15 | M83: INE106I01010
A84: ANSALAPI | B84: EQ | C84: 5.25 | D84: 5.5 | E84: 5 | F84: 5.4 | G84: 5.45 | H84: 5.25 | I84: 163303 | J84: 829661.75 | K84: 2019-07-03 | L84: 275 | M84: INE436A01026
A85: ANSALHSG | B85: EQ | C85: 6.2 | D85: 7.2 | E85: 5.9 | F85: 6.1 | G85: 6.05 | H85: 6.15 | I85: 165320 | J85: 1007674.4 | K85: 2019-07-03 | L85: 1784 | M85: INE880B01015
A86: ANTGRAPHIC | B86: BE | C86: 0.85 | D86: 0.95 | E86: 0.85 | F86: 0.9 | G86: 0.9 | H86: 0.9 | I86: 163300 | J86: 139717.5 | K86: 2019-07-03 | L86: 71 | M86: INE414B01021
A87: ANUP | B87: EQ | C87: 481 | D87: 493.75 | E87: 481 | F87: 489.25 | G87: 490 | H87: 485.1 | I87: 3247 | J87: 1587241.6 | K87: 2019-07-03 | L87: 265 | M87: INE294Z01018
A88: APARINDS | B88: EQ | C88: 590 | D88: 608 | E88: 584 | F88: 587.15 | G88: 587.95 | H88: 588.45 | I88: 4370 | J88: 2569914.55 | K88: 2019-07-03 | L88: 663 | M88: INE372A01015
A89: APCL | B89: EQ | C89: 167.7 | D89: 170 | E89: 165.15 | F89: 169.4 | G89: 166.1 | H89: 167.7 | I89: 1331 | J89: 224020.85 | K89: 2019-07-03 | L89: 98 | M89: INE071F01012
A90: APCOTEXIND | B90: EQ | C90: 566.1 | D90: 574.95 | E90: 563.15 | F90: 573.3 | G90: 573.9 | H90: 562.5 | I90: 15542 | J90: 8844798.8 | K90: 2019-07-03 | L90: 754 | M90: INE116A01024
A91: APEX | B91: EQ | C91: 256.2 | D91: 264.8 | E91: 254.2 | F91: 259.8 | G91: 259.95 | H91: 257.3 | I91: 48485 | J91: 12599515.25 | K91: 2019-07-03 | L91: 2788 | M91: INE346W01013
A92: APLAPOLLO | B92: EQ | C92: 1624.9 | D92: 1649.9 | E92: 1619 | F92: 1640.45 | G92: 1639.85 | H92: 1617.65 | I92: 28407 | J92: 46519431.05 | K92: 2019-07-03 | L92: 3963 | M92: INE702C01019
A93: APLLTD | B93: EQ | C93: 530 | D93: 533.95 | E93: 517.2 | F93: 526.8 | G93: 530 | H93: 530.25 | I93: 155741 | J93: 82037378.8 | K93: 2019-07-03 | L93: 2695 | M93: INE901L01018
A94: APOLLO | B94: EQ | C94: 122.35 | D94: 127 | E94: 122.35 | F94: 123.3 | G94: 122.4 | H94: 121.7 | I94: 19334 | J94: 2413974.15 | K94: 2019-07-03 | L94: 506 | M94: INE713T01010
A95: APOLLOHOSP | B95: EQ | C95: 1356.65 | D95: 1364.2 | E95: 1338.75 | F95: 1341.6 | G95: 1341.1 | H95: 1356.05 | I95: 220036 | J95: 296746785.9 | K95: 2019-07-03 | L95: 13238 | M95: INE437A01024
A96: APOLLOTYRE | B96: EQ | C96: 199.9 | D96: 202.5 | E96: 199 | F96: 200.9 | G96: 200.5 | H96: 200.2 | I96: 1156109 | J96: 232564437 | K96: 2019-07-03 | L96: 9656 | M96: INE438A01022
A97: APOLSINHOT | B97: EQ | C97: 929.85 | D97: 930 | E97: 893 | F97: 905.1 | G97: 893 | H97: 919.4 | I97: 272 | J97: 247723.95 | K97: 2019-07-03 | L97: 43 | M97: INE451F01024
A98: APTECHT | B98: EQ | C98: 148.85 | D98: 151.1 | E98: 145.7 | F98: 146.4 | G98: 146.4 | H98: 149.05 | I98: 178678 | J98: 26494951.05 | K98: 2019-07-03 | L98: 3160 | M98: INE266F01018
A99: ARCHIDPLY | B99: EQ | C99: 33.2 | D99: 33.2 | E99: 32.1 | F99: 32.45 | G99: 32.2 | H99: 32.65 | I99: 4802 | J99: 156715.3 | K99: 2019-07-03 | L99: 185 | M99: INE877I01016
A100: ARCHIES | B100: EQ | C100: 20.5 | D100: 20.6 | E100: 20.25 | F100: 20.3 | G100: 20.25 | H100: 20.45 | I100: 10598 | J100: 215860.7 | K100: 2019-07-03 | L100: 100 | M100: INE731A01020
A101: ARCOTECH | B101: EQ | C101: 3.35 | D101: 3.35 | E101: 3.2 | F101: 3.2 | G101: 3.3 | H101: 3.2 | I101: 37007 | J101: 121885.45 | K101: 2019-07-03 | L101: 90 | M101: INE574I01035
A102: ARIES | B102: EQ | C102: 62.95 | D102: 67.1 | E102: 62.2 | F102: 65.15 | G102: 65.9 | H102: 61.15 | I102: 69705 | J102: 4492882.45 | K102: 2019-07-03 | L102: 1424 | M102: INE298I01015
A103: ARIHANT | B103: EQ | C103: 22.05 | D103: 24.25 | E103: 22.05 | F103: 23.85 | G103: 23.85 | H103: 22.7 | I103: 928 | J103: 21526.9 | K103: 2019-07-03 | L103: 12 | M103: INE413D01011
A104: ARIHANTSUP | B104: EQ | C104: 54 | D104: 55.7 | E104: 52.5 | F104: 53.4 | G104: 53 | H104: 54.15 | I104: 49477 | J104: 2687849.25 | K104: 2019-07-03 | L104: 457 | M104: INE643K01018
A105: ARMANFIN | B105: EQ | C105: 405.5 | D105: 413.95 | E105: 405.5 | F105: 412.25 | G105: 413 | H105: 410.75 | I105: 1373 | J105: 566032.05 | K105: 2019-07-03 | L105: 97 | M105: INE109C01017
A106: AROGRANITE | B106: EQ | C106: 45.95 | D106: 46.45 | E106: 44.55 | F106: 45 | G106: 45 | H106: 45.1 | I106: 4601 | J106: 207420.75 | K106: 2019-07-03 | L106: 76 | M106: INE210C01013
A107: ARROWGREEN | B107: EQ | C107: 96.3 | D107: 96.3 | E107: 88.6 | F107: 95.65 | G107: 96.15 | H107: 87.55 | I107: 426532 | J107: 39989805 | K107: 2019-07-03 | L107: 5492 | M107: INE570D01018
A108: ARROWTEX | B108: EQ | C108: 13.7 | D108: 13.7 | E108: 13 | F108: 13.15 | G108: 13.15 | H108: 13.05 | I108: 2972 | J108: 39093.45 | K108: 2019-07-03 | L108: 33 | M108: INE933J01015
A109: ARSHIYA | B109: EQ | C109: 17.55 | D109: 17.95 | E109: 17 | F109: 17.4 | G109: 17.25 | H109: 17.75 | I109: 18558 | J109: 324018.3 | K109: 2019-07-03 | L109: 121 | M109: INE968D01022
A110: ARSSINFRA | B110: EQ | C110: 39.85 | D110: 41.35 | E110: 38.3 | F110: 40.6 | G110: 40.5 | H110: 39.4 | I110: 17115 | J110: 692670.05 | K110: 2019-07-03 | L110: 157 | M110: INE267I01010
A111: ARVIND | B111: EQ | C111: 64.6 | D111: 70.9 | E111: 64.1 | F111: 67.15 | G111: 67.25 | H111: 65.25 | I111: 11935701 | J111: 816723206.7 | K111: 2019-07-03 | L111: 43476 | M111: INE034A01011
A112: ARVINDFASN | B112: EQ | C112: 685.05 | D112: 692 | E112: 680.05 | F112: 682.7 | G112: 685.55 | H112: 684.5 | I112: 8969 | J112: 6149935 | K112: 2019-07-03 | L112: 1329 | M112: INE955V01021
A113: ARVSMART | B113: EQ | C113: 102 | D113: 105.95 | E113: 102 | F113: 104.85 | G113: 105 | H113: 102.4 | I113: 21285 | J113: 2219613.2 | K113: 2019-07-03 | L113: 411 | M113: INE034S01021
A114: ASAHIINDIA | B114: EQ | C114: 213.7 | D114: 214.9 | E114: 211 | F114: 213.55 | G114: 213.45 | H114: 214.95 | I114: 6892 | J114: 1465500.2 | K114: 2019-07-03 | L114: 819 | M114: INE439A01020
A115: ASAHISONG | B115: EQ | C115: 141.4 | D115: 142 | E115: 137.6 | F115: 140.15 | G115: 140.35 | H115: 138.9 | I115: 1297 | J115: 180383.95 | K115: 2019-07-03 | L115: 159 | M115: INE228I01012
A116: ASAL | B116: EQ | C116: 45.95 | D116: 47.7 | E116: 45.1 | F116: 45.3 | G116: 45.1 | H116: 45.95 | I116: 3696 | J116: 171347.45 | K116: 2019-07-03 | L116: 78 | M116: INE900C01027
A117: ASHAPURMIN | B117: EQ | C117: 17.6 | D117: 18.1 | E117: 17.25 | F117: 18.1 | G117: 18.1 | H117: 17.25 | I117: 410905 | J117: 7393332.45 | K117: 2019-07-03 | L117: 201 | M117: INE348A01023
A118: ASHIANA | B118: EQ | C118: 122.5 | D118: 124.95 | E118: 120.6 | F118: 122.1 | G118: 122.75 | H118: 121.9 | I118: 70422 | J118: 8566150.7 | K118: 2019-07-03 | L118: 2978 | M118: INE365D01021
A119: ASHIMASYN | B119: EQ | C119: 10.35 | D119: 10.85 | E119: 10.15 | F119: 10.35 | G119: 10.6 | H119: 10.65 | I119: 2976 | J119: 31236.45 | K119: 2019-07-03 | L119: 63 | M119: INE440A01010
A120: ASHOKA | B120: EQ | C120: 147.05 | D120: 147.05 | E120: 142.25 | F120: 144.65 | G120: 146 | H120: 146.95 | I120: 209716 | J120: 30186513.35 | K120: 2019-07-03 | L120: 5443 | M120: INE442H01029
A121: ASHOKLEY | B121: EQ | C121: 88 | D121: 91 | E121: 87.9 | F121: 90.3 | G121: 90.15 | H121: 87.85 | I121: 24266937 | J121: 2183398607 | K121: 2019-07-03 | L121: 81607 | M121: INE208A01029
A122: ASIANHOTNR | B122: EQ | C122: 122.35 | D122: 129.65 | E122: 122.35 | F122: 129.4 | G122: 129.2 | H122: 126.9 | I122: 200 | J122: 25276 | K122: 2019-07-03 | L122: 63 | M122: INE363A01022
A123: ASIANPAINT | B123: EQ | C123: 1356.05 | D123: 1371 | E123: 1349.5 | F123: 1352 | G123: 1353.8 | H123: 1345.75 | I123: 1378288 | J123: 1873062155 | K123: 2019-07-03 | L123: 56945 | M123: INE021A01026
A124: ASIANTILES | B124: EQ | C124: 241 | D124: 246.6 | E124: 236.9 | F124: 244.5 | G124: 245 | H124: 246.6 | I124: 206291 | J124: 49835977.4 | K124: 2019-07-03 | L124: 3794 | M124: INE022I01019
A125: ASPINWALL | B125: EQ | C125: 142.1 | D125: 145.7 | E125: 142.1 | F125: 145.3 | G125: 144 | H125: 144 | I125: 211 | J125: 30614 | K125: 2019-07-03 | L125: 13 | M125: INE991I01015
A126: ASSAMCO | B126: BE | C126: 1.35 | D126: 1.35 | E126: 1.3 | F126: 1.35 | G126: 1.35 | H126: 1.3 | I126: 40781 | J126: 54424.5 | K126: 2019-07-03 | L126: 48 | M126: INE442A01024
A127: ASTEC | B127: EQ | C127: 450.4 | D127: 458 | E127: 450.4 | F127: 452.8 | G127: 454 | H127: 450.4 | I127: 1363 | J127: 618297.5 | K127: 2019-07-03 | L127: 182 | M127: INE563J01010
A128: ASTERDM | B128: EQ | C128: 128.4 | D128: 131.7 | E128: 127.4 | F128: 127.8 | G128: 128.2 | H128: 125.1 | I128: 922397 | J128: 119349065.9 | K128: 2019-07-03 | L128: 13737 | M128: INE914M01019
A129: ASTRAL | B129: EQ | C129: 1345.65 | D129: 1350 | E129: 1320.7 | F129: 1327.05 | G129: 1333.95 | H129: 1345.65 | I129: 48471 | J129: 64932671.15 | K129: 2019-07-03 | L129: 2715 | M129: INE006I01046
A130: ASTRAMICRO | B130: EQ | C130: 86.5 | D130: 87.5 | E130: 85.7 | F130: 86.3 | G130: 86.65 | H130: 87.4 | I130: 74361 | J130: 6424753.95 | K130: 2019-07-03 | L130: 2143 | M130: INE386C01029
A131: ASTRAZEN | B131: EQ | C131: 2140.05 | D131: 2172.55 | E131: 2095 | F131: 2104.2 | G131: 2109 | H131: 2145.85 | I131: 9101 | J131: 19247087 | K131: 2019-07-03 | L131: 1115 | M131: INE203A01020
A132: ASTRON | B132: EQ | C132: 111 | D132: 115.9 | E132: 111 | F132: 113.25 | G132: 112 | H132: 113.6 | I132: 646831 | J132: 73424701.8 | K132: 2019-07-03 | L132: 5601 | M132: INE646X01014
A133: ATFL | B133: EQ | C133: 497 | D133: 517.95 | E133: 497 | F133: 503.75 | G133: 503.35 | H133: 501.1 | I133: 2367 | J133: 1202680.45 | K133: 2019-07-03 | L133: 300 | M133: INE209A01019
A134: ATLANTA | B134: EQ | C134: 10.45 | D134: 10.45 | E134: 9.7 | F134: 9.75 | G134: 9.9 | H134: 10.2 | I134: 25434 | J134: 252121.9 | K134: 2019-07-03 | L134: 274 | M134: INE285H01022
A135: ATLASCYCLE | B135: BE | C135: 38.5 | D135: 40.5 | E135: 38.5 | F135: 39.65 | G135: 39.65 | H135: 40.5 | I135: 9725 | J135: 381569.85 | K135: 2019-07-03 | L135: 105 | M135: INE446A01025
A136: ATUL | B136: EQ | C136: 4019.85 | D136: 4019.85 | E136: 3988 | F136: 3997.55 | G136: 4000 | H136: 3999.75 | I136: 1902 | J136: 7603014.6 | K136: 2019-07-03 | L136: 650 | M136: INE100A01010
A137: ATULAUTO | B137: EQ | C137: 271.6 | D137: 276.45 | E137: 271 | F137: 273.6 | G137: 273.1 | H137: 271.55 | I137: 9841 | J137: 2696235.65 | K137: 2019-07-03 | L137: 410 | M137: INE951D01028
A138: AUBANK | B138: EQ | C138: 699.8 | D138: 703.95 | E138: 693 | F138: 695.65 | G138: 695.4 | H138: 697.85 | I138: 41090 | J138: 28693166.55 | K138: 2019-07-03 | L138: 4971 | M138: INE949L01017
A139: AURIONPRO | B139: EQ | C139: 109 | D139: 112 | E139: 109 | F139: 111.3 | G139: 112 | H139: 109.7 | I139: 585 | J139: 64680.7 | K139: 2019-07-03 | L139: 39 | M139: INE132H01018
A140: AUROPHARMA | B140: EQ | C140: 612.9 | D140: 612.9 | E140: 588 | F140: 596.2 | G140: 595.9 | H140: 610.9 | I140: 4994049 | J140: 2965725787 | K140: 2019-07-03 | L140: 91929 | M140: INE406A01037
A141: AUSOMENT | B141: EQ | C141: 37.45 | D141: 37.45 | E141: 35.5 | F141: 36.75 | G141: 35.5 | H141: 35.7 | I141: 425 | J141: 15675.1 | K141: 2019-07-03 | L141: 20 | M141: INE218C01016
A142: AUTOAXLES | B142: EQ | C142: 1035 | D142: 1078 | E142: 1035 | F142: 1075.2 | G142: 1075 | H142: 1053.35 | I142: 4977 | J142: 5345067.7 | K142: 2019-07-03 | L142: 2013 | M142: INE449A01011
A143: AUTOIND | B143: EQ | C143: 50.2 | D143: 51 | E143: 49.8 | F143: 50.9 | G143: 51 | H143: 49.85 | I143: 6897 | J143: 348060.55 | K143: 2019-07-03 | L143: 302 | M143: INE718H01014
A144: AVADHSUGAR | B144: EQ | C144: 334 | D144: 343.1 | E144: 330 | F144: 336.05 | G144: 335.8 | H144: 331.8 | I144: 38010 | J144: 12823967.4 | K144: 2019-07-03 | L144: 2484 | M144: INE349W01017
A145: AVANTIFEED | B145: EQ | C145: 349.9 | D145: 352.8 | E145: 347.1 | F145: 348.3 | G145: 348.15 | H145: 348.25 | I145: 128872 | J145: 45016062.7 | K145: 2019-07-03 | L145: 3961 | M145: INE871C01038
A146: AVTNPL | B146: EQ | C146: 24.7 | D146: 24.7 | E146: 24.2 | F146: 24.35 | G146: 24.35 | H146: 24.3 | I146: 9846 | J146: 240571.4 | K146: 2019-07-03 | L146: 77 | M146: INE488D01021
A147: AXISBANK | B147: EQ | C147: 802.65 | D147: 811.5 | E147: 801.5 | F147: 806.2 | G147: 806.25 | H147: 802.6 | I147: 5535230 | J147: 4466488811 | K147: 2019-07-03 | L147: 109313 | M147: INE238A01034
A148: AXISCADES | B148: EQ | C148: 66.45 | D148: 66.45 | E148: 63.5 | F148: 64 | G148: 63.7 | H148: 66.6 | I148: 54027 | J148: 3504666.45 | K148: 2019-07-03 | L148: 1199 | M148: INE555B01013
A149: AXISGOLD | B149: EQ | C149: 2983.95 | D149: 2995.95 | E149: 2973 | F149: 2976.4 | G149: 2975 | H149: 2935.45 | I149: 282 | J149: 841169.45 | K149: 2019-07-03 | L149: 92 | M149: INF846K01347
A150: AXISNIFTY | B150: EQ | C150: 1222.89 | D150: 1226 | E150: 1214.25 | F150: 1216.72 | G150: 1215.17 | H150: 1212.07 | I150: 43 | J150: 52384.93 | K150: 2019-07-03 | L150: 12 | M150: INF846K01ZL0
A151: AYMSYNTEX | B151: EQ | C151: 36 | D151: 36.05 | E151: 34.5 | F151: 35.75 | G151: 35.8 | H151: 35.6 | I151: 8688 | J151: 308685.65 | K151: 2019-07-03 | L151: 71 | M151: INE193B01039
A152: BAFNAPHARM | B152: BE | C152: 4.9 | D152: 5.3 | E152: 4.8 | F152: 4.8 | G152: 4.85 | H152: 5.05 | I152: 10390 | J152: 51753.45 | K152: 2019-07-03 | L152: 30 | M152: INE878I01014
A153: BAGFILMS | B153: EQ | C153: 3.5 | D153: 3.7 | E153: 3.5 | F153: 3.6 | G153: 3.7 | H153: 3.5 | I153: 40589 | J153: 145709.6 | K153: 2019-07-03 | L153: 67 | M153: INE116D01028
A154: BAJAJ-AUTO | B154: EQ | C154: 2900 | D154: 2910 | E154: 2872 | F154: 2897.75 | G154: 2889.5 | H154: 2883.55 | I154: 274468 | J154: 794235413.1 | K154: 2019-07-03 | L154: 18287 | M154: INE917I01010
A155: BAJAJCON | B155: EQ | C155: 324.9 | D155: 325.5 | E155: 319 | F155: 323.8 | G155: 323.05 | H155: 323.8 | I155: 83718 | J155: 26892885.2 | K155: 2019-07-03 | L155: 1373 | M155: INE933K01021
A156: BAJAJELEC | B156: EQ | C156: 519 | D156: 536 | E156: 518 | F156: 533.4 | G156: 533.1 | H156: 519 | I156: 64244 | J156: 33902252.2 | K156: 2019-07-03 | L156: 2489 | M156: INE193E01025
A157: BAJAJFINSV | B157: EQ | C157: 8509 | D157: 8510 | E157: 8405.6 | F157: 8430.45 | G157: 8418.75 | H157: 8474.85 | I157: 161661 | J157: 1364653259 | K157: 2019-07-03 | L157: 20058 | M157: INE918I01018
A158: BAJAJHIND | B158: EQ | C158: 7.8 | D158: 7.85 | E158: 7.65 | F158: 7.7 | G158: 7.75 | H158: 7.75 | I158: 549243 | J158: 4241399.15 | K158: 2019-07-03 | L158: 879 | M158: INE306A01021
A159: BAJAJHLDNG | B159: EQ | C159: 3725 | D159: 3735 | E159: 3680.4 | F159: 3723.8 | G159: 3720 | H159: 3729.2 | I159: 92949 | J159: 344522077.6 | K159: 2019-07-03 | L159: 6330 | M159: INE118A01012
A160: BAJFINANCE | B160: EQ | C160: 3714 | D160: 3730.3 | E160: 3695 | F160: 3715.4 | G160: 3711 | H160: 3711.1 | I160: 605040 | J160: 2249810785 | K160: 2019-07-03 | L160: 49617 | M160: INE296A01024
A161: BALAJITELE | B161: EQ | C161: 56.6 | D161: 58.75 | E161: 55.2 | F161: 58.1 | G161: 58.15 | H161: 55.9 | I161: 38295 | J161: 2187361.15 | K161: 2019-07-03 | L161: 513 | M161: INE794B01026
A162: BALAMINES | B162: EQ | C162: 376 | D162: 379 | E162: 372 | F162: 373.95 | G162: 373.95 | H162: 377.45 | I162: 4405 | J162: 1654282.7 | K162: 2019-07-03 | L162: 238 | M162: INE050E01027
A163: BALAXI | B163: BE | C163: 66.8 | D163: 70.9 | E163: 66.8 | F163: 68.6 | G163: 68.6 | H163: 70.3 | I163: 1550 | J163: 105817.5 | K163: 2019-07-03 | L163: 38 | M163: INE618N01014
A164: BALKRISHNA | B164: EQ | C164: 31.15 | D164: 31.15 | E164: 29.7 | F164: 30.25 | G164: 30.25 | H164: 30.25 | I164: 5964 | J164: 181351.6 | K164: 2019-07-03 | L164: 130 | M164: INE875R01011
A165: BALKRISIND | B165: EQ | C165: 738 | D165: 754 | E165: 738 | F165: 748.2 | G165: 748.9 | H165: 737.5 | I165: 805780 | J165: 602104060.7 | K165: 2019-07-03 | L165: 22836 | M165: INE787D01026
A166: BALLARPUR | B166: EQ | C166: 1.95 | D166: 1.95 | E166: 1.9 | F166: 1.9 | G166: 1.9 | H166: 1.95 | I166: 186051 | J166: 357758.3 | K166: 2019-07-03 | L166: 108 | M166: INE294A01037
A167: BALMLAWRIE | B167: EQ | C167: 179 | D167: 182 | E167: 178.5 | F167: 180.35 | G167: 181.45 | H167: 178.45 | I167: 58001 | J167: 10427515.2 | K167: 2019-07-03 | L167: 848 | M167: INE164A01016
A168: BALPHARMA | B168: EQ | C168: 55.55 | D168: 56.85 | E168: 55.55 | F168: 55.8 | G168: 55.8 | H168: 56.25 | I168: 1140 | J168: 63931.45 | K168: 2019-07-03 | L168: 49 | M168: INE083D01012
A169: BALRAMCHIN | B169: EQ | C169: 142.8 | D169: 143.25 | E169: 140.3 | F169: 142.5 | G169: 142.5 | H169: 142.4 | I169: 427222 | J169: 60720874.9 | K169: 2019-07-03 | L169: 8264 | M169: INE119A01028
A170: BANARBEADS | B170: EQ | C170: 44.9 | D170: 47 | E170: 44 | F170: 46.75 | G170: 46.8 | H170: 44.35 | I170: 1183 | J170: 53022 | K170: 2019-07-03 | L170: 34 | M170: INE655B01011
A171: BANARISUG | B171: EQ | C171: 1447 | D171: 1447 | E171: 1410 | F171: 1411.15 | G171: 1410 | H171: 1411.75 | I171: 344 | J171: 486233.1 | K171: 2019-07-03 | L171: 83 | M171: INE459A01010
A172: BANCOINDIA | B172: EQ | C172: 118 | D172: 123.4 | E172: 118 | F172: 122.2 | G172: 123.4 | H172: 119.8 | I172: 17132 | J172: 2076953.1 | K172: 2019-07-03 | L172: 399 | M172: INE213C01025
A173: BANDHANBNK | B173: EQ | C173: 561.35 | D173: 561.35 | E173: 552.3 | F173: 555.4 | G173: 555.45 | H173: 559.35 | I173: 185443 | J173: 103397716.2 | K173: 2019-07-03 | L173: 5395 | M173: INE545U01014
A174: BANG | B174: EQ | C174: 38.55 | D174: 38.55 | E174: 34.55 | F174: 35.35 | G174: 36 | H174: 37.75 | I174: 14827 | J174: 530960.85 | K174: 2019-07-03 | L174: 289 | M174: INE863I01016
A175: BANKBARODA | B175: EQ | C175: 120.9 | D175: 126.15 | E175: 119.55 | F175: 125.5 | G175: 125.8 | H175: 120.5 | I175: 36076430 | J175: 4450499725 | K175: 2019-07-03 | L175: 118140 | M175: INE028A01039
A176: BANKBEES | B176: EQ | C176: 3192.05 | D176: 3209.5 | E176: 3186.9 | F176: 3200.71 | G176: 3198.8 | H176: 3195.48 | I176: 2353 | J176: 7526840.34 | K176: 2019-07-03 | L176: 185 | M176: INF732E01078
A177: BANKINDIA | B177: EQ | C177: 90.6 | D177: 93 | E177: 90.05 | F177: 92.5 | G177: 92.95 | H177: 90.2 | I177: 7918243 | J177: 727843738.2 | K177: 2019-07-03 | L177: 25190 | M177: INE084A01016
A178: BANSWRAS | B178: EQ | C178: 66.1 | D178: 68.85 | E178: 66.1 | F178: 68.25 | G178: 68.85 | H178: 67 | I178: 1028 | J178: 69803.5 | K178: 2019-07-03 | L178: 37 | M178: INE629D01012
A179: BARTRONICS | B179: EQ | C179: 4.05 | D179: 4.05 | E179: 3.6 | F179: 3.85 | G179: 3.9 | H179: 3.8 | I179: 12380 | J179: 47379.4 | K179: 2019-07-03 | L179: 56 | M179: INE855F01034
A180: BASF | B180: EQ | C180: 1327.95 | D180: 1330 | E180: 1306.75 | F180: 1314.95 | G180: 1310 | H180: 1316.7 | I180: 4835 | J180: 6379154.7 | K180: 2019-07-03 | L180: 600 | M180: INE373A01013
A181: BASML | B181: EQ | C181: 148.1 | D181: 154.95 | E181: 148.1 | F181: 154.75 | G181: 154.75 | H181: 153.6 | I181: 37 | J181: 5685.15 | K181: 2019-07-03 | L181: 11 | M181: INE186H01014
A182: BATAINDIA | B182: EQ | C182: 1458 | D182: 1468 | E182: 1452.8 | F182: 1462.95 | G182: 1459.5 | H182: 1457.55 | I182: 352931 | J182: 515514272.5 | K182: 2019-07-03 | L182: 20383 | M182: INE176A01028
A183: BAYERCROP | B183: EQ | C183: 3369.65 | D183: 3374.45 | E183: 3275 | F183: 3291.3 | G183: 3276.25 | H183: 3387.45 | I183: 22646 | J183: 74783459.35 | K183: 2019-07-03 | L183: 3111 | M183: INE462A01022
A184: BBL | B184: EQ | C184: 1071.25 | D184: 1099 | E184: 1071.2 | F184: 1085.2 | G184: 1085 | H184: 1072.9 | I184: 4074 | J184: 4427148.5 | K184: 2019-07-03 | L184: 708 | M184: INE464A01028
A185: BBTC | B185: EQ | C185: 918 | D185: 957.15 | E185: 911 | F185: 944.2 | G185: 946.8 | H185: 914.95 | I185: 221225 | J185: 208557865.2 | K185: 2019-07-03 | L185: 10317 | M185: INE050A01025
A186: BCG | B186: EQ | C186: 3.9 | D186: 3.95 | E186: 3.85 | F186: 3.85 | G186: 3.85 | H186: 4.05 | I186: 760307 | J186: 2932018.85 | K186: 2019-07-03 | L186: 217 | M186: INE425B01027
A187: BDL | B187: EQ | C187: 335.5 | D187: 340 | E187: 331.5 | F187: 335.65 | G187: 335.2 | H187: 334.8 | I187: 39286 | J187: 13184058.85 | K187: 2019-07-03 | L187: 1972 | M187: INE171Z01018
A188: BEARDSELL | B188: EQ | C188: 15.4 | D188: 15.4 | E188: 14.3 | F188: 14.35 | G188: 14.4 | H188: 14.5 | I188: 535 | J188: 7670.2 | K188: 2019-07-03 | L188: 25 | M188: INE520H01022
A189: BEDMUTHA | B189: EQ | C189: 14.2 | D189: 14.85 | E189: 14.15 | F189: 14.4 | G189: 14.2 | H189: 14.5 | I189: 4151 | J189: 59695.4 | K189: 2019-07-03 | L189: 28 | M189: INE844K01012
A190: BEL | B190: EQ | C190: 112.7 | D190: 113.85 | E190: 110.9 | F190: 113.1 | G190: 112.9 | H190: 112.1 | I190: 8408980 | J190: 944052985.8 | K190: 2019-07-03 | L190: 32435 | M190: INE263A01024
A191: BEML | B191: EQ | C191: 913.7 | D191: 917.9 | E191: 903.35 | F191: 908 | G191: 910.75 | H191: 908.9 | I191: 514188 | J191: 467590914.4 | K191: 2019-07-03 | L191: 11691 | M191: INE258A01016
A192: BEPL | B192: EQ | C192: 60.95 | D192: 62.55 | E192: 60.5 | F192: 62.2 | G192: 62.4 | H192: 60.5 | I192: 431678 | J192: 26533843.5 | K192: 2019-07-03 | L192: 2877 | M192: INE922A01025
A193: BERGEPAINT | B193: EQ | C193: 320.3 | D193: 322.4 | E193: 317.45 | F193: 318.65 | G193: 318.05 | H193: 317.2 | I193: 692987 | J193: 222314544.5 | K193: 2019-07-03 | L193: 12455 | M193: INE463A01038
A194: BFINVEST | B194: EQ | C194: 251.7 | D194: 252.75 | E194: 246.2 | F194: 247.45 | G194: 246.2 | H194: 251.75 | I194: 10044 | J194: 2505170.95 | K194: 2019-07-03 | L194: 465 | M194: INE878K01010
A195: BFUTILITIE | B195: EQ | C195: 178.9 | D195: 180.45 | E195: 175.8 | F195: 176.7 | G195: 176 | H195: 179.1 | I195: 101507 | J195: 18041801.3 | K195: 2019-07-03 | L195: 2410 | M195: INE243D01012
A196: BGLOBAL | B196: BE | C196: 1.9 | D196: 1.95 | E196: 1.85 | F196: 1.85 | G196: 1.85 | H196: 1.9 | I196: 19077 | J196: 35385.25 | K196: 2019-07-03 | L196: 19 | M196: INE224M01013
A197: BGRENERGY | B197: EQ | C197: 55.8 | D197: 55.8 | E197: 52 | F197: 52.75 | G197: 52.6 | H197: 54.55 | I197: 70776 | J197: 3790488.15 | K197: 2019-07-03 | L197: 1023 | M197: INE661I01014
A198: BHAGERIA | B198: EQ | C198: 274.4 | D198: 278.35 | E198: 270 | F198: 270.45 | G198: 270 | H198: 272 | I198: 12969 | J198: 3532688.35 | K198: 2019-07-03 | L198: 367 | M198: INE354C01027
A199: BHAGYANGR | B199: EQ | C199: 24.15 | D199: 24.75 | E199: 24 | F199: 24.5 | G199: 24.5 | H199: 24.1 | I199: 5581 | J199: 135252.35 | K199: 2019-07-03 | L199: 46 | M199: INE458B01036
A200: BHAGYAPROP | B200: EQ | C200: 23.1 | D200: 24.8 | E200: 23.1 | F200: 23.8 | G200: 24.3 | H200: 23.7 | I200: 995 | J200: 23554.9 | K200: 2019-07-03 | L200: 14 | M200: INE363W01018
... 1436 more rows

Sheet Sheet1 (hidden)

Sheet Sheet3 (hidden)

Sheet Sheet4 (hidden)
